Capital or Revenue,Directorate,SERCOP High Level Category,SERCOP Detailed Category,Transaction Number,Date,Service Area,Expenses Type,Amount,Supplier Name
Revenue,Adult Services,Adult Social Care,Central Codes (to be reallocated),5105663062,08.01.2021,Gouldings Resource Centre,Property Services - Day to day Maintenance,100,A & M APPLIANCE CARE
Revenue,Adult Services,Adult Social Care,Central Codes (to be reallocated),5105663193,13.01.2021,Gouldings Resource Centre,Consumable Cleaning Materials,168,A & M APPLIANCE CARE
Revenue,Adult Services,Adult Social Care,Learning Disab Supp (to be reallocated),5105663192,27.01.2021,Plean Dene,Consumable Cleaning Materials,84,A & M APPLIANCE CARE
Revenue,Adult Services,Adult Social Care,Central Codes (to be reallocated),5105663194,29.01.2021,Adelaide Resource Centre,Consumable Cleaning Materials,266,A & M APPLIANCE CARE
Revenue,Neighbourhoods,Cultural and Related Services,Open Spaces,5105664303,22.01.2021,Other Grounds Maintenance,Payment to Private Contractors,452,A GUSTAR T/A IVY TREE CARE
Revenue,Neighbourhoods,Cultural and Related Services,Open Spaces,5105664303,22.01.2021,Other Grounds Maintenance,Payment to Private Contractors,852,A GUSTAR T/A IVY TREE CARE
Revenue,Neighbourhoods,Cultural and Related Services,Open Spaces,5105664303,22.01.2021,Other Grounds Maintenance,Payment to Private Contractors,258,A GUSTAR T/A IVY TREE CARE
Revenue,Neighbourhoods,Cultural and Related Services,Open Spaces,5105664303,22.01.2021,Other Grounds Maintenance,Payment to Private Contractors,344,A GUSTAR T/A IVY TREE CARE
Revenue,Neighbourhoods,Cultural and Related Services,Open Spaces,5105664303,22.01.2021,Other Grounds Maintenance,Payment to Private Contractors,652,A GUSTAR T/A IVY TREE CARE
Revenue,Neighbourhoods,Cultural and Related Services,Open Spaces,5105664303,22.01.2021,Other Grounds Maintenance,Payment to Private Contractors,65,A GUSTAR T/A IVY TREE CARE
Revenue,Neighbourhoods,Cultural and Related Services,Open Spaces,5105664303,22.01.2021,Other Grounds Maintenance,Payment to Private Contractors,652,A GUSTAR T/A IVY TREE CARE
Revenue,Neighbourhoods,Cultural and Related Services,Open Spaces,5105664303,22.01.2021,Other Grounds Maintenance,Payment to Private Contractors,452,A GUSTAR T/A IVY TREE CARE
Revenue,Childrens Services,Children's & Education Services,Other Education and Community Budget,5105662929,08.01.2021,Home to School SEN Transport (LA),Taxis - Contract Hire,812,AMAR CABS OF NEWPORT
Revenue,Childrens Services,Children's & Education Services,Special Schools & Alternative Provision,5105664431,27.01.2021,Island Learning Centre,Schools Catering Contract,132,AMAR EXCLUSIVES
Revenue,Childrens Services,Children's & Education Services,Other Education and Community Budget,5105662927,08.01.2021,Home to School Mainstream Transport,Taxis - Contract Hire,546,AMAR EXCLUSIVES
Revenue,Adult Services,Adult Social Care,Central Codes (to be reallocated),5105662419,04.01.2021,Community Reablement,Vehicle Maintenance Costs,45,ISLANDWIDE WINDSCREENS
Revenue,Neighbourhoods,Environmental & Regulatory Services,Regulatory Services,5105662503,06.01.2021,Environmental Health - Environmental Regulation & Protection,Payment to Private Contractors,388.39,BUCKINGHAM FUTURES LTD
Revenue,Regeneration,Central Services,Support Services,5105663081,08.01.2021,17 Fairlee Road,Grounds Maintenance,75,C & J GROUND MAINTENANCE
Revenue,Regeneration,Housing Services,Other Council Property,5105663077,08.01.2021,Shared Ownership,Grounds Maintenance,75,C & J GROUND MAINTENANCE
Revenue,Neighbourhoods,Cultural and Related Services,Culture and Heritage,5105664924,29.01.2021,Cothey Bottom Store RYDE,Property Services - Planned Maintenance,220,C & J GROUND MAINTENANCE
Revenue,Regeneration,Planning services,Business Support,5105663078,08.01.2021,Dodnor Industrial Estate,Grounds Maintenance,75,C & J GROUND MAINTENANCE
Revenue,Adult Services,Adult Social Care,Central Codes (to be reallocated),5105664923,29.01.2021,Adelaide Resource Centre,Property Services - Day to day Maintenance,"1,980.00",C & J GROUND MAINTENANCE
Revenue,Childrens Services,Children's & Education Services,Other Education and Community Budget,5105663282,13.01.2021,Home to School SEN Transport (LA),Taxis - Contract Hire,660,CLARES CABS
Revenue,Resources,Central Services,Support Services,5105664960,29.01.2021,Litigation Costs,Legal Fees - Other Parties,850,COLLEGE CHAMBERS BARRISTERS
Revenue,Resources,Central Services,Support Services,5105665047,29.01.2021,Litigation Costs,Legal Fees - Other Parties,400,COLLEGE CHAMBERS BARRISTERS
Revenue,Adult Services,Adult Social Care,Social Care Activities,5105663266,13.01.2021,DoLS/MCA,Professional Services,186.33,DR ALEXIS BOWERS LTD
Revenue,Adult Services,Adult Social Care,Social Care Activities,5105663725,15.01.2021,DoLS/MCA,Professional Services,-186.33,DR ALEXIS BOWERS LTD
Revenue,Adult Services,Adult Social Care,Social Care Activities,5105663726,15.01.2021,DoLS/MCA,Professional Services,197.72,DR ALEXIS BOWERS LTD
Revenue,Adult Services,Adult Social Care,Social Care Activities,5105663415,13.01.2021,DoLS/MCA,Professional Services,186.33,DR ALEXIS BOWERS LTD
Revenue,Adult Services,Adult Social Care,Social Support - Social Isolation/Other,5105663401,13.01.2021,Social Isolation/Other Other ST Support,Professional Services,390,THE MEMORY SERVICE
Revenue,Childrens Services,Adult Social Care,Social Care Activities,5105662365,08.01.2021,Adult Social Care - Workforce Development,Training,150,EDGE TRAINING & CONS LTD
Revenue,Childrens Services,Children's & Education Services,Special Schools & Alternative Provision,5105662570,06.01.2021,Island Learning Centre,Bought in Prof Services - Curriculum (Schools),"2,100.00",REDACTED PERSONAL DATA
Revenue,Childrens Services,Children's & Education Services,Special Schools & Alternative Provision,5105662570,06.01.2021,Island Learning Centre,Bought in Prof Services - Curriculum (Schools),"1,540.00",REDACTED PERSONAL DATA
Revenue,Childrens Services,Children's & Education Services,Special Schools & Alternative Provision,5105662570,06.01.2021,Island Learning Centre,Bought in Prof Services - Curriculum (Schools),"1,540.00",REDACTED PERSONAL DATA
Revenue,Childrens Services,Children's & Education Services,Special Schools & Alternative Provision,5105662570,06.01.2021,Island Learning Centre,Bought in Prof Services - Curriculum (Schools),105,REDACTED PERSONAL DATA
Revenue,Childrens Services,Children's & Education Services,Special Schools & Alternative Provision,5105662570,06.01.2021,Island Learning Centre,Bought in Prof Services - Curriculum (Schools),210,REDACTED PERSONAL DATA
Revenue,Childrens Services,Children's & Education Services,Other Education and Community Budget,5105663263,13.01.2021,Home to School SEN Transport (LA),Taxis - Contract Hire,560,HAYLES TAXIS
Revenue,Childrens Services,Children's & Education Services,Other Education and Community Budget,5105663264,13.01.2021,Home to School SEN Transport (LA),Taxis - Contract Hire,520,HAYLES TAXIS
Revenue,Childrens Services,Children's & Education Services,Other Education and Community Budget,5105663265,13.01.2021,Home to College Post 16 Transport,Taxis - Contract Hire,440,HAYLES TAXIS
Revenue,Resources,Central Services,Support Services,5105663340,13.01.2021,ICT Contracts,Computer Maintenance,330,REDACTED PERSONAL DATA
Revenue,Childrens Services,Children's & Education Services,Family Support Services,5105664930,29.01.2021,Short Breaks,Charges from Independent Providers,208,JOHN CATTLE'S SKATE CLUB
Revenue,Adult Services,Housing Services,Homelessness,5105662448,04.01.2021,Homeless Shelter (Barton),Professional Services,650,LINSCH CONSULTANTS
Revenue,Adult Services,Adult Social Care,Social Care Activities,5105663123,13.01.2021,LSAB Conferences,Professional Services,650,MAKING CONNECTIONS (IW) LTD
Revenue,Adult Services,Adult Social Care,Social Care Activities,5105661946,06.01.2021,LSAB Conferences,Professional Services,450,MAKING CONNECTIONS (IW) LTD
Revenue,Childrens Services,Children's & Education Services,Other Education and Community Budget,5105663329,13.01.2021,Home to School SEN Transport (LA),Taxis - Contract Hire,"1,115.40",MR TAXIS
Capital,Place,Capital,Capital,5105662669,06.01.2021,Rights Of Way Capital Programme,Payment to Contractors - Capital,880,REDACTED PERSONAL DATA
Capital,Place,Capital,Capital,5105662670,08.01.2021,Rights Of Way Capital Programme,Payment to Contractors - Capital,"1,320.00",REDACTED PERSONAL DATA
Capital,Place,Capital,Capital,5105664633,29.01.2021,Rights Of Way Capital Programme,Payment to Contractors - Capital,"2,200.00",REDACTED PERSONAL DATA
Revenue,Resources,Children's & Education Services,Safeguarding Children/Young Peoples Svs,5105663960,22.01.2021,Training - Childrens,Training,100,MISSING SOLUTIONS LTD
Revenue,Resources,Children's & Education Services,Safeguarding Children/Young Peoples Svs,5105663680,15.01.2021,Training - Childrens,Training,100,MISSING SOLUTIONS LTD
Revenue,Resources,Children's & Education Services,Safeguarding Children/Young Peoples Svs,5105663681,15.01.2021,ASYE Programme,Training,750,MISSING SOLUTIONS LTD
Revenue,Resources,Children's & Education Services,Safeguarding Children/Young Peoples Svs,5105663708,22.01.2021,ASYE Programme,Training,750,MISSING SOLUTIONS LTD
Revenue,Resources,Children's & Education Services,Safeguarding Children/Young Peoples Svs,5105663798,20.01.2021,Safeguarding Training,Training,600,MISSING SOLUTIONS LTD
Revenue,Resources,Children's & Education Services,Safeguarding Children/Young Peoples Svs,5105663798,20.01.2021,Safeguarding Training,Training,600,MISSING SOLUTIONS LTD
Revenue,Resources,Children's & Education Services,Safeguarding Children/Young Peoples Svs,5105663800,20.01.2021,Safeguarding Training,Training,600,MISSING SOLUTIONS LTD
Revenue,Resources,Children's & Education Services,Safeguarding Children/Young Peoples Svs,5105663801,20.01.2021,Safeguarding Training,Training,600,MISSING SOLUTIONS LTD
Capital,Place,Capital,Capital,5105662091,08.01.2021,Rights Of Way Capital Programme,Payment to Contractors - Capital,"5,450.00",REDACTED PERSONAL DATA
Capital,Place,Capital,Capital,5105664499,27.01.2021,Rights Of Way Capital Programme,Payment to Contractors - Capital,"1,575.00",REDACTED PERSONAL DATA
Revenue,Neighbourhoods,Cultural and Related Services,Open Spaces,5105662433,04.01.2021,Rights of Way Operations,Payment to Private Contractors,460.8,NIGEL EARLEY SERVICES LTD
Revenue,Neighbourhoods,Cultural and Related Services,Open Spaces,5105662434,04.01.2021,Rights of Way Operations,Payment to Private Contractors,100,NIGEL EARLEY SERVICES LTD
Capital,Place,Capital,Capital,5105662433,04.01.2021,Rights Of Way Capital Programme,Payment to Contractors - Capital,739.2,NIGEL EARLEY SERVICES LTD
Revenue,Neighbourhoods,Environmental & Regulatory Services,"Cemetery, Cremation & Mortuary Services",5105662617,06.01.2021,Crematorium,Grounds Maintenance,630,NIGEL EARLEY SERVICES LTD
Revenue,Resources,Central Services,Support Services,5105663335,13.01.2021,Legal Services Section,Sundry Office Expenses,59.97,OD CONSULTANCY LTD
Revenue,Adult Services,Housing Services,Homelessness,5105664316,22.01.2021,Private Rented Sector Leasing Scheme,Accommodation Costs - Leaseholder Payments,695.89,REDACTED PERSONAL DATA
Revenue,Adult Services,Housing Services,Homelessness,5105664316,22.01.2021,Private Rented Sector Leasing Scheme,Accommodation Costs - Leaseholder Payments,695.89,REDACTED PERSONAL DATA
Revenue,Adult Services,Housing Services,Homelessness,5105664316,22.01.2021,Private Rented Sector Leasing Scheme,Accommodation Costs - Leaseholder Payments,695.89,REDACTED PERSONAL DATA
Revenue,Adult Services,Housing Services,Homelessness,5105664316,22.01.2021,Private Rented Sector Leasing Scheme,Accommodation Costs - Leaseholder Payments,695.89,REDACTED PERSONAL DATA
Revenue,Adult Services,Housing Services,Homelessness,5105664316,22.01.2021,Private Rented Sector Leasing Scheme,Accommodation Costs - Leaseholder Payments,695.89,REDACTED PERSONAL DATA
Revenue,Childrens Services,Children's & Education Services,Children Looked After,5105664258,22.01.2021,Adopt South Adoption Support Fund,Charges from Independent Providers,75,REDACTED PERSONAL DATA
Revenue,Regeneration,Central Services,Support Services,5105664403,29.01.2021,"Guildhall,Newport",Property Services - Planned Maintenance,210,R G PROPERTY SERVICES
Revenue,Childrens Services,Children's & Education Services,Management & Support Services,5105664217,22.01.2021,Special Discretionary Grants,Charges from Independent Providers,"2,730.00",REDACTED PERSONAL DATA
Revenue,Childrens Services,Children's & Education Services,Other Education and Community Budget,5105663469,15.01.2021,Home to School SEN Transport (LA),Taxis - Contract Hire,175,ROUNSEVELLS TAXIS
Revenue,Childrens Services,Children's & Education Services,Other Education and Community Budget,5105662919,08.01.2021,Home to School SEN Transport (LA),Taxis - Contract Hire,490,ROUNSEVELLS TAXIS
Revenue,Childrens Services,Children's & Education Services,Other Education and Community Budget,5105663250,15.01.2021,Home to School SEN Transport (LA),Taxis - Contract Hire,490,ROUNSEVELLS TAXIS
Revenue,Childrens Services,Children's & Education Services,Other Education and Community Budget,5105663116,08.01.2021,Home to School SEN Transport (LA),Taxis - Contract Hire,-490,ROUNSEVELLS TAXIS
Revenue,Childrens Services,Children's & Education Services,Other Education and Community Budget,5105662900,15.01.2021,Home to College Post 16 Transport,Taxis - Contract Hire,840,ROUNSEVELLS TAXIS
Revenue,Adult Services,Adult Social Care,Social Care Activities,5105662453,06.01.2021,DoLS/MCA,Professional Services,"1,658.88",REDACTED PERSONAL DATA
Revenue,Childrens Services,Children's & Education Services,Management & Support Services,5105662959,08.01.2021,Special Discretionary Grants,Charges from Independent Providers,300,REDACTED PERSONAL DATA
Revenue,Childrens Services,Children's & Education Services,Management & Support Services,5105662931,13.01.2021,Special Discretionary Grants,Charges from Independent Providers,840,REDACTED PERSONAL DATA
Revenue,Childrens Services,Children's & Education Services,Management & Support Services,5105662949,08.01.2021,Special Discretionary Grants,Charges from Independent Providers,840,REDACTED PERSONAL DATA
Revenue,Childrens Services,Children's & Education Services,Management & Support Services,5105662934,20.01.2021,Special Discretionary Grants,Charges from Independent Providers,840,REDACTED PERSONAL DATA
Revenue,Childrens Services,Children's & Education Services,Management & Support Services,5105662960,08.01.2021,Pupil Premium Managed Centrally,Professional Services,240,REDACTED PERSONAL DATA
Revenue,Childrens Services,Children's & Education Services,Management & Support Services,5105662960,08.01.2021,Pupil Premium Managed Centrally,Travel Expenses,51,REDACTED PERSONAL DATA
Revenue,Childrens Services,Children's & Education Services,Family Support Services,5105663768,20.01.2021,Short Breaks,Charges from Independent Providers,215.52,THE VECTIS RADIO 4PS TRAINING
Revenue,Childrens Services,Children's & Education Services,Family Support Services,5105663769,20.01.2021,Short Breaks,Charges from Independent Providers,287.36,THE VECTIS RADIO 4PS TRAINING
Revenue,Childrens Services,Children's & Education Services,Other Education and Community Budget,5105662907,13.01.2021,Home to School SEN Transport (LA),Taxis - Contract Hire,980,THOMPSON TAXI
Revenue,Childrens Services,Children's & Education Services,Other Education and Community Budget,5105662908,13.01.2021,Home to School Mainstream Transport,Taxis - Contract Hire,980,THOMPSON TAXI
Revenue,Childrens Services,Children's & Education Services,Other Education and Community Budget,5105663444,27.01.2021,Home to College Post 16 Transport,Taxis - Contract Hire,250,TJ CAR SERVICES LTD
Revenue,Childrens Services,Children's & Education Services,Other Education and Community Budget,5400002913,29.01.2021,Home to College Post 16 Transport,Taxis - Contract Hire,144.6,TJ CAR SERVICES LTD
Revenue,Childrens Services,Children's & Education Services,Children Looked After,5105663444,27.01.2021,Support for Looked After Children,Transport of Clients,141,TJ CAR SERVICES LTD
Revenue,Adult Services,Adult Social Care,Social Support - Social Isolation/Other,5105664271,27.01.2021,Social Isolation/Other Other ST Support,Charges from Independent Providers,935,TOP MOPS LIMITED
Revenue,Adult Services,Adult Social Care,Social Support - Social Isolation/Other,5105662109,20.01.2021,Social Isolation/Other Other ST Support,Professional Services,605,TOP MOPS LIMITED
Revenue,Regeneration,Planning services,Economic Development,5105663947,29.01.2021,Victoria Quays,Cleaning Contracts,981.45,TOP MOPS LIMITED
Revenue,Regeneration,Planning services,Economic Development,5105663187,15.01.2021,Victoria Quays,Cleaning Contracts,60.41,TOP MOPS LIMITED
Revenue,Childrens Services,Children's & Education Services,Special Schools & Alternative Provision,5105664571,27.01.2021,Island Learning Centre,Consultants Fees,239.05,TOP MOPS LIMITED
Revenue,Childrens Services,Children's & Education Services,Special Schools & Alternative Provision,5105664571,27.01.2021,Island Learning Centre,Consultants Fees,54.64,TOP MOPS LIMITED
Revenue,Childrens Services,Children's & Education Services,Special Schools & Alternative Provision,5105664571,27.01.2021,Island Learning Centre,Consultants Fees,245.88,TOP MOPS LIMITED
Revenue,Childrens Services,Children's & Education Services,Special Schools & Alternative Provision,5105664910,29.01.2021,Island Learning Centre,Cleaning Contracts,"2,096.00",TOP MOPS LIMITED
Revenue,Childrens Services,Children's & Education Services,Special Schools & Alternative Provision,5105664568,27.01.2021,Island Learning Centre,Cleaning Contracts,819.6,TOP MOPS LIMITED
Revenue,Childrens Services,Children's & Education Services,Special Schools & Alternative Provision,5105664570,27.01.2021,Island Learning Centre,Cleaning Contracts,"1,048.00",TOP MOPS LIMITED
Revenue,Childrens Services,Children's & Education Services,Special Schools & Alternative Provision,5105664570,27.01.2021,Island Learning Centre,Cleaning Contracts,170.3,TOP MOPS LIMITED
Revenue,Childrens Services,Children's & Education Services,Special Schools & Alternative Provision,5105664872,29.01.2021,Island Learning Centre,Cleaning Contracts,70,TOP MOPS LIMITED
Revenue,Childrens Services,Children's & Education Services,Special Schools & Alternative Provision,5105664909,29.01.2021,Island Learning Centre,Cleaning Contracts,"2,096.00",TOP MOPS LIMITED
Revenue,Childrens Services,Children's & Education Services,Special Schools & Alternative Provision,5105663989,20.01.2021,Island Learning Centre,Consumable Cleaning Materials,459.82,TOP MOPS LIMITED
Revenue,Childrens Services,Children's & Education Services,Other Education and Community Budget,5105665043,29.01.2021,Barton Primary Sshool Disposal,Security of Buildings,120.5,VECTIS GROUP SECURITY LTD
Revenue,Childrens Services,Children's & Education Services,Other Education and Community Budget,5105665043,29.01.2021,Barton Primary Sshool Disposal,Security of Buildings,131.5,VECTIS GROUP SECURITY LTD
Revenue,Childrens Services,Children's & Education Services,Other Education and Community Budget,5105662994,08.01.2021,Barton Primary Sshool Disposal,Security of Buildings,222,VECTIS GROUP SECURITY LTD
Revenue,Regeneration,Central Services,Support Services,5105664274,22.01.2021,Non-operational buildings,Security of Buildings,75,VECTIS GROUP SECURITY LTD
Revenue,Neighbourhoods,Cultural and Related Services,Recreation and Sport,5105663321,13.01.2021,Medina Leisure Centre,Payment to Private Contractors,12,VECTIS GROUP SECURITY LTD
Revenue,Regeneration,Central Services,Support Services,5105664383,27.01.2021,Elmdon (The Laurels),Security of Buildings,75,VECTIS GROUP SECURITY LTD
Revenue,Childrens Services,Children's & Education Services,Other Education and Community Budget,5105663102,08.01.2021,Weston Academy Closure,Security of Buildings,232,VECTIS GROUP SECURITY LTD
Revenue,Childrens Services,Children's & Education Services,Other Education and Community Budget,5105665048,29.01.2021,Weston Academy Closure,Security of Buildings,285.16,VECTIS GROUP SECURITY LTD
Revenue,Childrens Services,Children's & Education Services,Other Education and Community Budget,5105665048,29.01.2021,Weston Academy Closure,Security of Buildings,59.34,VECTIS GROUP SECURITY LTD
Revenue,Childrens Services,Children's & Education Services,Other Education and Community Budget,5105664466,27.01.2021,Ex Studio School Grange Rd East Cowes,Security of Buildings,117,VECTIS GROUP SECURITY LTD
Revenue,Regeneration,Central Services,Support Services,5105664382,27.01.2021,"Westridge, Ryde",Security of Buildings,112,VECTIS GROUP SECURITY LTD
Revenue,Childrens Services,Children's & Education Services,Special Schools & Alternative Provision,5105663315,13.01.2021,Island Learning Centre,Security of Buildings,12,VECTIS GROUP SECURITY LTD
Revenue,Neighbourhoods,Cultural and Related Services,Recreation and Sport,5400002905,29.01.2021,Westridge Squash Courts,Maintenance of Operational Equipment,12,VECTIS GROUP SECURITY LTD
Revenue,Neighbourhoods,Cultural and Related Services,Recreation and Sport,5105663322,13.01.2021,Westridge Squash Courts,Payment to Private Contractors,12,VECTIS GROUP SECURITY LTD
Revenue,Childrens Services,Children's & Education Services,Support Services,5105663317,20.01.2021,Grafton Street Sandown (ex Sandown Yth),Security of Buildings,72,VECTIS GROUP SECURITY LTD
Revenue,Childrens Services,Children's & Education Services,Other Education and Community Budget,5105665044,29.01.2021,Broadlea PS Berry Hill site (was 55909),Security of Buildings,30,VECTIS GROUP SECURITY LTD
Revenue,Childrens Services,Children's & Education Services,Other Education and Community Budget,5105662996,08.01.2021,Broadlea PS Berry Hill site (was 55909),Security of Buildings,30,VECTIS GROUP SECURITY LTD
Revenue,Neighbourhoods,Cultural and Related Services,Recreation and Sport,5105663336,13.01.2021,The Heights,Payment to Private Contractors,72,VECTIS GROUP SECURITY LTD
Revenue,Childrens Services,Children's & Education Services,Other Education and Community Budget,5105663197,13.01.2021,Home to College Post 16 Transport,Taxis - Contract Hire,475.2,HAVEN TAXIS & PRIVATE HIRE
Revenue,Childrens Services,Children's & Education Services,Other Education and Community Budget,5105663200,13.01.2021,Home to School Mainstream Transport,Taxis - Contract Hire,698.6,HAVEN TAXIS & PRIVATE HIRE
Revenue,Adult Services,Adult Social Care,Central Codes (to be reallocated),5105664625,27.01.2021,Gouldings Resource Centre,Property Services - Day to day Maintenance,292.5,WIGHT HEATING LTD
Revenue,Adult Services,Adult Social Care,Central Codes (to be reallocated),5105662492,06.01.2021,Gouldings Resource Centre,Property Services - Day to day Maintenance,325.97,WIGHT HEATING LTD
Revenue,Childrens Services,Children's & Education Services,Other Education and Community Budget,5105664220,22.01.2021,Learning & Development Running Costs,Minor Works,195,WIGHT HEATING LTD
Revenue,Fire & Rescue,Fire & Rescue Services,Fire fighting and Rescue Operations,5105664904,29.01.2021,Business Support  - Fire,Property Services - Planned Maintenance,384.98,WIGHT HEATING LTD
Revenue,Fire & Rescue,Fire & Rescue Services,Fire fighting and Rescue Operations,5105664905,29.01.2021,Business Support  - Fire,Property Services - Day to day Maintenance,204.62,WIGHT HEATING LTD
Revenue,Fire & Rescue,Fire & Rescue Services,Fire fighting and Rescue Operations,5105664222,22.01.2021,Business Support  - Fire,Property Services - Day to day Maintenance,115,WIGHT HEATING LTD
Revenue,Fire & Rescue,Fire & Rescue Services,Fire fighting and Rescue Operations,5105664223,22.01.2021,Business Support  - Fire,Property Services - Day to day Maintenance,300,WIGHT HEATING LTD
Revenue,Adult Services,Adult Social Care,Social Support - Support for Carer,5105664624,27.01.2021,Westminster House,Property Services - Day to day Maintenance,492.03,WIGHT HEATING LTD
Revenue,Childrens Services,Children's & Education Services,Family Support Services,5105664902,29.01.2021,Family Support activity base: 76 Greenlands,Minor Works,814.8,WIGHT HEATING LTD
Revenue,Childrens Services,Children's & Education Services,Family Support Services,5105662493,06.01.2021,Family Support activity base: 76 Greenlands,Property Services - Planned Maintenance,115,WIGHT HEATING LTD
Revenue,Childrens Services,Children's & Education Services,Other Education and Community Budget,5105664219,22.01.2021,Branstone Farm Studies Centre,Property Services - Day to day Maintenance,115,WIGHT HEATING LTD
Revenue,Childrens Services,Children's & Education Services,Sure Start Children's Centres,5105664623,27.01.2021,Family Centres Maintenance,Minor Works,536.03,WIGHT HEATING LTD
Revenue,Childrens Services,Children's & Education Services,Sure Start Children's Centres,5105664901,29.01.2021,Family Centres Maintenance,Minor Works,207.27,WIGHT HEATING LTD
Revenue,Childrens Services,Children's & Education Services,Sure Start Children's Centres,5105664218,22.01.2021,Family Centres Maintenance,Minor Works,80,WIGHT HEATING LTD
Revenue,Adult Services,Adult Social Care,Central Codes (to be reallocated),5105664221,22.01.2021,Adelaide Resource Centre,Property Services - Day to day Maintenance,150,WIGHT HEATING LTD
Revenue,Neighbourhoods,Cultural and Related Services,Recreation and Sport,5105664900,29.01.2021,The Heights,Property Services - Planned Maintenance,934.11,WIGHT HEATING LTD
Revenue,Neighbourhoods,Cultural and Related Services,Recreation and Sport,5105662549,06.01.2021,The Heights,Property Services - Day to day Maintenance,189.34,WIGHT HEATING LTD
Revenue,Regeneration,Central Services,Support Services,5105664216,22.01.2021,"Civic Centre,Sandown",Property Services - Day to day Maintenance,"2,697.44",WIGHT HEATING LTD
Revenue,Childrens Services,Children's & Education Services,Special Schools & Alternative Provision,5105663406,20.01.2021,Island Learning Centre,Catering Equipment,54.09,2468 LTD
Revenue,Childrens Services,Children's & Education Services,Special Schools & Alternative Provision,5105663406,20.01.2021,Island Learning Centre,Catering Equipment,3.24,2468 LTD
Revenue,Adult Services,Housing Services,Homelessness,5105664329,22.01.2021,Private Rented Sector Leasing Scheme,Accommodation Costs - Leaseholder Payments,866.67,2K PROPERTY
Revenue,Childrens Services,Children's & Education Services,Children Looked After,5105664054,22.01.2021,Special Guardianship Order Costs,Support Children,207.73,REDACTED PERSONAL DATA
Revenue,Childrens Services,Children's & Education Services,Children Looked After,5105664660,29.01.2021,Special Guardianship Order Costs,Support Children,207.73,REDACTED PERSONAL DATA
Revenue,Childrens Services,Children's & Education Services,Children Looked After,5105662709,08.01.2021,Special Guardianship Order Costs,Support Children,207.73,REDACTED PERSONAL DATA
Revenue,Childrens Services,Children's & Education Services,Children Looked After,5105663502,15.01.2021,Special Guardianship Order Costs,Support Children,207.73,REDACTED PERSONAL DATA
Revenue,Childrens Services,Children's & Education Services,Children Looked After,5105664054,22.01.2021,In-house Fostering,Boarding Out Allowances,286.47,REDACTED PERSONAL DATA
Revenue,Childrens Services,Children's & Education Services,Children Looked After,5105664054,22.01.2021,In-house Fostering,Boarding Out Allowances,286.47,REDACTED PERSONAL DATA
Revenue,Childrens Services,Children's & Education Services,Children Looked After,5105662709,08.01.2021,In-house Fostering,Boarding Out Allowances,286.47,REDACTED PERSONAL DATA
Revenue,Childrens Services,Children's & Education Services,Children Looked After,5105662709,08.01.2021,In-house Fostering,Boarding Out Allowances,244.47,REDACTED PERSONAL DATA
Revenue,Childrens Services,Children's & Education Services,Children Looked After,5105664660,29.01.2021,In-house Fostering,Boarding Out Allowances,286.47,REDACTED PERSONAL DATA
Revenue,Childrens Services,Children's & Education Services,Children Looked After,5105664660,29.01.2021,In-house Fostering,Boarding Out Allowances,286.47,REDACTED PERSONAL DATA
Revenue,Childrens Services,Children's & Education Services,Children Looked After,5105663502,15.01.2021,In-house Fostering,Boarding Out Allowances,286.47,REDACTED PERSONAL DATA
Revenue,Childrens Services,Children's & Education Services,Children Looked After,5105663502,15.01.2021,In-house Fostering,Boarding Out Allowances,286.47,REDACTED PERSONAL DATA
Revenue,Adult Services,Housing Services,Homelessness,5105664326,22.01.2021,Private Rented Sector Leasing Scheme,Accommodation Costs - Leaseholder Payments,510.25,REDACTED PERSONAL DATA
Revenue,Adult Services,Housing Services,Homelessness,5105664326,22.01.2021,Private Rented Sector Leasing Scheme,Accommodation Costs - Leaseholder Payments,510.25,REDACTED PERSONAL DATA
Revenue,Adult Services,Housing Services,Homelessness,5105664326,22.01.2021,Private Rented Sector Leasing Scheme,Accommodation Costs - Leaseholder Payments,510.25,REDACTED PERSONAL DATA
Revenue,Adult Services,Housing Services,Homelessness,5105664326,22.01.2021,Private Rented Sector Leasing Scheme,Accommodation Costs - Leaseholder Payments,510.25,REDACTED PERSONAL DATA
Revenue,Adult Services,Housing Services,Homelessness,5105664326,22.01.2021,Private Rented Sector Leasing Scheme,Accommodation Costs - Leaseholder Payments,510.25,REDACTED PERSONAL DATA
Revenue,Adult Services,Housing Services,Homelessness,5105664326,22.01.2021,Private Rented Sector Leasing Scheme,Accommodation Costs - Leaseholder Payments,510.25,REDACTED PERSONAL DATA
Revenue,Adult Services,Housing Services,Homelessness,5105664326,22.01.2021,Private Rented Sector Leasing Scheme,Accommodation Costs - Leaseholder Payments,510.25,REDACTED PERSONAL DATA
Revenue,Childrens Services,Children's & Education Services,Children Looked After,5105664044,22.01.2021,Adoption Costs,Support Children,225.83,REDACTED PERSONAL DATA
Revenue,Childrens Services,Children's & Education Services,Children Looked After,5105662699,08.01.2021,Adoption Costs,Support Children,225.83,REDACTED PERSONAL DATA
Revenue,Childrens Services,Children's & Education Services,Children Looked After,5105663492,15.01.2021,Adoption Costs,Support Children,225.83,REDACTED PERSONAL DATA
Revenue,Childrens Services,Children's & Education Services,Children Looked After,5105664650,29.01.2021,Adoption Costs,Support Children,225.83,REDACTED PERSONAL DATA
Revenue,Adult Services,Adult Social Care,Support - Memory /Cognition-older people (65+),5105663887,20.01.2021,Memory & Cognition Residential 65+,Charges from Independent Providers,"3,200.12",ABBERDALE LIMITED
Revenue,Resources,Central Services,Support Services,5105664287,22.01.2021,Payroll,Consultants Fees,"1,262.50",ABSOFT LIMITED
Revenue,Resources,Central Services,Support Services,5105664032,22.01.2021,ICT Contracts,Computer Maintenance,159.52,ABSOFT LIMITED
Revenue,Resources,Central Services,Support Services,5105663156,13.01.2021,Human Resources,Training,175,ACAS
Revenue,Adult Services,Adult Social Care,Learning Disab Supp (to be reallocated),5105664501,27.01.2021,"41 Newport Road, Cowes",Charges from Independent Providers,"5,684.00",TRACSCARE WELLCARE LIFESTYLES
Revenue,Adult Services,Adult Social Care,Learning Disab Supp (to be reallocated),5105664501,27.01.2021,"41 Newport Road, Cowes",Charges from Independent Providers,"2,190.72",TRACSCARE WELLCARE LIFESTYLES
Revenue,Adult Services,Adult Social Care,Learning Disab Supp (to be reallocated),5105664501,27.01.2021,"17 Newport Road, Ventnor",Charges from Independent Providers,"4,553.00",TRACSCARE WELLCARE LIFESTYLES
Revenue,Adult Services,Adult Social Care,Learning Disab Supp (to be reallocated),5105664501,27.01.2021,"17 Newport Road, Ventnor",Charges from Independent Providers,"2,190.72",TRACSCARE WELLCARE LIFESTYLES
Revenue,Adult Services,Adult Social Care,Learning Disab Supp (to be reallocated),5105664501,27.01.2021,Westhorpe Supported Living,Charges from Independent Providers,"5,684.00",TRACSCARE WELLCARE LIFESTYLES
Revenue,Adult Services,Adult Social Care,Learning Disab Supp (to be reallocated),5105664501,27.01.2021,Westhorpe Supported Living,Charges from Independent Providers,"4,060.00",TRACSCARE WELLCARE LIFESTYLES
Revenue,Adult Services,Adult Social Care,Learning Disab Supp (to be reallocated),5105664501,27.01.2021,Westhorpe Supported Living,Charges from Independent Providers,"2,030.00",TRACSCARE WELLCARE LIFESTYLES
Revenue,Adult Services,Adult Social Care,Learning Disab Supp (to be reallocated),5105664501,27.01.2021,"Greengates, Ryde",Charges from Independent Providers,"5,684.00",TRACSCARE WELLCARE LIFESTYLES
Revenue,Adult Services,Adult Social Care,Learning Disab Supp (to be reallocated),5105664501,27.01.2021,"Greengates, Ryde",Charges from Independent Providers,"2,190.72",TRACSCARE WELLCARE LIFESTYLES
Revenue,Adult Services,Adult Social Care,Long Term Support,5105664501,27.01.2021,Seagulls,Charges from Independent Providers,"26,945.12",TRACSCARE WELLCARE LIFESTYLES
Revenue,Adult Services,Adult Social Care,Learning Disab Supp (to be reallocated),5105664501,27.01.2021,"Heath Road, Lake",Charges from Independent Providers,"4,553.00",TRACSCARE WELLCARE LIFESTYLES
Revenue,Adult Services,Adult Social Care,Learning Disab Supp (to be reallocated),5105664501,27.01.2021,"Heath Road, Lake",Charges from Independent Providers,"2,190.72",TRACSCARE WELLCARE LIFESTYLES
Revenue,Adult Services,Adult Social Care,Learning Disab Supp (to be reallocated),5105664501,27.01.2021,"Winton Street, Ryde",Charges from Independent Providers,"5,684.00",TRACSCARE WELLCARE LIFESTYLES
Revenue,Adult Services,Adult Social Care,Learning Disab Supp (to be reallocated),5105664501,27.01.2021,"Winton Street, Ryde",Charges from Independent Providers,"2,190.72",TRACSCARE WELLCARE LIFESTYLES
Revenue,Adult Services,Adult Social Care,Long Term Support,5105664501,27.01.2021,40 Venner Avenue,Charges from Independent Providers,"28,129.64",TRACSCARE WELLCARE LIFESTYLES
Revenue,Adult Services,Adult Social Care,Assistive Equipment & Technology,5105663330,13.01.2021,Community Equipment Store,Operational Equipment,"3,945.00",ACCORA  LIMITED
Revenue,Fire & Rescue,Fire & Rescue Services,Fire fighting and Rescue Operations,5105662681,08.01.2021,Fire Technical Support,Vehicle Maintenance Costs,27.27,ADAMS MOREY LTD
Revenue,Fire & Rescue,Fire & Rescue Services,Fire fighting and Rescue Operations,5105662682,08.01.2021,Fire Technical Support,Vehicle Maintenance Costs,-27.27,ADAMS MOREY LTD
Revenue,Fire & Rescue,Fire & Rescue Services,Fire fighting and Rescue Operations,5105662683,08.01.2021,Fire Technical Support,Vehicle Maintenance Costs,113.93,ADAMS MOREY LTD
Revenue,Fire & Rescue,Fire & Rescue Services,Fire fighting and Rescue Operations,5105662684,08.01.2021,Fire Technical Support,Vehicle Maintenance Costs,-113.93,ADAMS MOREY LTD
Revenue,Fire & Rescue,Fire & Rescue Services,Fire fighting and Rescue Operations,5105662685,08.01.2021,Fire Technical Support,Vehicle Maintenance Costs,68.65,ADAMS MOREY LTD
Revenue,Fire & Rescue,Fire & Rescue Services,Fire fighting and Rescue Operations,5105662686,08.01.2021,Fire Technical Support,Vehicle Maintenance Costs,-68.65,ADAMS MOREY LTD
Revenue,Childrens Services,Children's & Education Services,Management & Support Services,5105663069,13.01.2021,Education Out of School,Professional Services,555,A-DAY CONSULTANTS LTD
Revenue,Childrens Services,Children's & Education Services,Management & Support Services,5105663066,13.01.2021,Education Out of School,Professional Services,555,A-DAY CONSULTANTS LTD
Revenue,Childrens Services,Children's & Education Services,Management & Support Services,5105663344,20.01.2021,Education Out of School,Professional Services,577.24,A-DAY CONSULTANTS LTD
Revenue,Childrens Services,Children's & Education Services,Management & Support Services,5105662034,06.01.2021,Education Out of School,Professional Services,575.8,A-DAY CONSULTANTS LTD
Revenue,Childrens Services,Children's & Education Services,Management & Support Services,5105662027,06.01.2021,Education Out of School,Professional Services,555,A-DAY CONSULTANTS LTD
Revenue,Childrens Services,Children's & Education Services,Management & Support Services,5105662028,06.01.2021,Education Out of School,Professional Services,555,A-DAY CONSULTANTS LTD
Revenue,Childrens Services,Children's & Education Services,Management & Support Services,5105662524,08.01.2021,Education Out of School,Professional Services,555,A-DAY CONSULTANTS LTD
Revenue,Childrens Services,Children's & Education Services,Management & Support Services,5105662525,08.01.2021,Education Out of School,Professional Services,555,A-DAY CONSULTANTS LTD
Revenue,Childrens Services,Children's & Education Services,Management & Support Services,5105662586,08.01.2021,Education Out of School,Professional Services,555,A-DAY CONSULTANTS LTD
Revenue,Childrens Services,Children's & Education Services,Management & Support Services,5400002888,29.01.2021,Pupil Premium Managed Centrally,Professional Services,-1,A-DAY CONSULTANTS LTD
Revenue,Childrens Services,Children's & Education Services,Management & Support Services,5400002889,29.01.2021,Pupil Premium Managed Centrally,Professional Services,0.15,A-DAY CONSULTANTS LTD
Revenue,Childrens Services,Children's & Education Services,Management & Support Services,5400002889,29.01.2021,Pupil Premium Managed Centrally,Professional Services,0.35,A-DAY CONSULTANTS LTD
Revenue,Childrens Services,Children's & Education Services,Management & Support Services,5400002891,29.01.2021,Pupil Premium Managed Centrally,Professional Services,0.25,A-DAY CONSULTANTS LTD
Revenue,Childrens Services,Children's & Education Services,Management & Support Services,5400002891,29.01.2021,Pupil Premium Managed Centrally,Professional Services,0.3,A-DAY CONSULTANTS LTD
Revenue,Childrens Services,Children's & Education Services,Special Schools & Alternative Provision,5105665038,29.01.2021,Island Learning Centre,Agency staff,185,A-DAY CONSULTANTS LTD
Revenue,Childrens Services,Children's & Education Services,Special Schools & Alternative Provision,5105665038,29.01.2021,Island Learning Centre,Agency staff,555,A-DAY CONSULTANTS LTD
Revenue,Childrens Services,Children's & Education Services,Special Schools & Alternative Provision,5105664969,29.01.2021,Island Learning Centre,Agency staff,481,A-DAY CONSULTANTS LTD
Revenue,Childrens Services,Children's & Education Services,Special Schools & Alternative Provision,5105662938,08.01.2021,Island Learning Centre,Agency staff,481,A-DAY CONSULTANTS LTD
Revenue,Childrens Services,Children's & Education Services,Special Schools & Alternative Provision,5105662945,08.01.2021,Island Learning Centre,Agency staff,555,A-DAY CONSULTANTS LTD
Revenue,Childrens Services,Children's & Education Services,Special Schools & Alternative Provision,5105662942,08.01.2021,Island Learning Centre,Agency staff,555,A-DAY CONSULTANTS LTD
Revenue,Neighbourhoods,Central Services,Central Services to the Public,5105664290,22.01.2021,Reopening High Streets Safely,Professional Services,468,ADGIFTDISCOUNTS LTD
Revenue,Childrens Services,Children's & Education Services,Other Education and Community Budget,5105662911,13.01.2021,Home to School SEN Transport (LA),Taxis - Contract Hire,810,REDACTED PERSONAL DATA
Revenue,Childrens Services,Children's & Education Services,Other Education and Community Budget,5105663190,13.01.2021,Home to School SEN Transport (LA),Taxis - Contract Hire,350,REDACTED PERSONAL DATA
Revenue,Childrens Services,Children's & Education Services,Other Education and Community Budget,5105662920,13.01.2021,Home to College Post 16 Transport,Taxis - Contract Hire,600,REDACTED PERSONAL DATA
Revenue,Childrens Services,Children's & Education Services,Other Education and Community Budget,5105662926,13.01.2021,Home to School Mainstream Transport,Taxis - Contract Hire,780,REDACTED PERSONAL DATA
Revenue,Childrens Services,Children's & Education Services,Other Education and Community Budget,5105662915,13.01.2021,Home to School Mainstream Transport,Taxis - Contract Hire,780,REDACTED PERSONAL DATA
Revenue,Childrens Services,Children's & Education Services,Other Education and Community Budget,5105662653,13.01.2021,Home to School Mainstream Transport,Taxis - Contract Hire,"1,040.00",REDACTED PERSONAL DATA
Revenue,Neighbourhoods,Highways and Transport Services,"Airports, Harbours & Toll Facilities",5105663409,13.01.2021,Newport Harbour Account,Payment to Private Contractors,"1,500.00",ADLER & ALLAN
Revenue,Regeneration,Central Services,Support Services,5105662946,13.01.2021,17 Fairlee Road,Security of Buildings,140,ADT FIRE AND SECURITY PLC
Revenue,Regeneration,Central Services,Support Services,5105664245,29.01.2021,Administrative Buildings,Security of Buildings,232.3,ADT FIRE AND SECURITY PLC
Revenue,Regeneration,Central Services,Support Services,5105662946,13.01.2021,Administrative Buildings,Security of Buildings,140,ADT FIRE AND SECURITY PLC
Revenue,Childrens Services,Children's & Education Services,Other Education and Community Budget,5105662946,13.01.2021,Children's Services Strategic Management,Security of Buildings,140,ADT FIRE AND SECURITY PLC
Revenue,Neighbourhoods,Environmental & Regulatory Services,"Cemetery, Cremation & Mortuary Services",5105662946,13.01.2021,Cemeteries-Ryde,Security of Buildings,140,ADT FIRE AND SECURITY PLC
Revenue,Neighbourhoods,Highways and Transport Services,"Airports, Harbours & Toll Facilities",5105662946,13.01.2021,Ferry Management,Security of Buildings,140,ADT FIRE AND SECURITY PLC
Revenue,Childrens Services,Children's & Education Services,Other Education and Community Budget,5105662946,13.01.2021,Learning & Development Running Costs,Security of Buildings,140,ADT FIRE AND SECURITY PLC
Revenue,Neighbourhoods,Cultural and Related Services,Culture and Heritage,5105663404,13.01.2021,Medina Theatre,Security of Buildings,415.85,ADT FIRE AND SECURITY PLC
Revenue,Neighbourhoods,Cultural and Related Services,Library Service,5105662946,13.01.2021,Newport Library,Security of Buildings,140,ADT FIRE AND SECURITY PLC
Revenue,Regeneration,Central Services,Support Services,5105662946,13.01.2021,Parklands,Security of Buildings,140,ADT FIRE AND SECURITY PLC
Revenue,Neighbourhoods,Cultural and Related Services,Library Service,5105662946,13.01.2021,Ryde Library,Security of Buildings,140,ADT FIRE AND SECURITY PLC
Revenue,Childrens Services,Children's & Education Services,Other Education and Community Budget,5105662946,13.01.2021,SEND Independent Advice & Support,Security of Buildings,140,ADT FIRE AND SECURITY PLC
Revenue,Neighbourhoods,Cultural and Related Services,Recreation and Sport,5105660788,15.01.2021,Medina Leisure Centre,Security of Buildings,309.78,ADT FIRE AND SECURITY PLC
Revenue,Neighbourhoods,Cultural and Related Services,Recreation and Sport,5105660398,15.01.2021,Medina Leisure Centre,Security of Buildings,-124.79,ADT FIRE AND SECURITY PLC
Revenue,Neighbourhoods,Cultural and Related Services,Recreation and Sport,5105663290,15.01.2021,Medina Leisure Centre,Security of Buildings,-56.22,ADT FIRE AND SECURITY PLC
Revenue,Neighbourhoods,Cultural and Related Services,Recreation and Sport,5105662946,13.01.2021,Medina Leisure Centre,Security of Buildings,140,ADT FIRE AND SECURITY PLC
Revenue,Neighbourhoods,Cultural and Related Services,Library Service,5105662946,13.01.2021,Bembridge Library,Security of Buildings,140,ADT FIRE AND SECURITY PLC
Revenue,Neighbourhoods,Cultural and Related Services,Library Service,5105662946,13.01.2021,Cowes Library,Security of Buildings,140,ADT FIRE AND SECURITY PLC
Revenue,Neighbourhoods,Cultural and Related Services,Culture and Heritage,5105662946,13.01.2021,Archives,Security of Buildings,140,ADT FIRE AND SECURITY PLC
Revenue,Adult Services,Adult Social Care,Assistive Equipment & Technology,5105662946,13.01.2021,Community Equipment Store,Security of Buildings,140,ADT FIRE AND SECURITY PLC
Revenue,Resources,Central Services,Support Services,5105662946,13.01.2021,60 Dodnor Lane Store,Security of Buildings,140,ADT FIRE AND SECURITY PLC
Revenue,Regeneration,Central Services,Support Services,5105662946,13.01.2021,"Mariners Way, Cowes",Security of Buildings,140,ADT FIRE AND SECURITY PLC
Revenue,Neighbourhoods,Cultural and Related Services,Library Service,5105662946,13.01.2021,Ventnor Library,Security of Buildings,140,ADT FIRE AND SECURITY PLC
Revenue,Adult Services,Housing Services,Supporting People,5105662946,13.01.2021,Supporting People Homelessness,Security of Buildings,140,ADT FIRE AND SECURITY PLC
Revenue,Regeneration,Central Services,Support Services,5105662946,13.01.2021,"Guildhall,Newport",Security of Buildings,140,ADT FIRE AND SECURITY PLC
Revenue,Childrens Services,Children's & Education Services,Other Education and Community Budget,5105662946,13.01.2021,Branstone Farm Studies Centre,Security of Buildings,140,ADT FIRE AND SECURITY PLC
Revenue,Neighbourhoods,Cultural and Related Services,Library Service,5105662946,13.01.2021,East Cowes Library,Security of Buildings,140,ADT FIRE AND SECURITY PLC
Revenue,Neighbourhoods,Cultural and Related Services,Library Service,5105662946,13.01.2021,Sandown Library,Security of Buildings,140,ADT FIRE AND SECURITY PLC
Revenue,Regeneration,Central Services,Support Services,5105662946,13.01.2021,"County Hall,Newport",Security of Buildings,140,ADT FIRE AND SECURITY PLC
Revenue,Regeneration,Central Services,Support Services,5105662946,13.01.2021,"Jubilee Stores, Newport",Security of Buildings,140,ADT FIRE AND SECURITY PLC
Revenue,Neighbourhoods,Cultural and Related Services,Culture and Heritage,5105662946,13.01.2021,Cothey Bottom Store RYDE,Security of Buildings,140,ADT FIRE AND SECURITY PLC
Revenue,Neighbourhoods,Cultural and Related Services,Recreation and Sport,5105662946,13.01.2021,Westridge Squash Courts,Security of Buildings,140,ADT FIRE AND SECURITY PLC
Revenue,Neighbourhoods,Environmental & Regulatory Services,"Cemetery, Cremation & Mortuary Services",5105662946,13.01.2021,Cemeteries-Northwood,Security of Buildings,280,ADT FIRE AND SECURITY PLC
Revenue,Childrens Services,Children's & Education Services,Sure Start Children's Centres,5105662946,13.01.2021,Family Centres Maintenance,Security of Buildings,140,ADT FIRE AND SECURITY PLC
Revenue,Childrens Services,Children's & Education Services,Sure Start Children's Centres,5105662946,13.01.2021,Family Centres Maintenance,Security of Buildings,140,ADT FIRE AND SECURITY PLC
Revenue,Childrens Services,Children's & Education Services,Sure Start Children's Centres,5105662946,13.01.2021,Family Centres Maintenance,Security of Buildings,140,ADT FIRE AND SECURITY PLC
Revenue,Childrens Services,Children's & Education Services,Sure Start Children's Centres,5105662946,13.01.2021,Family Centres Maintenance,Security of Buildings,140,ADT FIRE AND SECURITY PLC
Revenue,Childrens Services,Children's & Education Services,Sure Start Children's Centres,5105662946,13.01.2021,Family Centres Maintenance,Security of Buildings,140,ADT FIRE AND SECURITY PLC
Revenue,Childrens Services,Children's & Education Services,Sure Start Children's Centres,5105662946,13.01.2021,Family Centres Maintenance,Security of Buildings,140,ADT FIRE AND SECURITY PLC
Revenue,Childrens Services,Children's & Education Services,Sure Start Children's Centres,5105662946,13.01.2021,Family Centres Maintenance,Security of Buildings,140,ADT FIRE AND SECURITY PLC
Revenue,Childrens Services,Children's & Education Services,Sure Start Children's Centres,5105660354,06.01.2021,Family Centres Maintenance,Property Services - Day to day Maintenance,-114,ADT FIRE AND SECURITY PLC
Revenue,Childrens Services,Children's & Education Services,Sure Start Children's Centres,5105661715,06.01.2021,Family Centres Maintenance,Property Services - Day to day Maintenance,179,ADT FIRE AND SECURITY PLC
Revenue,Neighbourhoods,Environmental & Regulatory Services,"Cemetery, Cremation & Mortuary Services",5105662946,13.01.2021,Crematorium,Security of Buildings,140,ADT FIRE AND SECURITY PLC
Revenue,Neighbourhoods,Cultural and Related Services,Culture and Heritage,5105662946,13.01.2021,Roman Villa Newport,Security of Buildings,140,ADT FIRE AND SECURITY PLC
Revenue,Neighbourhoods,Cultural and Related Services,Culture and Heritage,5105662946,13.01.2021,Dinosaur Isle Museum (Sandown Geology),Security of Buildings,140,ADT FIRE AND SECURITY PLC
Revenue,Neighbourhoods,Cultural and Related Services,Recreation and Sport,5105662946,13.01.2021,The Heights,Security of Buildings,140,ADT FIRE AND SECURITY PLC
Revenue,Neighbourhoods,Cultural and Related Services,Recreation and Sport,5105663292,15.01.2021,The Heights,Security of Buildings,-56.22,ADT FIRE AND SECURITY PLC
Revenue,Neighbourhoods,Cultural and Related Services,Recreation and Sport,5105660405,15.01.2021,The Heights,Security of Buildings,309.78,ADT FIRE AND SECURITY PLC
Revenue,Neighbourhoods,Cultural and Related Services,Recreation and Sport,5105660406,15.01.2021,The Heights,Security of Buildings,-124.79,ADT FIRE AND SECURITY PLC
Revenue,Adult Services,Adult Social Care,Commissioning & Service Delivery,5105663807,27.01.2021,Group Manager Leaning Disability Homes,Publications,64.94,AGORA BUSINESS PUBLICATIONS LLP
Revenue,Resources,Central Services,Central Services to the Public,5105662436,06.01.2021,RE Covid-19,Consultants Fees,700,AIREY CONSULTANCY SERVICES LTD
Revenue,Resources,Central Services,Central Services to the Public,5105662437,04.01.2021,RE Covid-19,Consultants Fees,700,AIREY CONSULTANCY SERVICES LTD
Revenue,Adult Services,Adult Social Care,Central Codes (to be reallocated),5105662630,06.01.2021,Gouldings Resource Centre,Property Services - Day to day Maintenance,95,AIRTEK SERVICES IOW LTD
Revenue,Neighbourhoods,Cultural and Related Services,Recreation and Sport,5105664945,29.01.2021,Medina Leisure Centre,Property Services - Day to day Maintenance,400,AIRTEK SERVICES IOW LTD
Revenue,Adult Services,Adult Social Care,Learning Disab Supp (to be reallocated),5105662628,06.01.2021,Saxonbury,Property Services - Day to day Maintenance,130,AIRTEK SERVICES IOW LTD
Revenue,Neighbourhoods,Cultural and Related Services,Recreation and Sport,5105664943,29.01.2021,The Heights,Property Services - Day to day Maintenance,300,AIRTEK SERVICES IOW LTD
Revenue,Childrens Services,Children's & Education Services,Children Looked After,5105662865,08.01.2021,Children placed with Family&Friends,Boarding Out Allowances,286.47,REDACTED PERSONAL DATA
Revenue,Childrens Services,Children's & Education Services,Children Looked After,5105664212,22.01.2021,Children placed with Family&Friends,Boarding Out Allowances,286.47,REDACTED PERSONAL DATA
Revenue,Childrens Services,Children's & Education Services,Children Looked After,5105664816,29.01.2021,Children placed with Family&Friends,Boarding Out Allowances,286.47,REDACTED PERSONAL DATA
Revenue,Childrens Services,Children's & Education Services,Children Looked After,5105663657,15.01.2021,Children placed with Family&Friends,Boarding Out Allowances,286.47,REDACTED PERSONAL DATA
Revenue,Adult Services,Adult Social Care,Learning Disability Suppt-adults (18-64),5105663885,20.01.2021,Learning Disability Residential 18-64,Charges from Independent Providers,"8,743.00",AITCH CARE HOMES (LONDON) LTD
Revenue,Adult Services,Adult Social Care,Mental Health Support - adults (18-64),5105665009,29.01.2021,Mental Health Residential 18-64,Charges from Independent Providers,"17,529.45",AITCH CARE HOMES (LONDON) LTD
Revenue,Childrens Services,Children's & Education Services,Other Education and Community Budget,5105663091,08.01.2021,Home to School Mainstream Transport,Taxis - Contract Hire,432,AKAR TAXIS
Revenue,Childrens Services,Children's & Education Services,Other Education and Community Budget,5105663092,08.01.2021,Home to School Mainstream Transport,Taxis - Contract Hire,"1,064.00",AKAR TAXIS
Revenue,Resources,Central Services,Support Services,5105663737,15.01.2021,Insurance,Professional Subscriptions,582,ALARM
Revenue,Resources,Highways and Transport Services,Public Transport,5105663375,13.01.2021,Transport Fleet Administration,Vehicle Fuel Costs,"10,381.60",ALLSTAR BUSINESS SOLUTIONS LTD
Revenue,Childrens Services,Children's & Education Services,Other Education and Community Budget,5105663438,27.01.2021,Home to School SEN Transport (LA),Taxis - Contract Hire,-70,ALPHA (IOW) LTD
Revenue,Childrens Services,Children's & Education Services,Other Education and Community Budget,5105662989,08.01.2021,Home to School SEN Transport (LA),Taxis - Contract Hire,800,ALPHA (IOW) LTD
Revenue,Childrens Services,Children's & Education Services,Other Education and Community Budget,5105662989,08.01.2021,Home to School SEN Transport (LA),Taxis - Contract Hire,"2,156.00",ALPHA (IOW) LTD
Revenue,Childrens Services,Children's & Education Services,Other Education and Community Budget,5105662989,08.01.2021,Home to School SEN Transport (LA),Taxis - Contract Hire,224,ALPHA (IOW) LTD
Revenue,Childrens Services,Children's & Education Services,Other Education and Community Budget,5105662989,08.01.2021,Home to School SEN Transport (LA),Taxis - Contract Hire,"1,920.00",ALPHA (IOW) LTD
Revenue,Childrens Services,Children's & Education Services,Other Education and Community Budget,5105662989,08.01.2021,Home to School SEN Transport (LA),Taxis - Contract Hire,840,ALPHA (IOW) LTD
Revenue,Childrens Services,Children's & Education Services,Other Education and Community Budget,5105662989,08.01.2021,Home to School SEN Transport (LA),Taxis - Contract Hire,"1,680.00",ALPHA (IOW) LTD
Revenue,Childrens Services,Children's & Education Services,Other Education and Community Budget,5105662989,08.01.2021,Home to School SEN Transport (LA),Taxis - Contract Hire,630,ALPHA (IOW) LTD
Revenue,Childrens Services,Children's & Education Services,Other Education and Community Budget,5105662989,08.01.2021,Home to School SEN Transport (LA),Taxis - Contract Hire,630,ALPHA (IOW) LTD
Revenue,Childrens Services,Children's & Education Services,Other Education and Community Budget,5105662989,08.01.2021,Home to School SEN Transport (LA),Taxis - Contract Hire,560,ALPHA (IOW) LTD
Revenue,Childrens Services,Children's & Education Services,Other Education and Community Budget,5105662989,08.01.2021,Home to School SEN Transport (LA),Taxis - Contract Hire,800,ALPHA (IOW) LTD
Revenue,Childrens Services,Children's & Education Services,Other Education and Community Budget,5105662989,08.01.2021,Home to School SEN Transport (LA),Taxis - Contract Hire,"1,840.00",ALPHA (IOW) LTD
Revenue,Childrens Services,Children's & Education Services,Other Education and Community Budget,5105662989,08.01.2021,Home to School SEN Transport (LA),Taxis - Contract Hire,880,ALPHA (IOW) LTD
Revenue,Childrens Services,Children's & Education Services,Other Education and Community Budget,5105662989,08.01.2021,Home to School SEN Transport (LA),Taxis - Contract Hire,"1,120.00",ALPHA (IOW) LTD
Revenue,Childrens Services,Children's & Education Services,Other Education and Community Budget,5105662989,08.01.2021,Home to School SEN Transport (LA),Taxis - Contract Hire,30,ALPHA (IOW) LTD
Revenue,Childrens Services,Children's & Education Services,Management & Support Services,5105662659,06.01.2021,Education Direct Payments,Transport of Clients,325,ALPHA (IOW) LTD
Revenue,Childrens Services,Children's & Education Services,Other Education and Community Budget,5105662989,08.01.2021,Home to College Post 16 Transport,Taxis - Contract Hire,"1,260.00",ALPHA (IOW) LTD
Revenue,Childrens Services,Children's & Education Services,Other Education and Community Budget,5105662989,08.01.2021,Home to College Post 16 Transport,Taxis - Contract Hire,630,ALPHA (IOW) LTD
Revenue,Childrens Services,Children's & Education Services,Other Education and Community Budget,5105662989,08.01.2021,Home to College Post 16 Transport,Taxis - Contract Hire,770,ALPHA (IOW) LTD
Revenue,Childrens Services,Children's & Education Services,Other Education and Community Budget,5105662989,08.01.2021,Home to College Post 16 Transport,Taxis - Contract Hire,840,ALPHA (IOW) LTD
Revenue,Childrens Services,Children's & Education Services,Safeguarding Children/Young Peoples Svs,5105664561,27.01.2021,Childrens Assess & Safeguarding Team,Transport of Clients,372.2,ALPHA (IOW) LTD
Revenue,Childrens Services,Children's & Education Services,Other Education and Community Budget,5105662989,08.01.2021,Home to School Mainstream Transport,Taxis - Contract Hire,"1,960.00",ALPHA (IOW) LTD
Revenue,Childrens Services,Children's & Education Services,Other Education and Community Budget,5105662989,08.01.2021,Home to School Mainstream Transport,Taxis - Contract Hire,700,ALPHA (IOW) LTD
Revenue,Childrens Services,Children's & Education Services,Other Education and Community Budget,5105662989,08.01.2021,Home to School Mainstream Transport,Taxis - Contract Hire,"1,456.00",ALPHA (IOW) LTD
Revenue,Childrens Services,Children's & Education Services,Other Education and Community Budget,5105662989,08.01.2021,Home to School Mainstream Transport,Taxis - Contract Hire,700,ALPHA (IOW) LTD
Revenue,Childrens Services,Children's & Education Services,Other Education and Community Budget,5105662989,08.01.2021,Home to School Mainstream Transport,Taxis - Contract Hire,"3,415.00",ALPHA (IOW) LTD
Revenue,Childrens Services,Children's & Education Services,Other Education and Community Budget,5105662989,08.01.2021,Home to School Mainstream Transport,Taxis - Contract Hire,980,ALPHA (IOW) LTD
Revenue,Childrens Services,Children's & Education Services,Other Education and Community Budget,5105662989,08.01.2021,Home to School Mainstream Transport,Taxis - Contract Hire,700,ALPHA (IOW) LTD
Revenue,Childrens Services,Children's & Education Services,Other Education and Community Budget,5105662989,08.01.2021,Home to School Mainstream Transport,Taxis - Contract Hire,"1,570.00",ALPHA (IOW) LTD
Revenue,Childrens Services,Children's & Education Services,Other Education and Community Budget,5105662989,08.01.2021,Home to School Mainstream Transport,Taxis - Contract Hire,840,ALPHA (IOW) LTD
Revenue,Childrens Services,Children's & Education Services,Other Education and Community Budget,5105662989,08.01.2021,Home to School Mainstream Transport,Taxis - Contract Hire,540,ALPHA (IOW) LTD
Revenue,Childrens Services,Children's & Education Services,Other Education and Community Budget,5105662989,08.01.2021,Home to School Mainstream Transport,Taxis - Contract Hire,700,ALPHA (IOW) LTD
Revenue,Adult Services,Adult Social Care,Learning Disability Suppt-adults (18-64),5105663839,20.01.2021,Learning Disability Residential 18-64,Charges from Independent Providers,"3,836.84",ALPHAGRANGE LTD
Revenue,Childrens Services,Children's & Education Services,Children Looked After,5105664016,20.01.2021,In-house Fostering,Support Children,200,REDACTED PERSONAL DATA
Revenue,Neighbourhoods,Environmental & Regulatory Services,Waste Disposal,5105663388,13.01.2021,Waste Disposal - Amey Contract,Waste Contractors,"191,139.79",AMEY (IOW) SPV LIMITED
Revenue,Neighbourhoods,Environmental & Regulatory Services,Waste Disposal,5105663386,13.01.2021,Waste Disposal - Amey Contract,Waste Contractors,367.68,AMEY (IOW) SPV LIMITED
Revenue,Neighbourhoods,Environmental & Regulatory Services,Recycling,5105663388,13.01.2021,Waste Recycling - Amey Contract,Waste Contractors,"19,568.70",AMEY (IOW) SPV LIMITED
Revenue,Neighbourhoods,Environmental & Regulatory Services,Waste Collection,5105663386,13.01.2021,Waste Collection - Amey Contract,Waste Contractors,"1,470.74",AMEY (IOW) SPV LIMITED
Revenue,Neighbourhoods,Environmental & Regulatory Services,Waste Collection,5105663388,13.01.2021,Waste Collection - Amey Contract,Waste Contractors,"125,170.58",AMEY (IOW) SPV LIMITED
Revenue,Neighbourhoods,Environmental & Regulatory Services,Waste Collection,5105663387,13.01.2021,Waste Contract Income,Waste Contractors,"5,102.87",AMEY (IOW) SPV LIMITED
Revenue,Adult Services,Balance Sheet,Balance Sheet,5105663840,20.01.2021,Reacted Personal Data,Order Settlement to Bal Sht GL,"2,497.32",ANCONA CARE HOME
Revenue,Adult Services,Adult Social Care,Physical Support - older people (65+),5105663840,20.01.2021,Physical Support Residential 65+,Charges from Independent Providers,"2,028.32",ANCONA CARE HOME
Revenue,Adult Services,Adult Social Care,Physical Support - older people (65+),5105663840,20.01.2021,Physical Support Residential 65+,Charges from Independent Providers,"2,124.08",ANCONA CARE HOME
Revenue,Adult Services,Adult Social Care,Physical Support - older people (65+),5105663840,20.01.2021,Physical Support Residential 65+,Charges from Independent Providers,"2,124.08",ANCONA CARE HOME
Revenue,Adult Services,Adult Social Care,Physical Support - older people (65+),5105663840,20.01.2021,Physical Support Residential 65+,Charges from Independent Providers,476,ANCONA CARE HOME
Revenue,Assistant Chief Executive,Central Services,Support Services,5105663727,15.01.2021,Print Unit,Stationery,35.36,ANTALIS MCNAUGHTON
Revenue,Assistant Chief Executive,Central Services,Support Services,5105663727,15.01.2021,Print Unit,Stationery,86.22,ANTALIS MCNAUGHTON
Revenue,Assistant Chief Executive,Central Services,Support Services,5105663728,15.01.2021,Print Unit,Stationery,67.84,ANTALIS MCNAUGHTON
Revenue,Assistant Chief Executive,Central Services,Support Services,5105663729,15.01.2021,Print Unit,Stationery,71.64,ANTALIS MCNAUGHTON
Revenue,Assistant Chief Executive,Central Services,Support Services,5105663729,15.01.2021,Print Unit,Stationery,81.3,ANTALIS MCNAUGHTON
Revenue,Assistant Chief Executive,Central Services,Support Services,5105663729,15.01.2021,Print Unit,Stationery,15.36,ANTALIS MCNAUGHTON
Revenue,Assistant Chief Executive,Central Services,Support Services,5105663729,15.01.2021,Print Unit,Stationery,18.51,ANTALIS MCNAUGHTON
Revenue,Assistant Chief Executive,Central Services,Support Services,5105662518,06.01.2021,Print Unit,Stationery,47.84,ANTALIS MCNAUGHTON
Revenue,Assistant Chief Executive,Central Services,Support Services,5105662518,06.01.2021,Print Unit,Stationery,35.36,ANTALIS MCNAUGHTON
Revenue,Adult Services,Adult Social Care,Assistive Equipment & Technology,5105663740,15.01.2021,Wightcare,Operational Equipment,600,ANYWHERE CARE LIMITED
Revenue,Adult Services,Adult Social Care,Assistive Equipment & Technology,5105663778,20.01.2021,Wightcare,Operational Equipment,300,ANYWHERE CARE LIMITED
Revenue,Adult Services,Adult Social Care,Assistive Equipment & Technology,5105664257,27.01.2021,Wightcare,Operational Equipment,420,ANYWHERE CARE LIMITED
Revenue,Resources,Central Services,Support Services,5105664250,29.01.2021,County Hall Central Mail Room,Clothing & Laundry,9.34,ARCO LTD
Revenue,Resources,Central Services,Support Services,5105662438,06.01.2021,County Hall Central Mail Room,Clothing & Laundry,46.04,ARCO LTD
Revenue,Resources,Central Services,Support Services,5105661933,06.01.2021,County Hall Central Mail Room,Clothing & Laundry,44.28,ARCO LTD
Revenue,Resources,Central Services,Support Services,5105661933,06.01.2021,County Hall Central Mail Room,Clothing & Laundry,15.08,ARCO LTD
Revenue,Resources,Central Services,Support Services,5105662438,06.01.2021,County Hall Central Mail Room,Clothing & Laundry,3.6,ARCO LTD
Revenue,Resources,Central Services,Support Services,5105662062,06.01.2021,County Hall Central Mail Room,Clothing & Laundry,49.65,ARCO LTD
Revenue,Resources,Central Services,Support Services,5105662062,06.01.2021,County Hall Central Mail Room,Clothing & Laundry,12.66,ARCO LTD
Revenue,Resources,Central Services,Support Services,5105662062,06.01.2021,County Hall Central Mail Room,Clothing & Laundry,5.4,ARCO LTD
Revenue,Resources,Central Services,Support Services,5105662085,06.01.2021,County Hall Central Mail Room,Clothing & Laundry,25.3,ARCO LTD
Revenue,Resources,Central Services,Support Services,5105661933,06.01.2021,County Hall Central Mail Room,Clothing & Laundry,18.08,ARCO LTD
Revenue,Resources,Central Services,Support Services,5105661933,06.01.2021,County Hall Central Mail Room,Clothing & Laundry,14.4,ARCO LTD
Revenue,Fire & Rescue,Fire & Rescue Services,Fire fighting and Rescue Operations,5105664608,27.01.2021,Fire Technical Support,General Materials,26.8,ARCO LTD
Revenue,Fire & Rescue,Fire & Rescue Services,Fire fighting and Rescue Operations,5105663793,20.01.2021,Fire Technical Support,General Materials,205.6,ARCO LTD
Revenue,Fire & Rescue,Fire & Rescue Services,Fire fighting and Rescue Operations,5105662440,04.01.2021,Fire Technical Support,General Materials,79.1,ARCO LTD
Revenue,Fire & Rescue,Fire & Rescue Services,Fire fighting and Rescue Operations,5105662440,04.01.2021,Fire Technical Support,General Materials,6.16,ARCO LTD
Revenue,Neighbourhoods,Cultural and Related Services,Open Spaces,5105664442,27.01.2021,Other Grounds Maintenance,Clothing & Laundry,18.86,ARCO LTD
Revenue,Neighbourhoods,Highways and Transport Services,Parking Services,5105661007,08.01.2021,Parking Attendants,Clothing & Laundry,10.46,ARCO LTD
Revenue,Regeneration,Planning services,Economic Development,5105664547,27.01.2021,Branstone Farm Project,Property Services - Day to day Maintenance,149.4,ARID DESIGN LTD
Revenue,Regeneration,Planning services,Economic Development,5105664547,27.01.2021,Branstone Farm Project,Professional Services,"6,500.00",ARID DESIGN LTD
Revenue,Regeneration,Planning services,Economic Development,5105664548,27.01.2021,Branstone Farm Project,Professional Services,"1,600.00",ARID DESIGN LTD
Revenue,Adult Services,Adult Social Care,Assistive Equipment & Technology,5105663269,13.01.2021,Community Equipment Store,Operational Equipment,48.44,ARJO UK LTD
Revenue,Adult Services,Adult Social Care,Assistive Equipment & Technology,5105663269,13.01.2021,Community Equipment Store,Operational Equipment,5.93,ARJO UK LTD
Revenue,Adult Services,Adult Social Care,Social Support - Support for Carer,5105663897,20.01.2021,Carers Residential,Charges from Independent Providers,"2,497.32",ASHMERE DERBYSHIRE LIMITED
Revenue,Resources,Children's & Education Services,Other Education and Community Budget,5105664853,29.01.2021,Specialist Cross-Council Training,Training,210,ASTRID DAVIES CONSULTING LTD
Revenue,Resources,Children's & Education Services,Other Education and Community Budget,5105662622,06.01.2021,Specialist Cross-Council Training,Training,70,ASTRID DAVIES CONSULTING LTD
Revenue,Resources,Children's & Education Services,Other Education and Community Budget,5105662364,08.01.2021,Specialist Cross-Council Training,Training,70,ASTRID DAVIES CONSULTING LTD
Revenue,Childrens Services,Children's & Education Services,Management & Support Services,5105662514,06.01.2021,Specialist Teacher Advisors,Training,330,ATKEY SOLUTIONS LTD
Revenue,Neighbourhoods,Cultural and Related Services,Recreation and Sport,5105663942,27.01.2021,Medina Leisure Centre,Property Services - Day to day Maintenance,198.96,ASSA ABLOY ENTRANCE SYSTEMS LTD
Revenue,Adult Services,Balance Sheet,Balance Sheet,5105663821,20.01.2021,Reacted Personal Data,Order Settlement to Bal Sht GL,"2,497.32",AUTUMN HOUSE CARE LTD
Revenue,Adult Services,Balance Sheet,Balance Sheet,5105663821,20.01.2021,Reacted Personal Data,Order Settlement to Bal Sht GL,908.88,AUTUMN HOUSE CARE LTD
Revenue,Adult Services,Central Services,Emergency Planning,5105663479,15.01.2021,NHS C19 Residential,Charges from Independent Providers,"6,120.24",AUTUMN HOUSE CARE LTD
Revenue,Adult Services,Central Services,Emergency Planning,5105663134,13.01.2021,NHS C19 Residential,Charges from Independent Providers,"4,860.24",AUTUMN HOUSE CARE LTD
Revenue,Adult Services,Adult Social Care,Physical Support - adults (18-64),5105664639,29.01.2021,Physical Support Residential 18-64,Charges from Independent Providers,"12,397.41",AUTUMN HOUSE CARE LTD
Revenue,Adult Services,Adult Social Care,Support - Memory /Cognition-older people (65+),5105663821,20.01.2021,Memory & Cognition Residential 65+,Charges from Independent Providers,"2,497.32",AUTUMN HOUSE CARE LTD
Revenue,Adult Services,Adult Social Care,Support - Memory /Cognition-older people (65+),5105663821,20.01.2021,Memory & Cognition Residential 65+,Charges from Independent Providers,"2,497.32",AUTUMN HOUSE CARE LTD
Revenue,Adult Services,Adult Social Care,Support - Memory /Cognition-older people (65+),5105663821,20.01.2021,Memory & Cognition Residential 65+,Charges from Independent Providers,"2,497.32",AUTUMN HOUSE CARE LTD
Revenue,Adult Services,Adult Social Care,Support - Memory /Cognition-older people (65+),5105663821,20.01.2021,Memory & Cognition Residential 65+,Charges from Independent Providers,"2,497.32",AUTUMN HOUSE CARE LTD
Revenue,Adult Services,Adult Social Care,Support - Memory /Cognition-older people (65+),5105663821,20.01.2021,Memory & Cognition Residential 65+,Charges from Independent Providers,"2,124.08",AUTUMN HOUSE CARE LTD
Revenue,Adult Services,Adult Social Care,Support - Memory /Cognition-older people (65+),5105663821,20.01.2021,Memory & Cognition Residential 65+,Charges from Independent Providers,"2,497.32",AUTUMN HOUSE CARE LTD
Revenue,Adult Services,Adult Social Care,Support - Memory /Cognition-older people (65+),5105663821,20.01.2021,Memory & Cognition Residential 65+,Charges from Independent Providers,"2,497.32",AUTUMN HOUSE CARE LTD
Revenue,Adult Services,Balance Sheet,Balance Sheet,5105663821,20.01.2021,Reacted Personal Data,Order Settlement to Bal Sht GL,"2,124.08",AUTUMN HOUSE CARE LTD
Revenue,Adult Services,Adult Social Care,Physical Support - older people (65+),5105662413,04.01.2021,Physical Support Residential 65+,Charges from Independent Providers,"3,389.22",AUTUMN HOUSE CARE LTD
Revenue,Adult Services,Adult Social Care,Physical Support - older people (65+),5105663782,20.01.2021,Physical Support Residential 65+,Charges from Independent Providers,"4,013.55",AUTUMN HOUSE CARE LTD
Revenue,Adult Services,Adult Social Care,Physical Support - older people (65+),5105663821,20.01.2021,Physical Support Residential 65+,Charges from Independent Providers,445.95,AUTUMN HOUSE CARE LTD
Revenue,Adult Services,Adult Social Care,Physical Support - older people (65+),5105663821,20.01.2021,Physical Support Residential 65+,Charges from Independent Providers,"2,497.32",AUTUMN HOUSE CARE LTD
Revenue,Adult Services,Adult Social Care,Physical Support - older people (65+),5105663821,20.01.2021,Physical Support Residential 65+,Charges from Independent Providers,"2,124.08",AUTUMN HOUSE CARE LTD
Revenue,Adult Services,Adult Social Care,Physical Support - older people (65+),5105663821,20.01.2021,Physical Support Residential 65+,Charges from Independent Providers,"2,497.32",AUTUMN HOUSE CARE LTD
Revenue,Adult Services,Adult Social Care,Physical Support - older people (65+),5105663821,20.01.2021,Physical Support Residential 65+,Charges from Independent Providers,"2,497.32",AUTUMN HOUSE CARE LTD
Revenue,Adult Services,Adult Social Care,Physical Support - older people (65+),5105663821,20.01.2021,Physical Support Residential 65+,Charges from Independent Providers,"2,497.32",AUTUMN HOUSE CARE LTD
Revenue,Adult Services,Adult Social Care,Physical Support - older people (65+),5105663821,20.01.2021,Physical Support Residential 65+,Charges from Independent Providers,"2,124.08",AUTUMN HOUSE CARE LTD
Revenue,Adult Services,Adult Social Care,Physical Support - older people (65+),5105663821,20.01.2021,Physical Support Residential 65+,Charges from Independent Providers,"2,497.32",AUTUMN HOUSE CARE LTD
Revenue,Adult Services,Adult Social Care,Physical Support - older people (65+),5105663821,20.01.2021,Physical Support Residential 65+,Charges from Independent Providers,"2,497.32",AUTUMN HOUSE CARE LTD
Revenue,Adult Services,Adult Social Care,Physical Support - older people (65+),5105663821,20.01.2021,Physical Support Residential 65+,Charges from Independent Providers,"2,497.32",AUTUMN HOUSE CARE LTD
Revenue,Adult Services,Adult Social Care,Physical Support - older people (65+),5105663821,20.01.2021,Physical Support Residential 65+,Charges from Independent Providers,"2,497.32",AUTUMN HOUSE CARE LTD
Revenue,Adult Services,Adult Social Care,Physical Support - older people (65+),5105663821,20.01.2021,Physical Support Residential 65+,Charges from Independent Providers,"2,497.32",AUTUMN HOUSE CARE LTD
Revenue,Adult Services,Adult Social Care,Physical Support - older people (65+),5105663821,20.01.2021,Physical Support Residential 65+,Charges from Independent Providers,"2,497.32",AUTUMN HOUSE CARE LTD
Revenue,Adult Services,Adult Social Care,Physical Support - older people (65+),5105663821,20.01.2021,Physical Support Residential 65+,Charges from Independent Providers,"2,497.32",AUTUMN HOUSE CARE LTD
Revenue,Adult Services,Adult Social Care,Physical Support - older people (65+),5105663821,20.01.2021,Physical Support Residential 65+,Charges from Independent Providers,"2,497.32",AUTUMN HOUSE CARE LTD
Revenue,Regeneration,Planning services,Economic Development,5400002882,29.01.2021,"30 High St, Newport",Rent of Buildings and Rooms,83.32,REDACTED PERSONAL DATA
Revenue,Regeneration,Planning services,Economic Development,5105662360,04.01.2021,"30 High St, Newport",Rent of Buildings and Rooms,416.67,REDACTED PERSONAL DATA
Revenue,Neighbourhoods,Cultural and Related Services,Service Management and Support Services,5105664281,22.01.2021,Duke of Edingburgh Award,Operational Equipment,29,AWARD SCHEME LTD
Revenue,Neighbourhoods,Cultural and Related Services,Service Management and Support Services,5105664282,22.01.2021,Duke of Edingburgh Award,Operational Equipment,29,AWARD SCHEME LTD
Revenue,Childrens Services,Children's & Education Services,Children Looked After,5105664049,22.01.2021,In-house Fostering,Boarding Out Allowances,521.22,REDACTED PERSONAL DATA
Revenue,Childrens Services,Children's & Education Services,Children Looked After,5105662704,08.01.2021,In-house Fostering,Boarding Out Allowances,521.22,REDACTED PERSONAL DATA
Revenue,Childrens Services,Children's & Education Services,Children Looked After,5105664655,29.01.2021,In-house Fostering,Boarding Out Allowances,521.22,REDACTED PERSONAL DATA
Revenue,Childrens Services,Children's & Education Services,Children Looked After,5105663497,15.01.2021,In-house Fostering,Boarding Out Allowances,521.22,REDACTED PERSONAL DATA
Revenue,Adult Services,Housing Services,Homelessness,5105664319,22.01.2021,Private Rented Sector Leasing Scheme,Accommodation Costs - Leaseholder Payments,866.67,REDACTED PERSONAL DATA
Revenue,Adult Services,Adult Social Care,Commissioning & Service Delivery,5105663900,20.01.2021,CHC Nursing Care,Charges from Independent Providers,"10,332.00",BAGSHOT PARK CARE CENTRE
Revenue,Resources,Central Services,Central Services to the Public,5105662976,08.01.2021,Electoral Registration Office,Stationery,1.24,SUPPLIES TEAM LTD
Revenue,Resources,Central Services,Central Services to the Public,5105657118,27.01.2021,Electoral Registration Office,Stationery,23.7,SUPPLIES TEAM LTD
Revenue,Adult Services,Adult Social Care,Central Codes (to be reallocated),5105663990,20.01.2021,Gouldings Resource Centre,Stationery,35.55,SUPPLIES TEAM LTD
Revenue,Childrens Services,Children's & Education Services,Other Education and Community Budget,5105662444,04.01.2021,Learning & Development Running Costs,Stationery,6.36,SUPPLIES TEAM LTD
Revenue,Childrens Services,Children's & Education Services,Other Education and Community Budget,5105662444,04.01.2021,Learning & Development Running Costs,Stationery,4.05,SUPPLIES TEAM LTD
Revenue,Childrens Services,Children's & Education Services,Other Education and Community Budget,5105662976,08.01.2021,Pupil Resources Business Support Team,Stationery,11.85,SUPPLIES TEAM LTD
Revenue,Childrens Services,Children's & Education Services,Other Education and Community Budget,5105659794,27.01.2021,Schools Asset Management,Stationery,-9.72,SUPPLIES TEAM LTD
Revenue,Childrens Services,Children's & Education Services,Other Education and Community Budget,5105657118,27.01.2021,Schools Asset Management,Stationery,9.72,SUPPLIES TEAM LTD
Revenue,Neighbourhoods,Cultural and Related Services,Service Management and Support Services,5105662976,08.01.2021,Leisure Management & Admin,Stationery,11.42,SUPPLIES TEAM LTD
Revenue,Neighbourhoods,Cultural and Related Services,Service Management and Support Services,5105662976,08.01.2021,Leisure Management & Admin,Stationery,23.7,SUPPLIES TEAM LTD
Revenue,Neighbourhoods,Cultural and Related Services,Service Management and Support Services,5105662886,08.01.2021,Leisure Management & Admin,Stationery,23.7,SUPPLIES TEAM LTD
Revenue,Adult Services,Adult Social Care,Assistive Equipment & Technology,5105657118,27.01.2021,Community Equipment Store,Stationery,7.5,SUPPLIES TEAM LTD
Revenue,Adult Services,Adult Social Care,Assistive Equipment & Technology,5105659794,27.01.2021,Community Equipment Store,Stationery,-7.5,SUPPLIES TEAM LTD
Revenue,Resources,Central Services,Support Services,5105664443,27.01.2021,County Hall Central Mail Room,Stationery,12.99,SUPPLIES TEAM LTD
Revenue,Resources,Central Services,Support Services,5105664444,27.01.2021,County Hall Central Mail Room,Stationery,4.33,SUPPLIES TEAM LTD
Revenue,Childrens Services,Children's & Education Services,Safeguarding Children/Young Peoples Svs,5105663794,20.01.2021,Children's office costs,Stationery,35.55,SUPPLIES TEAM LTD
Revenue,Childrens Services,Children's & Education Services,Safeguarding Children/Young Peoples Svs,5105663794,20.01.2021,Children's office costs,Stationery,5.85,SUPPLIES TEAM LTD
Revenue,Childrens Services,Children's & Education Services,Safeguarding Children/Young Peoples Svs,5105663794,20.01.2021,Children's office costs,Stationery,11.85,SUPPLIES TEAM LTD
Revenue,Childrens Services,Children's & Education Services,Children Looked After,5105663440,13.01.2021,Beaulieu House,Stationery,2.02,SUPPLIES TEAM LTD
Revenue,Childrens Services,Children's & Education Services,Children Looked After,5105663440,13.01.2021,Beaulieu House,Stationery,9.78,SUPPLIES TEAM LTD
Revenue,Childrens Services,Children's & Education Services,Children Looked After,5105663440,13.01.2021,Beaulieu House,Stationery,2.9,SUPPLIES TEAM LTD
Revenue,Childrens Services,Children's & Education Services,Children Looked After,5105663440,13.01.2021,Beaulieu House,Stationery,2.07,SUPPLIES TEAM LTD
Revenue,Childrens Services,Children's & Education Services,Children Looked After,5105663440,13.01.2021,Beaulieu House,Stationery,0.9,SUPPLIES TEAM LTD
Revenue,Childrens Services,Children's & Education Services,Children Looked After,5105663440,13.01.2021,Beaulieu House,Stationery,5.71,SUPPLIES TEAM LTD
Revenue,Childrens Services,Children's & Education Services,Children Looked After,5105661666,08.01.2021,Beaulieu House,Stationery,47.4,SUPPLIES TEAM LTD
Revenue,Childrens Services,Children's & Education Services,Children Looked After,5105661666,08.01.2021,Beaulieu House,Stationery,1.05,SUPPLIES TEAM LTD
Revenue,Childrens Services,Children's & Education Services,Children Looked After,5105661666,08.01.2021,Beaulieu House,Stationery,0.56,SUPPLIES TEAM LTD
Revenue,Childrens Services,Children's & Education Services,Children Looked After,5105662446,20.01.2021,Beaulieu House,Stationery,4.05,SUPPLIES TEAM LTD
Revenue,Childrens Services,Children's & Education Services,Children Looked After,5105662443,04.01.2021,Beaulieu House,Stationery,4.05,SUPPLIES TEAM LTD
Revenue,Adult Services,Adult Social Care,Commissioning & Service Delivery,5105663431,15.01.2021,Group Manager Leaning Disability Homes,Stationery,34.6,SUPPLIES TEAM LTD
Revenue,Adult Services,Adult Social Care,Commissioning & Service Delivery,5105661671,06.01.2021,Group Manager Leaning Disability Homes,Stationery,23.7,SUPPLIES TEAM LTD
Revenue,Adult Services,Adult Social Care,Commissioning & Service Delivery,5105661664,06.01.2021,Group Manager Leaning Disability Homes,Stationery,0.69,SUPPLIES TEAM LTD
Revenue,Adult Services,Adult Social Care,Commissioning & Service Delivery,5105661664,06.01.2021,Group Manager Leaning Disability Homes,Stationery,11.85,SUPPLIES TEAM LTD
Revenue,Adult Services,Adult Social Care,Commissioning & Service Delivery,5105661664,06.01.2021,Group Manager Leaning Disability Homes,Stationery,5.71,SUPPLIES TEAM LTD
Revenue,Adult Services,Adult Social Care,Commissioning & Service Delivery,5105661664,06.01.2021,Group Manager Leaning Disability Homes,Stationery,0.68,SUPPLIES TEAM LTD
Revenue,Adult Services,Adult Social Care,Commissioning & Service Delivery,5105662442,06.01.2021,Group Manager Leaning Disability Homes,Stationery,0.81,SUPPLIES TEAM LTD
Revenue,Resources,Central Services,Support Services,5105662976,08.01.2021,Legal Services Section,Stationery,5.71,SUPPLIES TEAM LTD
Revenue,Resources,Central Services,Support Services,5105662886,08.01.2021,Legal Services Section,Stationery,1.31,SUPPLIES TEAM LTD
Revenue,Neighbourhoods,Central Services,Central Services to the Public,5105663430,13.01.2021,"Registration Of Births,Deaths, Marriages",Stationery,11.54,SUPPLIES TEAM LTD
Revenue,Neighbourhoods,Central Services,Central Services to the Public,5105663991,20.01.2021,"Registration Of Births,Deaths, Marriages",Stationery,14.68,SUPPLIES TEAM LTD
Revenue,Neighbourhoods,Central Services,Central Services to the Public,5105663991,20.01.2021,"Registration Of Births,Deaths, Marriages",Stationery,4.24,SUPPLIES TEAM LTD
Revenue,Neighbourhoods,Central Services,Central Services to the Public,5105663991,20.01.2021,"Registration Of Births,Deaths, Marriages",Stationery,1.22,SUPPLIES TEAM LTD
Revenue,Neighbourhoods,Central Services,Central Services to the Public,5105663991,20.01.2021,"Registration Of Births,Deaths, Marriages",Stationery,2.32,SUPPLIES TEAM LTD
Revenue,Neighbourhoods,Central Services,Central Services to the Public,5105663991,20.01.2021,"Registration Of Births,Deaths, Marriages",Stationery,47.4,SUPPLIES TEAM LTD
Revenue,Neighbourhoods,Central Services,Central Services to the Public,5105663991,20.01.2021,"Registration Of Births,Deaths, Marriages",Stationery,2.89,SUPPLIES TEAM LTD
Revenue,Neighbourhoods,Environmental & Regulatory Services,Service Management and Support Services,5105664390,27.01.2021,Regulatory Management & Admin Support,Stationery,11.85,SUPPLIES TEAM LTD
Revenue,Neighbourhoods,Environmental & Regulatory Services,Service Management and Support Services,5105657118,27.01.2021,Regulatory Management & Admin Support,Stationery,3.42,SUPPLIES TEAM LTD
Revenue,Neighbourhoods,Environmental & Regulatory Services,Service Management and Support Services,5105657118,27.01.2021,Regulatory Management & Admin Support,Stationery,4.33,SUPPLIES TEAM LTD
Revenue,Neighbourhoods,Environmental & Regulatory Services,Service Management and Support Services,5105662886,08.01.2021,Regulatory Management & Admin Support,Stationery,5.71,SUPPLIES TEAM LTD
Revenue,Childrens Services,Children's & Education Services,Special Schools & Alternative Provision,5105662445,13.01.2021,Island Learning Centre,Stationery,8.1,SUPPLIES TEAM LTD
Revenue,Childrens Services,Children's & Education Services,Special Schools & Alternative Provision,5105661994,06.01.2021,Island Learning Centre,Stationery,118.5,SUPPLIES TEAM LTD
Revenue,Childrens Services,Children's & Education Services,Special Schools & Alternative Provision,5105663400,13.01.2021,Island Learning Centre,Stationery,-8.1,SUPPLIES TEAM LTD
Revenue,Regeneration,Central Services,Support Services,5105662886,08.01.2021,"County Hall,Newport",Stationery,27.42,SUPPLIES TEAM LTD
Revenue,Regeneration,Central Services,Support Services,5105662886,08.01.2021,"County Hall,Newport",Stationery,146.88,SUPPLIES TEAM LTD
Revenue,Regeneration,Central Services,Support Services,5105662886,08.01.2021,"County Hall,Newport",Stationery,71.1,SUPPLIES TEAM LTD
Revenue,Regeneration,Central Services,Support Services,5105662886,08.01.2021,"County Hall,Newport",Stationery,62.55,SUPPLIES TEAM LTD
Revenue,Adult Services,Adult Social Care,Commissioning & Service Delivery,5105665021,29.01.2021,ASC County Hall office costs,Stationery,0.56,SUPPLIES TEAM LTD
Revenue,Adult Services,Adult Social Care,Commissioning & Service Delivery,5105663794,20.01.2021,ASC County Hall office costs,Stationery,1.24,SUPPLIES TEAM LTD
Revenue,Adult Services,Adult Social Care,Commissioning & Service Delivery,5105663794,20.01.2021,ASC County Hall office costs,Stationery,10.26,SUPPLIES TEAM LTD
Revenue,Adult Services,Adult Social Care,Commissioning & Service Delivery,5105663794,20.01.2021,ASC County Hall office costs,Stationery,14.32,SUPPLIES TEAM LTD
Revenue,Adult Services,Adult Social Care,Commissioning & Service Delivery,5105663794,20.01.2021,ASC County Hall office costs,Stationery,11.08,SUPPLIES TEAM LTD
Revenue,Adult Services,Adult Social Care,Commissioning & Service Delivery,5105663794,20.01.2021,ASC County Hall office costs,Stationery,14.68,SUPPLIES TEAM LTD
Revenue,Adult Services,Adult Social Care,Commissioning & Service Delivery,5105663794,20.01.2021,ASC County Hall office costs,Stationery,12.99,SUPPLIES TEAM LTD
Revenue,Adult Services,Adult Social Care,Commissioning & Service Delivery,5105663794,20.01.2021,ASC County Hall office costs,Stationery,14.8,SUPPLIES TEAM LTD
Revenue,Adult Services,Adult Social Care,Commissioning & Service Delivery,5105662976,08.01.2021,ASC County Hall office costs,Stationery,0.24,SUPPLIES TEAM LTD
Revenue,Adult Services,Adult Social Care,Commissioning & Service Delivery,5105662976,08.01.2021,ASC County Hall office costs,Stationery,11.85,SUPPLIES TEAM LTD
Revenue,Adult Services,Adult Social Care,Commissioning & Service Delivery,5105662976,08.01.2021,ASC County Hall office costs,Stationery,2.02,SUPPLIES TEAM LTD
Revenue,Adult Services,Adult Social Care,Commissioning & Service Delivery,5105662976,08.01.2021,ASC County Hall office costs,Stationery,0.25,SUPPLIES TEAM LTD
Revenue,Adult Services,Adult Social Care,Commissioning & Service Delivery,5105662976,08.01.2021,ASC County Hall office costs,Stationery,1.8,SUPPLIES TEAM LTD
Revenue,Adult Services,Adult Social Care,Commissioning & Service Delivery,5105662976,08.01.2021,ASC County Hall office costs,Stationery,1.84,SUPPLIES TEAM LTD
Revenue,Adult Services,Adult Social Care,Commissioning & Service Delivery,5105662976,08.01.2021,ASC County Hall office costs,Stationery,5.85,SUPPLIES TEAM LTD
Revenue,Adult Services,Adult Social Care,Commissioning & Service Delivery,5105662976,08.01.2021,ASC County Hall office costs,Stationery,0.45,SUPPLIES TEAM LTD
Revenue,Adult Services,Adult Social Care,Commissioning & Service Delivery,5105662976,08.01.2021,ASC County Hall office costs,Stationery,1.16,SUPPLIES TEAM LTD
Revenue,Adult Services,Adult Social Care,Commissioning & Service Delivery,5105662976,08.01.2021,ASC County Hall office costs,Stationery,0.11,SUPPLIES TEAM LTD
Revenue,Adult Services,Adult Social Care,Commissioning & Service Delivery,5105662976,08.01.2021,ASC County Hall office costs,Stationery,0.81,SUPPLIES TEAM LTD
Revenue,Adult Services,Adult Social Care,Commissioning & Service Delivery,5105662976,08.01.2021,ASC County Hall office costs,Stationery,1.57,SUPPLIES TEAM LTD
Revenue,Adult Services,Adult Social Care,Commissioning & Service Delivery,5105662976,08.01.2021,ASC County Hall office costs,Stationery,2.28,SUPPLIES TEAM LTD
Revenue,Adult Services,Adult Social Care,Commissioning & Service Delivery,5105662886,08.01.2021,ASC County Hall office costs,Stationery,2.12,SUPPLIES TEAM LTD
Revenue,Adult Services,Adult Social Care,Commissioning & Service Delivery,5105662886,08.01.2021,ASC County Hall office costs,Stationery,3.41,SUPPLIES TEAM LTD
Revenue,Adult Services,Adult Social Care,Commissioning & Service Delivery,5105662886,08.01.2021,ASC County Hall office costs,Stationery,1.84,SUPPLIES TEAM LTD
Revenue,Adult Services,Adult Social Care,Commissioning & Service Delivery,5105662886,08.01.2021,ASC County Hall office costs,Stationery,1.31,SUPPLIES TEAM LTD
Revenue,Adult Services,Adult Social Care,Commissioning & Service Delivery,5105662886,08.01.2021,ASC County Hall office costs,Stationery,1.22,SUPPLIES TEAM LTD
Revenue,Adult Services,Adult Social Care,Commissioning & Service Delivery,5105662886,08.01.2021,ASC County Hall office costs,Stationery,1.05,SUPPLIES TEAM LTD
Revenue,Adult Services,Adult Social Care,Commissioning & Service Delivery,5105662886,08.01.2021,ASC County Hall office costs,Stationery,7.65,SUPPLIES TEAM LTD
Revenue,Adult Services,Adult Social Care,Commissioning & Service Delivery,5105662886,08.01.2021,ASC County Hall office costs,Stationery,1.06,SUPPLIES TEAM LTD
Revenue,Adult Services,Adult Social Care,Commissioning & Service Delivery,5105662886,08.01.2021,ASC County Hall office costs,Stationery,1.38,SUPPLIES TEAM LTD
Revenue,Adult Services,Adult Social Care,Commissioning & Service Delivery,5105662886,08.01.2021,ASC County Hall office costs,Stationery,2.57,SUPPLIES TEAM LTD
Revenue,Adult Services,Adult Social Care,Commissioning & Service Delivery,5105662886,08.01.2021,ASC County Hall office costs,Stationery,1.79,SUPPLIES TEAM LTD
Revenue,Adult Services,Adult Social Care,Commissioning & Service Delivery,5105662886,08.01.2021,ASC County Hall office costs,Stationery,4.96,SUPPLIES TEAM LTD
Revenue,Adult Services,Adult Social Care,Commissioning & Service Delivery,5105662441,04.01.2021,ASC County Hall office costs,Stationery,0.81,SUPPLIES TEAM LTD
Revenue,Adult Services,Adult Social Care,Commissioning & Service Delivery,5105657118,27.01.2021,ASC County Hall office costs,Stationery,1.31,SUPPLIES TEAM LTD
Revenue,Adult Services,Adult Social Care,Commissioning & Service Delivery,5105657118,27.01.2021,ASC County Hall office costs,Stationery,1.31,SUPPLIES TEAM LTD
Revenue,Adult Services,Adult Social Care,Commissioning & Service Delivery,5105657118,27.01.2021,ASC County Hall office costs,Stationery,2.12,SUPPLIES TEAM LTD
Revenue,Adult Services,Adult Social Care,Commissioning & Service Delivery,5105657118,27.01.2021,ASC County Hall office costs,Stationery,0.56,SUPPLIES TEAM LTD
Revenue,Adult Services,Adult Social Care,Commissioning & Service Delivery,5105657118,27.01.2021,ASC County Hall office costs,Stationery,3.41,SUPPLIES TEAM LTD
Revenue,Adult Services,Adult Social Care,Commissioning & Service Delivery,5105657118,27.01.2021,ASC County Hall office costs,Stationery,0.98,SUPPLIES TEAM LTD
Revenue,Adult Services,Adult Social Care,Commissioning & Service Delivery,5105657118,27.01.2021,ASC County Hall office costs,Stationery,1.84,SUPPLIES TEAM LTD
Revenue,Adult Services,Adult Social Care,Commissioning & Service Delivery,5105657118,27.01.2021,ASC County Hall office costs,Stationery,1.16,SUPPLIES TEAM LTD
Revenue,Adult Services,Adult Social Care,Commissioning & Service Delivery,5105657118,27.01.2021,ASC County Hall office costs,Stationery,1.62,SUPPLIES TEAM LTD
Revenue,Adult Services,Adult Social Care,Commissioning & Service Delivery,5105657118,27.01.2021,ASC County Hall office costs,Stationery,2.55,SUPPLIES TEAM LTD
Revenue,Adult Services,Adult Social Care,Commissioning & Service Delivery,5105657118,27.01.2021,ASC County Hall office costs,Stationery,2.48,SUPPLIES TEAM LTD
Revenue,Adult Services,Adult Social Care,Commissioning & Service Delivery,5105659794,27.01.2021,ASC County Hall office costs,Stationery,-2.12,SUPPLIES TEAM LTD
Revenue,Adult Services,Adult Social Care,Commissioning & Service Delivery,5105659794,27.01.2021,ASC County Hall office costs,Stationery,-0.56,SUPPLIES TEAM LTD
Revenue,Adult Services,Adult Social Care,Commissioning & Service Delivery,5105659794,27.01.2021,ASC County Hall office costs,Stationery,-3.41,SUPPLIES TEAM LTD
Revenue,Adult Services,Adult Social Care,Commissioning & Service Delivery,5105659794,27.01.2021,ASC County Hall office costs,Stationery,-0.98,SUPPLIES TEAM LTD
Revenue,Adult Services,Adult Social Care,Commissioning & Service Delivery,5105659794,27.01.2021,ASC County Hall office costs,Stationery,-1.84,SUPPLIES TEAM LTD
Revenue,Adult Services,Adult Social Care,Commissioning & Service Delivery,5105659794,27.01.2021,ASC County Hall office costs,Stationery,-1.16,SUPPLIES TEAM LTD
Revenue,Adult Services,Adult Social Care,Commissioning & Service Delivery,5105659794,27.01.2021,ASC County Hall office costs,Stationery,-2.48,SUPPLIES TEAM LTD
Revenue,Adult Services,Adult Social Care,Commissioning & Service Delivery,5105659794,27.01.2021,ASC County Hall office costs,Stationery,-2.55,SUPPLIES TEAM LTD
Revenue,Adult Services,Adult Social Care,Social Care Activities,5105662886,08.01.2021,Hospital Team,Stationery,23.7,SUPPLIES TEAM LTD
Revenue,Neighbourhoods,Cultural and Related Services,Library Service,5105662884,08.01.2021,Public Libraries Central,Stationery,4.24,SUPPLIES TEAM LTD
Revenue,Resources,Central Services,Support Services,5105662976,08.01.2021,Revenues & Benefits Operational Support,Stationery,2.12,SUPPLIES TEAM LTD
Revenue,Resources,Central Services,Support Services,5105657118,27.01.2021,Revenues & Benefits Operational Support,Stationery,2.12,SUPPLIES TEAM LTD
Revenue,Resources,Central Services,Support Services,5105657118,27.01.2021,Revenues & Benefits Operational Support,Stationery,27.94,SUPPLIES TEAM LTD
Revenue,Resources,Central Services,Support Services,5105657118,27.01.2021,Revenues & Benefits Operational Support,Stationery,12.16,SUPPLIES TEAM LTD
Revenue,Resources,Central Services,Support Services,5105657118,27.01.2021,Revenues & Benefits Operational Support,Stationery,5.71,SUPPLIES TEAM LTD
Revenue,Resources,Central Services,Support Services,5105657118,27.01.2021,Revenues & Benefits Operational Support,Stationery,4.24,SUPPLIES TEAM LTD
Revenue,Resources,Central Services,Support Services,5105657118,27.01.2021,Revenues & Benefits Operational Support,Stationery,2.62,SUPPLIES TEAM LTD
Revenue,Resources,Central Services,Support Services,5105659794,27.01.2021,Revenues & Benefits Operational Support,Stationery,-12.16,SUPPLIES TEAM LTD
Revenue,Resources,Central Services,Support Services,5105659794,27.01.2021,Revenues & Benefits Operational Support,Stationery,-5.71,SUPPLIES TEAM LTD
Revenue,Resources,Central Services,Support Services,5105659794,27.01.2021,Revenues & Benefits Operational Support,Stationery,-4.24,SUPPLIES TEAM LTD
Revenue,Resources,Central Services,Support Services,5105659794,27.01.2021,Revenues & Benefits Operational Support,Stationery,-2.12,SUPPLIES TEAM LTD
Revenue,Adult Services,Adult Social Care,Commissioning & Service Delivery,5105662976,08.01.2021,Director of Adult Social Services,Stationery,5.85,SUPPLIES TEAM LTD
Revenue,Neighbourhoods,Central Services,Central Services to the Public,5105663991,20.01.2021,Coroner,Stationery,4.44,SUPPLIES TEAM LTD
Revenue,Neighbourhoods,Central Services,Central Services to the Public,5105663991,20.01.2021,Coroner,Stationery,3.58,SUPPLIES TEAM LTD
Revenue,Neighbourhoods,Central Services,Central Services to the Public,5105663991,20.01.2021,Coroner,Stationery,0.99,SUPPLIES TEAM LTD
Revenue,Adult Services,Adult Social Care,Central Codes (to be reallocated),5105663433,15.01.2021,Adelaide Resource Centre,Stationery,6.57,SUPPLIES TEAM LTD
Revenue,Adult Services,Adult Social Care,Central Codes (to be reallocated),5105663433,15.01.2021,Adelaide Resource Centre,Stationery,3.68,SUPPLIES TEAM LTD
Revenue,Adult Services,Adult Social Care,Central Codes (to be reallocated),5105662885,08.01.2021,Adelaide Resource Centre,Stationery,47.4,SUPPLIES TEAM LTD
Revenue,Adult Services,Adult Social Care,Central Codes (to be reallocated),5105662885,08.01.2021,Adelaide Resource Centre,Charges from Independent Providers,5.24,SUPPLIES TEAM LTD
Revenue,Adult Services,Adult Social Care,Commissioning & Service Delivery,5105663794,20.01.2021,CHC Staff Costs,Stationery,7.4,SUPPLIES TEAM LTD
Revenue,Adult Services,Adult Social Care,Commissioning & Service Delivery,5105663794,20.01.2021,CHC Staff Costs,Stationery,0.86,SUPPLIES TEAM LTD
Revenue,Adult Services,Adult Social Care,Commissioning & Service Delivery,5105663794,20.01.2021,CHC Staff Costs,Stationery,0.37,SUPPLIES TEAM LTD
Revenue,Adult Services,Adult Social Care,Commissioning & Service Delivery,5105663794,20.01.2021,CHC Staff Costs,Stationery,5.1,SUPPLIES TEAM LTD
Revenue,Adult Services,Adult Social Care,Commissioning & Service Delivery,5105663794,20.01.2021,CHC Staff Costs,Stationery,1.84,SUPPLIES TEAM LTD
Revenue,Adult Services,Adult Social Care,Commissioning & Service Delivery,5105663794,20.01.2021,CHC Staff Costs,Stationery,1.06,SUPPLIES TEAM LTD
Revenue,Adult Services,Adult Social Care,Commissioning & Service Delivery,5105663794,20.01.2021,CHC Staff Costs,Stationery,1.57,SUPPLIES TEAM LTD
Revenue,Adult Services,Adult Social Care,Commissioning & Service Delivery,5105663794,20.01.2021,CHC Staff Costs,Stationery,12.16,SUPPLIES TEAM LTD
Revenue,Adult Services,Adult Social Care,Commissioning & Service Delivery,5105663794,20.01.2021,CHC Staff Costs,Stationery,5.54,SUPPLIES TEAM LTD
Revenue,Adult Services,Adult Social Care,Commissioning & Service Delivery,5105663794,20.01.2021,CHC Staff Costs,Stationery,7.34,SUPPLIES TEAM LTD
Revenue,Adult Services,Adult Social Care,Commissioning & Service Delivery,5105663794,20.01.2021,CHC Staff Costs,Stationery,7.16,SUPPLIES TEAM LTD
Revenue,Adult Services,Adult Social Care,Commissioning & Service Delivery,5105663794,20.01.2021,CHC Staff Costs,Stationery,0.5,SUPPLIES TEAM LTD
Revenue,Adult Services,Adult Social Care,Commissioning & Service Delivery,5105663794,20.01.2021,CHC Staff Costs,Stationery,2.48,SUPPLIES TEAM LTD
Revenue,Neighbourhoods,Environmental & Regulatory Services,"Cemetery, Cremation & Mortuary Services",5105664879,29.01.2021,Crematorium,Stationery,11.78,SUPPLIES TEAM LTD
Revenue,Neighbourhoods,Environmental & Regulatory Services,"Cemetery, Cremation & Mortuary Services",5105663796,20.01.2021,Crematorium,Stationery,23.7,SUPPLIES TEAM LTD
Revenue,Neighbourhoods,Environmental & Regulatory Services,"Cemetery, Cremation & Mortuary Services",5105663796,20.01.2021,Crematorium,Stationery,4.78,SUPPLIES TEAM LTD
Revenue,Neighbourhoods,Environmental & Regulatory Services,"Cemetery, Cremation & Mortuary Services",5105663435,15.01.2021,Crematorium,Stationery,-3.62,SUPPLIES TEAM LTD
Revenue,Neighbourhoods,Environmental & Regulatory Services,"Cemetery, Cremation & Mortuary Services",5105663436,15.01.2021,Crematorium,Stationery,3.62,SUPPLIES TEAM LTD
Revenue,Resources,Central Services,Central Services to the Public,5105662976,08.01.2021,Local Land Charges,Stationery,1.8,SUPPLIES TEAM LTD
Revenue,Resources,Central Services,Central Services to the Public,5105662976,08.01.2021,Local Land Charges,Stationery,1.84,SUPPLIES TEAM LTD
Revenue,Resources,Central Services,Central Services to the Public,5105662976,08.01.2021,Local Land Charges,Stationery,4.96,SUPPLIES TEAM LTD
Revenue,Resources,Central Services,Central Services to the Public,5105662976,08.01.2021,Local Land Charges,Stationery,0.45,SUPPLIES TEAM LTD
Revenue,Adult Services,Adult Social Care,Commissioning & Service Delivery,5105657118,27.01.2021,FAC Team,Stationery,3.42,SUPPLIES TEAM LTD
Revenue,Adult Services,Adult Social Care,Commissioning & Service Delivery,5105657118,27.01.2021,FAC Team,Stationery,4.33,SUPPLIES TEAM LTD
Revenue,Adult Services,Adult Social Care,Physical Support - older people (65+),5105663905,20.01.2021,Physical Support Residential 65+,Charges from Independent Providers,"2,028.32",BARCHESTER HELLENS LTD
Revenue,Childrens Services,Children's & Education Services,Children Looked After,5105663071,13.01.2021,Local Authority Care Advocacy Contract,Grants to External Bodies,"9,875.00",BARNARDO'S
Revenue,Neighbourhoods,Cultural and Related Services,Recreation and Sport,5105663777,20.01.2021,Medina Leisure Centre,Consumable Cleaning Materials,87.96,LAKE CLEANING & CATERING SUPPLIES
Revenue,Adult Services,Adult Social Care,Social Support - Support for Carer,5105663323,22.01.2021,Westminster House,Operational Equipment,54.53,LAKE CLEANING & CATERING SUPPLIES
Revenue,Adult Services,Adult Social Care,Learning Disab Supp (to be reallocated),5105663297,22.01.2021,Plean Dene,Operational Equipment,8,LAKE CLEANING & CATERING SUPPLIES
Revenue,Adult Services,Adult Social Care,Learning Disab Supp (to be reallocated),5105663774,22.01.2021,Plean Dene,Operational Equipment,36.56,LAKE CLEANING & CATERING SUPPLIES
Revenue,Adult Services,Adult Social Care,Learning Disab Supp (to be reallocated),5105661497,04.01.2021,Plean Dene,Operational Equipment,46.41,LAKE CLEANING & CATERING SUPPLIES
Revenue,Fire & Rescue,Fire & Rescue Services,Fire fighting and Rescue Operations,5105663776,20.01.2021,Fire Technical Support,General Materials,80.4,LAKE CLEANING & CATERING SUPPLIES
Revenue,Fire & Rescue,Fire & Rescue Services,Fire fighting and Rescue Operations,5105663776,20.01.2021,Fire Technical Support,General Materials,31.8,LAKE CLEANING & CATERING SUPPLIES
Revenue,Fire & Rescue,Fire & Rescue Services,Fire fighting and Rescue Operations,5105663776,20.01.2021,Fire Technical Support,General Materials,53.58,LAKE CLEANING & CATERING SUPPLIES
Revenue,Childrens Services,Children's & Education Services,Children Looked After,5105664490,27.01.2021,Beaulieu House,General Materials,112.24,LAKE CLEANING & CATERING SUPPLIES
Revenue,Childrens Services,Children's & Education Services,Children Looked After,5105663772,20.01.2021,Beaulieu House,General Materials,89.66,LAKE CLEANING & CATERING SUPPLIES
Revenue,Adult Services,Adult Social Care,Central Codes (to be reallocated),5105664416,27.01.2021,Community Reablement,Operational Equipment,36,LAKE CLEANING & CATERING SUPPLIES
Revenue,Neighbourhoods,Cultural and Related Services,Recreation and Sport,5105663773,20.01.2021,The Heights,Consumable Cleaning Materials,33.9,LAKE CLEANING & CATERING SUPPLIES
Revenue,Childrens Services,Children's & Education Services,Children Looked After,5105662649,06.01.2021,Adopt South Adoption Support Fund,Charges from Independent Providers,960,BEACON HOUSE PSYCHOLOGICAL SERVICES
Revenue,Childrens Services,Children's & Education Services,Children Looked After,5105662891,15.01.2021,Purchased Residential,Charges from Independent Providers,"3,850.00",BENECARE FOSTERING LTD
Revenue,Childrens Services,Children's & Education Services,Children Looked After,5105662892,15.01.2021,Purchased Residential,Charges from Independent Providers,"3,850.00",BENECARE FOSTERING LTD
Revenue,Childrens Services,Children's & Education Services,Children Looked After,5105662894,15.01.2021,Purchased Residential,Charges from Independent Providers,"3,850.00",BENECARE FOSTERING LTD
Revenue,Childrens Services,Children's & Education Services,Children Looked After,5105662895,15.01.2021,Purchased Residential,Charges from Independent Providers,"3,850.00",BENECARE FOSTERING LTD
Revenue,Adult Services,Adult Social Care,Central Codes (to be reallocated),5105664958,29.01.2021,Gouldings Resource Centre,Operational Equipment,42.75,BETA PAK LTD
Revenue,Adult Services,Adult Social Care,Central Codes (to be reallocated),5105664536,27.01.2021,Gouldings Resource Centre,Operational Equipment,31.92,BETA PAK LTD
Revenue,Adult Services,Adult Social Care,Central Codes (to be reallocated),5105664265,22.01.2021,Gouldings Resource Centre,Operational Equipment,558.5,BETA PAK LTD
Revenue,Adult Services,Adult Social Care,Central Codes (to be reallocated),5105662982,22.01.2021,Gouldings Resource Centre,Consumable Cleaning Materials,4.94,BETA PAK LTD
Revenue,Adult Services,Adult Social Care,Central Codes (to be reallocated),5105664572,27.01.2021,Gouldings Resource Centre,Consumable Cleaning Materials,130.85,BETA PAK LTD
Revenue,Adult Services,Adult Social Care,Central Codes (to be reallocated),5105663914,20.01.2021,Gouldings Resource Centre,Consumable Cleaning Materials,26.85,BETA PAK LTD
Revenue,Adult Services,Adult Social Care,Central Codes (to be reallocated),5105663915,20.01.2021,Gouldings Resource Centre,Consumable Cleaning Materials,14.94,BETA PAK LTD
Revenue,Adult Services,Adult Social Care,Central Codes (to be reallocated),5105662899,13.01.2021,Gouldings Resource Centre,Consumable Cleaning Materials,40,BETA PAK LTD
Revenue,Adult Services,Adult Social Care,Central Codes (to be reallocated),5105664537,27.01.2021,Gouldings Resource Centre,Consumable Cleaning Materials,10.24,BETA PAK LTD
Revenue,Adult Services,Adult Social Care,Social Support - Support for Carer,5105662988,15.01.2021,Westminster House,Operational Equipment,83.7,BETA PAK LTD
Revenue,Adult Services,Adult Social Care,Social Support - Support for Carer,5105662983,15.01.2021,Westminster House,Operational Equipment,302.66,BETA PAK LTD
Revenue,Adult Services,Adult Social Care,Social Support - Support for Carer,5105663101,15.01.2021,Westminster House,Operational Equipment,70,BETA PAK LTD
Revenue,Adult Services,Adult Social Care,Social Support - Support for Carer,5105662470,06.01.2021,Westminster House,Operational Equipment,67,BETA PAK LTD
Revenue,Adult Services,Adult Social Care,Social Support - Support for Carer,5105662546,13.01.2021,Westminster House,Operational Equipment,102.56,BETA PAK LTD
Revenue,Adult Services,Adult Social Care,Learning Disab Supp (to be reallocated),5105663451,22.01.2021,Plean Dene,Operational Equipment,118.08,BETA PAK LTD
Revenue,Adult Services,Adult Social Care,Learning Disab Supp (to be reallocated),5105663451,22.01.2021,Plean Dene,Operational Equipment,49.96,BETA PAK LTD
Revenue,Adult Services,Adult Social Care,Learning Disab Supp (to be reallocated),5105662068,06.01.2021,Plean Dene,Operational Equipment,206.82,BETA PAK LTD
Revenue,Adult Services,Adult Social Care,Learning Disab Supp (to be reallocated),5105664377,27.01.2021,Saxonbury,Operational Equipment,51.6,BETA PAK LTD
Revenue,Adult Services,Adult Social Care,Learning Disab Supp (to be reallocated),5105664446,27.01.2021,Saxonbury,Operational Equipment,140.59,BETA PAK LTD
Revenue,Adult Services,Adult Social Care,Learning Disab Supp (to be reallocated),5105662944,08.01.2021,Saxonbury,Operational Equipment,83.73,BETA PAK LTD
Revenue,Adult Services,Adult Social Care,Learning Disab Supp (to be reallocated),5105662986,08.01.2021,Saxonbury,Operational Equipment,7.32,BETA PAK LTD
Revenue,Adult Services,Adult Social Care,Learning Disab Supp (to be reallocated),5105663764,20.01.2021,Saxonbury,Operational Equipment,23.22,BETA PAK LTD
Revenue,Adult Services,Adult Social Care,Learning Disab Supp (to be reallocated),5105663331,13.01.2021,Saxonbury,Operational Equipment,76.66,BETA PAK LTD
Revenue,Adult Services,Adult Social Care,Learning Disab Supp (to be reallocated),5105662667,06.01.2021,Saxonbury,Operational Equipment,274.04,BETA PAK LTD
Revenue,Adult Services,Adult Social Care,Social Support - Support for Carer,5105664514,27.01.2021,Westminster House,Operational Equipment,-34.38,BETA PAK LTD
Revenue,Adult Services,Adult Social Care,Social Support - Support for Carer,5105664447,27.01.2021,Westminster House,Operational Equipment,148.53,BETA PAK LTD
Revenue,Childrens Services,Children's & Education Services,Special Schools & Alternative Provision,5105661483,08.01.2021,Island Learning Centre,Consumable Cleaning Materials,59.4,BETA PAK LTD
Revenue,Childrens Services,Children's & Education Services,Special Schools & Alternative Provision,5105661483,08.01.2021,Island Learning Centre,Consumable Cleaning Materials,21.95,BETA PAK LTD
Revenue,Childrens Services,Children's & Education Services,Special Schools & Alternative Provision,5105661483,08.01.2021,Island Learning Centre,Consumable Cleaning Materials,59.5,BETA PAK LTD
Revenue,Adult Services,Central Services,Central Services to the Public,5105664893,29.01.2021,AS Covid-19 (Adults),Consumable Cleaning Materials,38.28,BETA PAK LTD
Revenue,Adult Services,Adult Social Care,Central Codes (to be reallocated),5105663806,20.01.2021,Adelaide Resource Centre,Operational Equipment,55.92,BETA PAK LTD
Revenue,Adult Services,Adult Social Care,Central Codes (to be reallocated),5105662547,06.01.2021,Adelaide Resource Centre,Consumable Cleaning Materials,922.6,BETA PAK LTD
Revenue,Adult Services,Adult Social Care,Central Codes (to be reallocated),5105662548,06.01.2021,Adelaide Resource Centre,Consumable Cleaning Materials,1.95,BETA PAK LTD
Revenue,Adult Services,Adult Social Care,Central Codes (to be reallocated),5105662668,06.01.2021,Adelaide Resource Centre,Consumable Cleaning Materials,98.26,BETA PAK LTD
Revenue,Adult Services,Adult Social Care,Central Codes (to be reallocated),5105662530,06.01.2021,Adelaide Resource Centre,Consumable Cleaning Materials,26.82,BETA PAK LTD
Revenue,Adult Services,Adult Social Care,Central Codes (to be reallocated),5105662532,06.01.2021,Adelaide Resource Centre,Consumable Cleaning Materials,69.02,BETA PAK LTD
Revenue,Adult Services,Adult Social Care,Central Codes (to be reallocated),5105663913,20.01.2021,Adelaide Resource Centre,Consumable Cleaning Materials,121.56,BETA PAK LTD
Revenue,Adult Services,Adult Social Care,Central Codes (to be reallocated),5105663765,20.01.2021,Adelaide Resource Centre,Consumable Cleaning Materials,315.6,BETA PAK LTD
Revenue,Adult Services,Adult Social Care,Central Codes (to be reallocated),5400002903,29.01.2021,Adelaide Resource Centre,Consumable Cleaning Materials,2,BETA PAK LTD
Revenue,Adult Services,Adult Social Care,Central Codes (to be reallocated),5105664513,27.01.2021,Adelaide Resource Centre,Consumable Cleaning Materials,-13.57,BETA PAK LTD
Revenue,Neighbourhoods,Environmental & Regulatory Services,Service Management and Support Services,5105663411,13.01.2021,Waste Contract Management,Legal Fees - Other Parties,"23,746.20",BEVAN BRITTAN
Revenue,Neighbourhoods,Highways and Transport Services,Management and Support Services,5105662500,06.01.2021,Milestone 14 Dispute Resolution Process,Legal Fees - Other Parties,"5,178.00",BEVAN BRITTAN
Revenue,Neighbourhoods,Highways and Transport Services,Management and Support Services,5105662501,06.01.2021,Milestone 14 Dispute Resolution Process,Legal Fees - Other Parties,"3,021.70",BEVAN BRITTAN
Revenue,Neighbourhoods,Highways and Transport Services,Management and Support Services,5105662502,06.01.2021,Milestone 14 Dispute Resolution Process,Consultants Fees,"6,650.10",BEVAN BRITTAN
Revenue,Regeneration,Planning services,Economic Development,5105663056,08.01.2021,Wight Innovation ERDF,Legal Fees - Other Parties,"1,346.00",BEVAN BRITTAN
Revenue,Resources,Central Services,Support Services,5105663369,13.01.2021,Litigation Costs,Legal Fees - Other Parties,"3,000.00",BEVAN BRITTAN
Revenue,Adult Services,Adult Social Care,Central Codes (to be reallocated),5105664244,29.01.2021,Gouldings Resource Centre,Catering Purchases,-14.14,3663 (BFS GROUP LTD)
Revenue,Adult Services,Adult Social Care,Central Codes (to be reallocated),5105664244,29.01.2021,Gouldings Resource Centre,Catering Purchases,-10.76,3663 (BFS GROUP LTD)
Revenue,Adult Services,Adult Social Care,Central Codes (to be reallocated),5105662876,08.01.2021,Gouldings Resource Centre,Catering Purchases,109.76,3663 (BFS GROUP LTD)
Revenue,Adult Services,Adult Social Care,Central Codes (to be reallocated),5105664392,22.01.2021,Gouldings Resource Centre,Catering Purchases,320.76,3663 (BFS GROUP LTD)
Revenue,Adult Services,Adult Social Care,Central Codes (to be reallocated),5105664392,22.01.2021,Gouldings Resource Centre,Catering Purchases,32.36,3663 (BFS GROUP LTD)
Revenue,Adult Services,Adult Social Care,Central Codes (to be reallocated),5105664985,29.01.2021,Gouldings Resource Centre,Catering Purchases,240.26,3663 (BFS GROUP LTD)
Revenue,Adult Services,Adult Social Care,Central Codes (to be reallocated),5105664985,29.01.2021,Gouldings Resource Centre,Catering Purchases,33.46,3663 (BFS GROUP LTD)
Revenue,Adult Services,Adult Social Care,Central Codes (to be reallocated),5105663169,13.01.2021,Gouldings Resource Centre,Catering Purchases,206.66,3663 (BFS GROUP LTD)
Revenue,Adult Services,Adult Social Care,Central Codes (to be reallocated),5105663169,13.01.2021,Gouldings Resource Centre,Catering Purchases,11.86,3663 (BFS GROUP LTD)
Revenue,Adult Services,Adult Social Care,Central Codes (to be reallocated),5105663302,13.01.2021,Gouldings Resource Centre,Catering Purchases,126.87,3663 (BFS GROUP LTD)
Revenue,Adult Services,Adult Social Care,Central Codes (to be reallocated),5105662654,06.01.2021,Gouldings Resource Centre,"Refuse Collection, Disposal and Recycling Costs",127.2,BIFFA WASTE SERVICES LTD
Revenue,Adult Services,Adult Social Care,Central Codes (to be reallocated),5105662655,06.01.2021,Gouldings Resource Centre,"Refuse Collection, Disposal and Recycling Costs",382.8,BIFFA WASTE SERVICES LTD
Revenue,Public Health,Public Health,Central Codes (to be reallocated),5105663176,20.01.2021,Wellbeing Services,Computer Software Licencing,"1,350.00",BIONICAL SOLUTIONS
Revenue,Public Health,Public Health,Central Codes (to be reallocated),5105663176,20.01.2021,Wellbeing Services,Computer Software Licencing,120,BIONICAL SOLUTIONS
Revenue,Resources,Central Services,Support Services,5105664351,22.01.2021,Staff Benefits,Payment to Private Contractors,155,BLACKBERRY LANE PRE-SCHOOL
Revenue,Childrens Services,Children's & Education Services,Children Looked After,5105664031,22.01.2021,Purchased Fostering,Charges from Independent Providers,"1,995.00",BLUE SKY FOSTERING LTD
Revenue,Childrens Services,Children's & Education Services,Children Looked After,5105663969,20.01.2021,Purchased Fostering,Charges from Independent Providers,"8,525.00",BLUE SKY FOSTERING LTD
Revenue,Childrens Services,Children's & Education Services,Children Looked After,5105663970,20.01.2021,Purchased Fostering,Charges from Independent Providers,"6,510.00",BLUE SKY FOSTERING LTD
Revenue,Childrens Services,Children's & Education Services,Children Looked After,5105664030,22.01.2021,Purchased Fostering,Charges from Independent Providers,630,BLUE SKY FOSTERING LTD
Revenue,Childrens Services,Children's & Education Services,Family Support Services,5105662937,08.01.2021,Short Breaks,Charges from Independent Providers,349.17,BODSTER EQUINE ASSISTED LEARN CIC
Revenue,Fire & Rescue,Fire & Rescue Services,Fire fighting and Rescue Operations,5105662875,13.01.2021,Fire Fighters Salaries,Medical Fees and Staff Welfare,41.31,BOLLE SAFETY
Revenue,Fire & Rescue,Fire & Rescue Services,Fire fighting and Rescue Operations,5105662875,13.01.2021,Fire Fighters Salaries,Medical Fees and Staff Welfare,15,BOLLE SAFETY
Revenue,Fire & Rescue,Fire & Rescue Services,Fire fighting and Rescue Operations,5105662875,13.01.2021,Fire Fighters Salaries,Medical Fees and Staff Welfare,25,BOLLE SAFETY
Revenue,Fire & Rescue,Fire & Rescue Services,Fire fighting and Rescue Operations,5105662877,08.01.2021,Fire Fighters Salaries,Medical Fees and Staff Welfare,35.31,BOLLE SAFETY
Revenue,Fire & Rescue,Fire & Rescue Services,Fire fighting and Rescue Operations,5105663043,08.01.2021,Fire Fighters Salaries,Medical Fees and Staff Welfare,-35.31,BOLLE SAFETY
Revenue,Fire & Rescue,Fire & Rescue Services,Fire fighting and Rescue Operations,5105663186,13.01.2021,Fire Fighters Salaries,Medical Fees and Staff Welfare,25,BOLLE SAFETY
Revenue,Fire & Rescue,Fire & Rescue Services,Fire fighting and Rescue Operations,5105663186,13.01.2021,Fire Fighters Salaries,Medical Fees and Staff Welfare,15,BOLLE SAFETY
Revenue,Fire & Rescue,Fire & Rescue Services,Fire fighting and Rescue Operations,5105663186,13.01.2021,Fire Fighters Salaries,Medical Fees and Staff Welfare,41.31,BOLLE SAFETY
Revenue,Adult Services,Adult Social Care,Learning Disab Supp (to be reallocated),5105663112,08.01.2021,Plean Dene,Catering Purchases,93.8,BOOKER CASH & CARRY LTD
Revenue,Adult Services,Adult Social Care,Learning Disab Supp (to be reallocated),5105663113,08.01.2021,Plean Dene,Catering Purchases,30.25,BOOKER CASH & CARRY LTD
Revenue,Adult Services,Adult Social Care,Learning Disab Supp (to be reallocated),5105664541,29.01.2021,Plean Dene,Catering Purchases,207.77,BOOKER CASH & CARRY LTD
Revenue,Adult Services,Adult Social Care,Learning Disab Supp (to be reallocated),5105664541,29.01.2021,Plean Dene,Catering Purchases,11.59,BOOKER CASH & CARRY LTD
Revenue,Adult Services,Adult Social Care,Learning Disab Supp (to be reallocated),5105662991,08.01.2021,Plean Dene,Catering Purchases,14.73,BOOKER CASH & CARRY LTD
Revenue,Adult Services,Adult Social Care,Learning Disab Supp (to be reallocated),5105663752,22.01.2021,Plean Dene,Catering Purchases,156.27,BOOKER CASH & CARRY LTD
Revenue,Adult Services,Adult Social Care,Learning Disab Supp (to be reallocated),5105663752,22.01.2021,Plean Dene,Catering Purchases,11.59,BOOKER CASH & CARRY LTD
Revenue,Adult Services,Adult Social Care,Learning Disab Supp (to be reallocated),5105663753,22.01.2021,Plean Dene,Catering Purchases,24.09,BOOKER CASH & CARRY LTD
Revenue,Adult Services,Adult Social Care,Learning Disab Supp (to be reallocated),5105663753,22.01.2021,Plean Dene,Catering Purchases,5.35,BOOKER CASH & CARRY LTD
Revenue,Adult Services,Adult Social Care,Learning Disab Supp (to be reallocated),5105663766,20.01.2021,Plean Dene,Catering Purchases,1.3,BOOKER CASH & CARRY LTD
Revenue,Adult Services,Adult Social Care,Learning Disab Supp (to be reallocated),5105662458,04.01.2021,Plean Dene,Catering Purchases,19.62,BOOKER CASH & CARRY LTD
Revenue,Adult Services,Adult Social Care,Learning Disab Supp (to be reallocated),5105662458,04.01.2021,Plean Dene,Catering Purchases,9.99,BOOKER CASH & CARRY LTD
Revenue,Adult Services,Adult Social Care,Learning Disab Supp (to be reallocated),5105663309,22.01.2021,Plean Dene,Catering Purchases,88.27,BOOKER CASH & CARRY LTD
Revenue,Adult Services,Adult Social Care,Learning Disab Supp (to be reallocated),5105662558,13.01.2021,Plean Dene,Catering Purchases,149.73,BOOKER CASH & CARRY LTD
Revenue,Adult Services,Adult Social Care,Learning Disab Supp (to be reallocated),5105662558,13.01.2021,Plean Dene,Catering Purchases,11.59,BOOKER CASH & CARRY LTD
Revenue,Public Health,Public Health,Smoking & Tobacco,5105664002,20.01.2021,Stop Smoking Services & Interventions NP,Payment to Private Contractors,18,BOOTS THE CHEMIST LTD (Ryde)
Revenue,Public Health,Public Health,Smoking & Tobacco,5105664002,20.01.2021,Stop Smoking Services & Interventions NP,Payment to Private Contractors,109.2,BOOTS THE CHEMIST LTD (Ryde)
Revenue,Public Health,Public Health,Smoking & Tobacco,5105664002,20.01.2021,Stop Smoking Services & Interventions NP,Payment to Private Contractors,87.67,BOOTS THE CHEMIST LTD (Ryde)
Revenue,Public Health,Public Health,Smoking & Tobacco,5105664002,20.01.2021,Stop Smoking Services & Interventions NP,Payment to Private Contractors,18,BOOTS THE CHEMIST LTD (Ryde)
Revenue,Public Health,Public Health,Smoking & Tobacco,5105663994,20.01.2021,Stop Smoking Services & Interventions NP,Payment to Private Contractors,20,BOOTS UK LTD (107 HIGH ST SANDOWN)
Revenue,Public Health,Public Health,Smoking & Tobacco,5105663994,20.01.2021,Stop Smoking Services & Interventions NP,Payment to Private Contractors,43.41,BOOTS UK LTD (107 HIGH ST SANDOWN)
Revenue,Public Health,Public Health,Smoking & Tobacco,5105663994,20.01.2021,Stop Smoking Services & Interventions NP,Payment to Private Contractors,31.5,BOOTS UK LTD (107 HIGH ST SANDOWN)
Revenue,Public Health,Public Health,Smoking & Tobacco,5105663994,20.01.2021,Stop Smoking Services & Interventions NP,Payment to Private Contractors,245.7,BOOTS UK LTD (107 HIGH ST SANDOWN)
Revenue,Public Health,Public Health,Smoking & Tobacco,5105663994,20.01.2021,Stop Smoking Services & Interventions NP,Payment to Private Contractors,4,BOOTS UK LTD (107 HIGH ST SANDOWN)
Revenue,Public Health,Public Health,Smoking & Tobacco,5105664000,20.01.2021,Stop Smoking Services & Interventions NP,Payment to Private Contractors,109.2,BOOTS UK LTD (FRESHWATER)
Revenue,Public Health,Public Health,Smoking & Tobacco,5105664000,20.01.2021,Stop Smoking Services & Interventions NP,Payment to Private Contractors,18,BOOTS UK LTD (FRESHWATER)
Revenue,Public Health,Public Health,Smoking & Tobacco,5105663993,20.01.2021,Stop Smoking Services & Interventions NP,Payment to Private Contractors,9,BOOTS UK LTD (NEWPORT)
Revenue,Public Health,Public Health,Smoking & Tobacco,5105663993,20.01.2021,Stop Smoking Services & Interventions NP,Payment to Private Contractors,54.6,BOOTS UK LTD (NEWPORT)
Revenue,Public Health,Public Health,Smoking & Tobacco,5105663998,27.01.2021,Stop Smoking Services & Interventions NP,Payment to Private Contractors,16,BOOTS UK LTD (TOWER HOUSE)
Revenue,Public Health,Public Health,Smoking & Tobacco,5105663998,27.01.2021,Stop Smoking Services & Interventions NP,Payment to Private Contractors,27.3,BOOTS UK LTD (TOWER HOUSE)
Revenue,Public Health,Public Health,Smoking & Tobacco,5105663998,27.01.2021,Stop Smoking Services & Interventions NP,Payment to Private Contractors,145.62,BOOTS UK LTD (TOWER HOUSE)
Revenue,Public Health,Public Health,Smoking & Tobacco,5105663998,27.01.2021,Stop Smoking Services & Interventions NP,Payment to Private Contractors,4.5,BOOTS UK LTD (TOWER HOUSE)
Revenue,Adult Services,Adult Social Care,Social Care Activities,5105662537,13.01.2021,LD Team,Professional Services,201.8,BOSTICO INTERNATIONAL
Revenue,Childrens Services,Children's & Education Services,Family Support Services,5105661936,13.01.2021,S17 Child Protection,Support Children,20.42,BOSTICO INTERNATIONAL
Revenue,Childrens Services,Children's & Education Services,Family Support Services,5105664457,29.01.2021,S17 Child Protection,Support Children,270.35,BOSTICO INTERNATIONAL
Revenue,Childrens Services,Children's & Education Services,Family Support Services,5105664387,22.01.2021,S17 Child Protection,Support Children,120,BOSTICO INTERNATIONAL
Revenue,Adult Services,Adult Social Care,Mental Health Support - adults (18-64),5105661935,08.01.2021,Mental Health Other ST Support 18-64,Professional Services,185,BOSTICO INTERNATIONAL
Revenue,Childrens Services,Children's & Education Services,Children Looked After,5105663711,14.01.2021,Purchased Fostering,Charges from Independent Providers,"-1,804.42",BOURNEMOUTH BOROUGH COUNCIL
Revenue,Childrens Services,Children's & Education Services,Children Looked After,5105663712,14.01.2021,Purchased Fostering,Charges from Independent Providers,"1,804.42",BOURNEMOUTH BOROUGH COUNCIL
Revenue,Adult Services,Housing Services,Homelessness,5105664340,22.01.2021,Private Rented Sector Leasing Scheme,Accommodation Costs - Leaseholder Payments,746.81,BRAMBLE LETTINGS
Revenue,Adult Services,Housing Services,Homelessness,5105664340,22.01.2021,Private Rented Sector Leasing Scheme,Accommodation Costs - Leaseholder Payments,746.81,BRAMBLE LETTINGS
Revenue,Adult Services,Housing Services,Homelessness,5105664340,22.01.2021,Private Rented Sector Leasing Scheme,Accommodation Costs - Leaseholder Payments,746.81,BRAMBLE LETTINGS
Revenue,Adult Services,Housing Services,Homelessness,5105664340,22.01.2021,Private Rented Sector Leasing Scheme,Accommodation Costs - Leaseholder Payments,746.81,BRAMBLE LETTINGS
Revenue,Adult Services,Housing Services,Homelessness,5105664340,22.01.2021,Private Rented Sector Leasing Scheme,Accommodation Costs - Leaseholder Payments,746.81,BRAMBLE LETTINGS
Revenue,Adult Services,Housing Services,Homelessness,5105664340,22.01.2021,Private Rented Sector Leasing Scheme,Accommodation Costs - Leaseholder Payments,588.38,BRAMBLE LETTINGS
Revenue,Adult Services,Housing Services,Homelessness,5105664340,22.01.2021,Private Rented Sector Leasing Scheme,Accommodation Costs - Leaseholder Payments,588.38,BRAMBLE LETTINGS
Revenue,Adult Services,Housing Services,Homelessness,5105664340,22.01.2021,Private Rented Sector Leasing Scheme,Accommodation Costs - Leaseholder Payments,588.38,BRAMBLE LETTINGS
Revenue,Adult Services,Housing Services,Homelessness,5105664340,22.01.2021,Private Rented Sector Leasing Scheme,Accommodation Costs - Leaseholder Payments,588.38,BRAMBLE LETTINGS
Revenue,Adult Services,Housing Services,Homelessness,5105664340,22.01.2021,Private Rented Sector Leasing Scheme,Accommodation Costs - Leaseholder Payments,588.38,BRAMBLE LETTINGS
Revenue,Adult Services,Housing Services,Homelessness,5105664340,22.01.2021,Private Rented Sector Leasing Scheme,Accommodation Costs - Leaseholder Payments,746.81,BRAMBLE LETTINGS
Revenue,Adult Services,Housing Services,Homelessness,5105664340,22.01.2021,Private Rented Sector Leasing Scheme,Accommodation Costs - Leaseholder Payments,588.38,BRAMBLE LETTINGS
Revenue,Adult Services,Housing Services,Homelessness,5105664340,22.01.2021,Private Rented Sector Leasing Scheme,Accommodation Costs - Leaseholder Payments,746.81,BRAMBLE LETTINGS
Revenue,Adult Services,Housing Services,Homelessness,5105664340,22.01.2021,Private Rented Sector Leasing Scheme,Accommodation Costs - Leaseholder Payments,769.43,BRAMBLE LETTINGS
Revenue,Adult Services,Housing Services,Homelessness,5105664340,22.01.2021,Private Rented Sector Leasing Scheme,Accommodation Costs - Leaseholder Payments,746.81,BRAMBLE LETTINGS
Revenue,Adult Services,Housing Services,Homelessness,5105664340,22.01.2021,Private Rented Sector Leasing Scheme,Accommodation Costs - Leaseholder Payments,746.81,BRAMBLE LETTINGS
Revenue,Adult Services,Housing Services,Homelessness,5105664340,22.01.2021,Private Rented Sector Leasing Scheme,Accommodation Costs - Leaseholder Payments,746.81,BRAMBLE LETTINGS
Revenue,Adult Services,Housing Services,Homelessness,5105664340,22.01.2021,Private Rented Sector Leasing Scheme,Accommodation Costs - Leaseholder Payments,746.81,BRAMBLE LETTINGS
Revenue,Adult Services,Housing Services,Homelessness,5105664340,22.01.2021,Private Rented Sector Leasing Scheme,Accommodation Costs - Leaseholder Payments,746.81,BRAMBLE LETTINGS
Revenue,Adult Services,Housing Services,Homelessness,5105664340,22.01.2021,Private Rented Sector Leasing Scheme,Accommodation Costs - Leaseholder Payments,746.81,BRAMBLE LETTINGS
Revenue,Adult Services,Housing Services,Homelessness,5105664340,22.01.2021,Private Rented Sector Leasing Scheme,Accommodation Costs - Leaseholder Payments,746.81,BRAMBLE LETTINGS
Revenue,Adult Services,Housing Services,Homelessness,5105664340,22.01.2021,Private Rented Sector Leasing Scheme,Accommodation Costs - Leaseholder Payments,746.81,BRAMBLE LETTINGS
Revenue,Adult Services,Housing Services,Homelessness,5105664340,22.01.2021,Private Rented Sector Leasing Scheme,Accommodation Costs - Leaseholder Payments,281.66,BRAMBLE LETTINGS
Revenue,Adult Services,Housing Services,Homelessness,5105664340,22.01.2021,Private Rented Sector Leasing Scheme,Accommodation Costs - Leaseholder Payments,216.66,BRAMBLE LETTINGS
Revenue,Neighbourhoods,Cultural and Related Services,Recreation and Sport,5105664465,27.01.2021,Beach Safety & Inspection / Beach Awards,Payment to Private Contractors,420,BRIGHSTONE LANDSCAPING LTD
Revenue,Neighbourhoods,Cultural and Related Services,Recreation and Sport,5105664465,27.01.2021,Beach Safety & Inspection / Beach Awards,Payment to Private Contractors,70,BRIGHSTONE LANDSCAPING LTD
Revenue,Neighbourhoods,Environmental & Regulatory Services,(Street) Cleansing (not highways),5105662573,06.01.2021,Beach Cleaning,Payment to Private Contractors,50,BRIGHSTONE LANDSCAPING LTD
Revenue,Neighbourhoods,Environmental & Regulatory Services,(Street) Cleansing (not highways),5105663006,08.01.2021,Beach Cleaning,Payment to Private Contractors,280,BRIGHSTONE LANDSCAPING LTD
Revenue,Neighbourhoods,Environmental & Regulatory Services,(Street) Cleansing (not highways),5105664919,29.01.2021,Beach Cleaning,Beach Cleansing Contractors,"1,476.00",BRIGHSTONE LANDSCAPING LTD
Revenue,Neighbourhoods,Environmental & Regulatory Services,(Street) Cleansing (not highways),5105664465,27.01.2021,Beach Cleaning,Payment to Private Contractors,55,BRIGHSTONE LANDSCAPING LTD
Revenue,Neighbourhoods,Environmental & Regulatory Services,Coast Protection,5105663007,08.01.2021,Coast Protection,Payment to Private Contractors,60,BRIGHSTONE LANDSCAPING LTD
Revenue,Neighbourhoods,Environmental & Regulatory Services,Coast Protection,5105663088,08.01.2021,Coast Protection,Payment to Private Contractors,145,BRIGHSTONE LANDSCAPING LTD
Revenue,Neighbourhoods,Environmental & Regulatory Services,Coast Protection,5105663088,08.01.2021,Coast Protection,Payment to Private Contractors,185,BRIGHSTONE LANDSCAPING LTD
Revenue,Resources,Central Services,Support Services,5105664371,22.01.2021,Staff Benefits,Payment to Private Contractors,15,KCT CHILDCARE LIMITED
Revenue,Childrens Services,Children's & Education Services,Other Education and Community Budget,5105662643,06.01.2021,Adult Community Learning,Licences,40,BRITISH COMPUTER SOCIETY
Revenue,Adult Services,Adult Social Care,Learning Disability Suppt-adults (18-64),5105663811,20.01.2021,Learning Disability Residential 18-64,Charges from Independent Providers,"7,069.16",BROADHAM CARE LTD
Revenue,Childrens Services,Children's & Education Services,Children Looked After,5105662866,08.01.2021,In-house Fostering,Boarding Out Allowances,332.69,REDACTED PERSONAL DATA
Revenue,Childrens Services,Children's & Education Services,Children Looked After,5105663658,15.01.2021,In-house Fostering,Boarding Out Allowances,332.69,REDACTED PERSONAL DATA
Revenue,Neighbourhoods,Cultural and Related Services,Open Spaces,5105662882,08.01.2021,Other Grounds Maintenance,Operational Equipment,"4,221.35",BROXAP LTD
Capital,Corporate Items,Balance Sheet,Balance Sheet,5105663855,20.01.2021,Balance Sheet,Order Settlement to Bal Sht GL,92.12,BUCKLAND CARE LTD
Revenue,Adult Services,Central Services,Emergency Planning,5105664355,22.01.2021,NHS C19 Residential,Charges from Independent Providers,"2,314.40",BUCKLAND CARE LTD
Revenue,Adult Services,Central Services,Emergency Planning,5105664611,27.01.2021,NHS C19 Residential,Charges from Independent Providers,"4,860.24",BUCKLAND CARE LTD
Revenue,Adult Services,Central Services,Emergency Planning,5105664940,29.01.2021,NHS C19 Residential,Charges from Independent Providers,"4,860.24",BUCKLAND CARE LTD
Revenue,Adult Services,Central Services,Emergency Planning,5105663719,15.01.2021,NHS C19 Residential,Charges from Independent Providers,"3,008.72",BUCKLAND CARE LTD
Revenue,Adult Services,Central Services,Emergency Planning,5105663485,15.01.2021,NHS C19 Residential,Charges from Independent Providers,"3,008.72",BUCKLAND CARE LTD
Revenue,Adult Services,Adult Social Care,Support - Memory /Cognition-older people (65+),5105663855,20.01.2021,Memory & Cognition Residential 65+,Charges from Independent Providers,"2,124.08",BUCKLAND CARE LTD
Revenue,Adult Services,Adult Social Care,Support - Memory /Cognition-older people (65+),5105663855,20.01.2021,Memory & Cognition Residential 65+,Charges from Independent Providers,"2,497.32",BUCKLAND CARE LTD
Revenue,Adult Services,Adult Social Care,Support - Memory /Cognition-older people (65+),5105663855,20.01.2021,Memory & Cognition Residential 65+,Charges from Independent Providers,"2,124.08",BUCKLAND CARE LTD
Revenue,Adult Services,Adult Social Care,Commissioning & Service Delivery,5105663786,20.01.2021,FNC IWC funded clients,Charges from Independent Providers,867.24,BUCKLAND CARE LTD
Revenue,Adult Services,Adult Social Care,Commissioning & Service Delivery,5105663855,20.01.2021,FNC IWC funded clients,Charges from Independent Providers,735.84,BUCKLAND CARE LTD
Revenue,Adult Services,Adult Social Care,Physical Support - older people (65+),5105663855,20.01.2021,Physical Support Nursing 65+,Charges from Independent Providers,"2,803.64",BUCKLAND CARE LTD
Revenue,Adult Services,Adult Social Care,Physical Support - older people (65+),5105663786,20.01.2021,Physical Support Nursing 65+,Charges from Independent Providers,"3,304.29",BUCKLAND CARE LTD
Revenue,Adult Services,Balance Sheet,Balance Sheet,5105663855,20.01.2021,Reacted Personal Data,Order Settlement to Bal Sht GL,"2,124.08",BUCKLAND CARE LTD
Revenue,Adult Services,Adult Social Care,Social Support - Support for Carer,5105663855,20.01.2021,Carers Residential,Charges from Independent Providers,"2,497.32",BUCKLAND CARE LTD
Revenue,Adult Services,Adult Social Care,Physical Support - older people (65+),5105662497,06.01.2021,Physical Support Residential 65+,Charges from Independent Providers,267.57,BUCKLAND CARE LTD
Revenue,Adult Services,Adult Social Care,Learning Disability Support-older people,5105663855,20.01.2021,Learning Disability Residential 65+,Charges from Independent Providers,"2,497.32",BUCKLAND CARE LTD
Revenue,Adult Services,Adult Social Care,Physical Support - older people (65+),5105663855,20.01.2021,Physical Support Residential 65+,Charges from Independent Providers,"2,497.32",BUCKLAND CARE LTD
Revenue,Adult Services,Adult Social Care,Physical Support - older people (65+),5105663855,20.01.2021,Physical Support Residential 65+,Charges from Independent Providers,"2,497.32",BUCKLAND CARE LTD
Revenue,Adult Services,Adult Social Care,Physical Support - older people (65+),5105663855,20.01.2021,Physical Support Residential 65+,Charges from Independent Providers,"2,497.32",BUCKLAND CARE LTD
Revenue,Adult Services,Adult Social Care,Physical Support - older people (65+),5105663855,20.01.2021,Physical Support Residential 65+,Charges from Independent Providers,"2,497.32",BUCKLAND CARE LTD
Revenue,Adult Services,Adult Social Care,Physical Support - older people (65+),5105663855,20.01.2021,Physical Support Residential 65+,Charges from Independent Providers,"2,124.08",BUCKLAND CARE LTD
Revenue,Adult Services,Adult Social Care,Physical Support - older people (65+),5105663855,20.01.2021,Physical Support Residential 65+,Charges from Independent Providers,"2,028.32",BUCKLAND CARE LTD
Revenue,Adult Services,Adult Social Care,Physical Support - older people (65+),5105663855,20.01.2021,Physical Support Residential 65+,Charges from Independent Providers,"2,497.32",BUCKLAND CARE LTD
Revenue,Adult Services,Adult Social Care,Physical Support - older people (65+),5105663855,20.01.2021,Physical Support Residential 65+,Charges from Independent Providers,"2,497.32",BUCKLAND CARE LTD
Revenue,Adult Services,Adult Social Care,Physical Support - older people (65+),5105663855,20.01.2021,Physical Support Residential 65+,Charges from Independent Providers,"2,028.32",BUCKLAND CARE LTD
Revenue,Adult Services,Adult Social Care,Physical Support - older people (65+),5105663855,20.01.2021,Physical Support Residential 65+,Charges from Independent Providers,"2,028.32",BUCKLAND CARE LTD
Revenue,Adult Services,Adult Social Care,Physical Support - older people (65+),5105663855,20.01.2021,Physical Support Residential 65+,Charges from Independent Providers,"2,497.32",BUCKLAND CARE LTD
Revenue,Adult Services,Adult Social Care,Physical Support - older people (65+),5105663855,20.01.2021,Physical Support Residential 65+,Charges from Independent Providers,"2,497.32",BUCKLAND CARE LTD
Revenue,Adult Services,Adult Social Care,Social Support - Social Isolation/Other,5105664938,29.01.2021,Social Isolation/Other Nursing,Charges from Independent Providers,"8,911.57",BUCKLAND CARE LTD
Revenue,Adult Services,Adult Social Care,Mental Health Support-older people (65+),5105664012,20.01.2021,Mental Health Nursing 65+,Charges from Independent Providers,"10,914.17",BUCKLAND CARE LTD
Revenue,Adult Services,Central Services,Emergency Planning,5105663484,15.01.2021,NHS C19 Nursing,Charges from Independent Providers,"3,925.92",BUCKLAND CARE LTD
Revenue,Adult Services,Central Services,Emergency Planning,5105663484,15.01.2021,NHS C19 Nursing,Charges from Independent Providers,"1,472.22",BUCKLAND CARE LTD
Revenue,Adult Services,Central Services,Emergency Planning,5105663718,15.01.2021,NHS C19 Nursing,Charges from Independent Providers,"1,501.95",BUCKLAND CARE LTD
Revenue,Adult Services,Central Services,Emergency Planning,5105663042,08.01.2021,NHS C19 Nursing,Charges from Independent Providers,"2,780.86",BUCKLAND CARE LTD
Revenue,Adult Services,Central Services,Emergency Planning,5105663919,20.01.2021,NHS C19 Nursing,Charges from Independent Providers,"4,253.08",BUCKLAND CARE LTD
Revenue,Adult Services,Central Services,Emergency Planning,5105662691,08.01.2021,NHS C19 Nursing,Charges from Independent Providers,300.39,BUCKLAND CARE LTD
Revenue,Adult Services,Central Services,Emergency Planning,5105662691,08.01.2021,NHS C19 Nursing,Charges from Independent Providers,"5,500.04",BUCKLAND CARE LTD
Revenue,Adult Services,Central Services,Emergency Planning,5105662691,08.01.2021,NHS C19 Nursing,Charges from Independent Providers,"1,375.01",BUCKLAND CARE LTD
Revenue,Adult Services,Central Services,Emergency Planning,5105662691,08.01.2021,NHS C19 Nursing,Charges from Independent Providers,"1,767.87",BUCKLAND CARE LTD
Revenue,Adult Services,Central Services,Emergency Planning,5105662495,06.01.2021,NHS C19 Nursing,Charges from Independent Providers,"5,500.04",BUCKLAND CARE LTD
Revenue,Adult Services,Adult Social Care,Commissioning & Service Delivery,5105663845,20.01.2021,"Funded Nursing Care, Registered Nursing Care Contribution",Charges from Independent Providers,735.84,BUCKLAND CARE LTD
Revenue,Adult Services,Adult Social Care,Commissioning & Service Delivery,5105663845,20.01.2021,"Funded Nursing Care, Registered Nursing Care Contribution",Charges from Independent Providers,735.84,BUCKLAND CARE LTD
Revenue,Adult Services,Adult Social Care,Commissioning & Service Delivery,5105663845,20.01.2021,"Funded Nursing Care, Registered Nursing Care Contribution",Charges from Independent Providers,735.84,BUCKLAND CARE LTD
Revenue,Adult Services,Adult Social Care,Commissioning & Service Delivery,5105663845,20.01.2021,"Funded Nursing Care, Registered Nursing Care Contribution",Charges from Independent Providers,735.84,BUCKLAND CARE LTD
Revenue,Adult Services,Central Services,Emergency Planning,5105663718,15.01.2021,NHS C19 Residential,Charges from Independent Providers,"4,860.24",BUCKLAND CARE LTD
Revenue,Adult Services,Adult Social Care,Learning Disability Suppt-adults (18-64),5105663845,20.01.2021,Learning Disability Nursing 18-64,Charges from Independent Providers,"5,712.00",BUCKLAND CARE LTD
Revenue,Adult Services,Adult Social Care,Learning Disability Suppt-adults (18-64),5105663845,20.01.2021,Learning Disability Nursing 18-64,Charges from Independent Providers,"2,803.64",BUCKLAND CARE LTD
Revenue,Adult Services,Adult Social Care,Commissioning & Service Delivery,5105663242,13.01.2021,FNC IWC funded clients,Charges from Independent Providers,"2,733.12",BUCKLAND CARE LTD
Revenue,Adult Services,Adult Social Care,Commissioning & Service Delivery,5105663718,15.01.2021,FNC IWC funded clients,Charges from Independent Providers,394.2,BUCKLAND CARE LTD
Revenue,Adult Services,Adult Social Care,Commissioning & Service Delivery,5105664012,20.01.2021,FNC IWC funded clients,Charges from Independent Providers,"2,864.52",BUCKLAND CARE LTD
Revenue,Adult Services,Adult Social Care,Commissioning & Service Delivery,5105662691,08.01.2021,FNC IWC funded clients,Charges from Independent Providers,78.84,BUCKLAND CARE LTD
Revenue,Adult Services,Adult Social Care,Commissioning & Service Delivery,5105663845,20.01.2021,FNC IWC funded clients,Regular Respite Care,735.84,BUCKLAND CARE LTD
Revenue,Adult Services,Adult Social Care,Commissioning & Service Delivery,5105665004,29.01.2021,FNC IWC funded clients,Charges from Independent Providers,"1,471.68",BUCKLAND CARE LTD
Revenue,Adult Services,Adult Social Care,Commissioning & Service Delivery,5105664938,29.01.2021,FNC IWC funded clients,Charges from Independent Providers,"2,338.92",BUCKLAND CARE LTD
Revenue,Adult Services,Adult Social Care,Commissioning & Service Delivery,5105663845,20.01.2021,FNC IWC funded clients,Charges from Independent Providers,735.84,BUCKLAND CARE LTD
Revenue,Adult Services,Adult Social Care,Commissioning & Service Delivery,5105663845,20.01.2021,FNC IWC funded clients,Charges from Independent Providers,735.84,BUCKLAND CARE LTD
Revenue,Adult Services,Adult Social Care,Commissioning & Service Delivery,5105663845,20.01.2021,FNC IWC funded clients,Charges from Independent Providers,735.84,BUCKLAND CARE LTD
Revenue,Adult Services,Adult Social Care,Commissioning & Service Delivery,5105663845,20.01.2021,FNC IWC funded clients,Charges from Independent Providers,735.84,BUCKLAND CARE LTD
Revenue,Adult Services,Adult Social Care,Commissioning & Service Delivery,5105663845,20.01.2021,FNC IWC funded clients,Charges from Independent Providers,735.84,BUCKLAND CARE LTD
Revenue,Adult Services,Adult Social Care,Commissioning & Service Delivery,5105663845,20.01.2021,FNC IWC funded clients,Charges from Independent Providers,735.84,BUCKLAND CARE LTD
Revenue,Adult Services,Adult Social Care,Commissioning & Service Delivery,5105663845,20.01.2021,FNC IWC funded clients,Charges from Independent Providers,735.84,BUCKLAND CARE LTD
Revenue,Adult Services,Adult Social Care,Commissioning & Service Delivery,5105663845,20.01.2021,FNC IWC funded clients,Charges from Independent Providers,735.84,BUCKLAND CARE LTD
Revenue,Adult Services,Adult Social Care,Commissioning & Service Delivery,5105663845,20.01.2021,FNC IWC funded clients,Charges from Independent Providers,735.84,BUCKLAND CARE LTD
Revenue,Adult Services,Adult Social Care,Commissioning & Service Delivery,5105663845,20.01.2021,FNC IWC funded clients,Charges from Independent Providers,735.84,BUCKLAND CARE LTD
Revenue,Adult Services,Adult Social Care,Physical Support - older people (65+),5105663845,20.01.2021,Physical Support Nursing 65+,Charges from Independent Providers,"2,497.32",BUCKLAND CARE LTD
Revenue,Adult Services,Adult Social Care,Physical Support - older people (65+),5105663845,20.01.2021,Physical Support Nursing 65+,Charges from Independent Providers,"2,803.64",BUCKLAND CARE LTD
Revenue,Adult Services,Adult Social Care,Physical Support - older people (65+),5105663845,20.01.2021,Physical Support Nursing 65+,Charges from Independent Providers,"2,803.64",BUCKLAND CARE LTD
Revenue,Adult Services,Adult Social Care,Physical Support - older people (65+),5105663845,20.01.2021,Physical Support Nursing 65+,Charges from Independent Providers,"2,803.64",BUCKLAND CARE LTD
Revenue,Adult Services,Adult Social Care,Physical Support - older people (65+),5105663845,20.01.2021,Physical Support Nursing 65+,Charges from Independent Providers,"2,803.64",BUCKLAND CARE LTD
Revenue,Adult Services,Adult Social Care,Physical Support - older people (65+),5105663845,20.01.2021,Physical Support Nursing 65+,Charges from Independent Providers,"2,803.64",BUCKLAND CARE LTD
Revenue,Adult Services,Adult Social Care,Physical Support - older people (65+),5105663845,20.01.2021,Physical Support Nursing 65+,Charges from Independent Providers,"2,803.64",BUCKLAND CARE LTD
Revenue,Adult Services,Adult Social Care,Physical Support - older people (65+),5105663845,20.01.2021,Physical Support Nursing 65+,Charges from Independent Providers,"2,803.64",BUCKLAND CARE LTD
Revenue,Adult Services,Adult Social Care,Physical Support - older people (65+),5105663242,13.01.2021,Physical Support Nursing 65+,Charges from Independent Providers,"10,413.52",BUCKLAND CARE LTD
Revenue,Adult Services,Adult Social Care,Physical Support - adults (18-64),5105663845,20.01.2021,Physical Support Nursing 18-64,Charges from Independent Providers,"2,803.64",BUCKLAND CARE LTD
Revenue,Adult Services,Adult Social Care,Commissioning & Service Delivery,5105663845,20.01.2021,CHC Nursing Care,Charges from Independent Providers,"3,539.48",BUCKLAND CARE LTD
Revenue,Adult Services,Adult Social Care,Commissioning & Service Delivery,5105663845,20.01.2021,CHC Nursing Care,Charges from Independent Providers,"3,539.48",BUCKLAND CARE LTD
Revenue,Adult Services,Adult Social Care,Commissioning & Service Delivery,5105663845,20.01.2021,CHC Nursing Care,Charges from Independent Providers,"3,539.48",BUCKLAND CARE LTD
Revenue,Adult Services,Adult Social Care,Commissioning & Service Delivery,5105663845,20.01.2021,CHC Nursing Care,Charges from Independent Providers,"3,539.48",BUCKLAND CARE LTD
Revenue,Adult Services,Adult Social Care,Commissioning & Service Delivery,5105663845,20.01.2021,CHC Nursing Care,Charges from Independent Providers,"3,539.48",BUCKLAND CARE LTD
Revenue,Adult Services,Adult Social Care,Commissioning & Service Delivery,5105663845,20.01.2021,CHC Nursing Care,Charges from Independent Providers,"11,424.00",BUCKLAND CARE LTD
Revenue,Adult Services,Adult Social Care,Commissioning & Service Delivery,5105663845,20.01.2021,CHC Nursing Care,Charges from Independent Providers,"3,539.48",BUCKLAND CARE LTD
Revenue,Adult Services,Adult Social Care,Commissioning & Service Delivery,5105663845,20.01.2021,CHC Nursing Care,Charges from Independent Providers,"3,539.48",BUCKLAND CARE LTD
Revenue,Adult Services,Adult Social Care,Commissioning & Service Delivery,5105663845,20.01.2021,CHC Nursing Care,Charges from Independent Providers,"3,539.48",BUCKLAND CARE LTD
Revenue,Adult Services,Adult Social Care,Support - Memory /Cognition-older people (65+),5105663845,20.01.2021,Memory & Cognition Nursing 65+,Regular Respite Care,"2,803.64",BUCKLAND CARE LTD
Revenue,Adult Services,Adult Social Care,Physical Support - older people (65+),5105664518,27.01.2021,Physical Support Residential 65+,Charges from Independent Providers,"3,121.65",BUCKLAND CARE LTD
Revenue,Adult Services,Adult Social Care,Support - Memory /Cognition-older people (65+),5105665004,29.01.2021,Memory & Cognition Nursing 65+,Charges from Independent Providers,"5,607.28",BUCKLAND CARE LTD
Revenue,Adult Services,Adult Social Care,Support - Memory /Cognition-older people (65+),5105663845,20.01.2021,Memory & Cognition Nursing 65+,Charges from Independent Providers,"3,235.12",BUCKLAND CARE LTD
Revenue,Adult Services,Adult Social Care,Physical Support - older people (65+),5105663845,20.01.2021,Physical Support Residential 65+,Charges from Independent Providers,"2,497.32",BUCKLAND CARE LTD
Revenue,Adult Services,Adult Social Care,Physical Support - older people (65+),5105663868,20.01.2021,Physical Support Nursing 65+,Charges from Independent Providers,"3,876.32",BUPA CARE HOME (BNH) LTD
Capital,Resources,Capital,Capital,5105663734,15.01.2021,Server Farm,ICT Hardware & Software - Capital,-439.25,BUY IT DIRECT
Capital,Resources,Capital,Capital,5105663735,15.01.2021,Server Farm,ICT Hardware & Software - Capital,"1,322.70",BUY IT DIRECT
Capital,Resources,Capital,Capital,5105663735,15.01.2021,Server Farm,ICT Hardware & Software - Capital,627.5,BUY IT DIRECT
Revenue,Childrens Services,Children's & Education Services,Children Looked After,5105664068,22.01.2021,Special Guardianship Order Costs,Support Children,161.49,REDACTED PERSONAL DATA
Revenue,Childrens Services,Children's & Education Services,Children Looked After,5105662722,08.01.2021,Special Guardianship Order Costs,Support Children,161.49,REDACTED PERSONAL DATA
Revenue,Childrens Services,Children's & Education Services,Children Looked After,5105664674,29.01.2021,Special Guardianship Order Costs,Support Children,161.49,REDACTED PERSONAL DATA
Revenue,Childrens Services,Children's & Education Services,Children Looked After,5105663516,15.01.2021,Special Guardianship Order Costs,Support Children,161.49,REDACTED PERSONAL DATA
Revenue,Childrens Services,Children's & Education Services,Children Looked After,5105664096,22.01.2021,Children placed with Family&Friends,Boarding Out Allowances,244.47,REDACTED PERSONAL DATA
Revenue,Childrens Services,Children's & Education Services,Children Looked After,5105662750,08.01.2021,Children placed with Family&Friends,Boarding Out Allowances,244.47,REDACTED PERSONAL DATA
Revenue,Childrens Services,Children's & Education Services,Children Looked After,5105664702,29.01.2021,Children placed with Family&Friends,Boarding Out Allowances,244.47,REDACTED PERSONAL DATA
Revenue,Childrens Services,Children's & Education Services,Children Looked After,5105663545,15.01.2021,Children placed with Family&Friends,Boarding Out Allowances,244.47,REDACTED PERSONAL DATA
Revenue,Childrens Services,Children's & Education Services,Children Looked After,5105662742,08.01.2021,Adoption Costs,Support Children,161.49,REDACTED PERSONAL DATA
Revenue,Childrens Services,Children's & Education Services,Children Looked After,5105662742,08.01.2021,Adoption Costs,Support Children,168.09,REDACTED PERSONAL DATA
Revenue,Childrens Services,Children's & Education Services,Children Looked After,5105663537,15.01.2021,Adoption Costs,Support Children,161.49,REDACTED PERSONAL DATA
Revenue,Childrens Services,Children's & Education Services,Children Looked After,5105663537,15.01.2021,Adoption Costs,Support Children,168.09,REDACTED PERSONAL DATA
Revenue,Childrens Services,Children's & Education Services,Children Looked After,5105664694,29.01.2021,Adoption Costs,Support Children,161.49,REDACTED PERSONAL DATA
Revenue,Childrens Services,Children's & Education Services,Children Looked After,5105664694,29.01.2021,Adoption Costs,Support Children,168.09,REDACTED PERSONAL DATA
Revenue,Childrens Services,Children's & Education Services,Children Looked After,5105664088,22.01.2021,Adoption Costs,Support Children,161.49,REDACTED PERSONAL DATA
Revenue,Childrens Services,Children's & Education Services,Children Looked After,5105664088,22.01.2021,Adoption Costs,Support Children,168.09,REDACTED PERSONAL DATA
Revenue,Childrens Services,Children's & Education Services,Children Looked After,5105664075,22.01.2021,Special Guardianship Order Costs,Support Children,40.56,REDACTED PERSONAL DATA
Revenue,Childrens Services,Children's & Education Services,Children Looked After,5105662729,08.01.2021,Special Guardianship Order Costs,Support Children,40.56,REDACTED PERSONAL DATA
Revenue,Childrens Services,Children's & Education Services,Children Looked After,5105664681,29.01.2021,Special Guardianship Order Costs,Support Children,40.56,REDACTED PERSONAL DATA
Revenue,Childrens Services,Children's & Education Services,Children Looked After,5105663523,15.01.2021,Special Guardianship Order Costs,Support Children,40.56,REDACTED PERSONAL DATA
Revenue,Childrens Services,Children's & Education Services,Children Looked After,5105664094,22.01.2021,In-house Fostering,Boarding Out Allowances,332.69,REDACTED PERSONAL DATA
Revenue,Childrens Services,Children's & Education Services,Children Looked After,5105664094,22.01.2021,In-house Fostering,Boarding Out Allowances,244.47,REDACTED PERSONAL DATA
Revenue,Childrens Services,Children's & Education Services,Children Looked After,5105664094,22.01.2021,In-house Fostering,Boarding Out Allowances,244.47,REDACTED PERSONAL DATA
Revenue,Childrens Services,Children's & Education Services,Children Looked After,5105662748,08.01.2021,In-house Fostering,Boarding Out Allowances,332.69,REDACTED PERSONAL DATA
Revenue,Childrens Services,Children's & Education Services,Children Looked After,5105662748,08.01.2021,In-house Fostering,Boarding Out Allowances,244.47,REDACTED PERSONAL DATA
Revenue,Childrens Services,Children's & Education Services,Children Looked After,5105662748,08.01.2021,In-house Fostering,Boarding Out Allowances,244.47,REDACTED PERSONAL DATA
Revenue,Childrens Services,Children's & Education Services,Children Looked After,5105664700,29.01.2021,In-house Fostering,Boarding Out Allowances,332.69,REDACTED PERSONAL DATA
Revenue,Childrens Services,Children's & Education Services,Children Looked After,5105664700,29.01.2021,In-house Fostering,Boarding Out Allowances,244.47,REDACTED PERSONAL DATA
Revenue,Childrens Services,Children's & Education Services,Children Looked After,5105664700,29.01.2021,In-house Fostering,Boarding Out Allowances,244.47,REDACTED PERSONAL DATA
Revenue,Childrens Services,Children's & Education Services,Children Looked After,5105663543,15.01.2021,In-house Fostering,Boarding Out Allowances,332.69,REDACTED PERSONAL DATA
Revenue,Childrens Services,Children's & Education Services,Children Looked After,5105663543,15.01.2021,In-house Fostering,Boarding Out Allowances,244.47,REDACTED PERSONAL DATA
Revenue,Childrens Services,Children's & Education Services,Children Looked After,5105663543,15.01.2021,In-house Fostering,Boarding Out Allowances,244.47,REDACTED PERSONAL DATA
Revenue,Childrens Services,Children's & Education Services,Children Looked After,5105664106,22.01.2021,Special Guardianship Order Costs,Support Children,175.78,REDACTED PERSONAL DATA
Revenue,Childrens Services,Children's & Education Services,Children Looked After,5105664712,29.01.2021,Special Guardianship Order Costs,Support Children,175.78,REDACTED PERSONAL DATA
Revenue,Childrens Services,Children's & Education Services,Children Looked After,5105662760,08.01.2021,Special Guardianship Order Costs,Support Children,175.78,REDACTED PERSONAL DATA
Revenue,Childrens Services,Children's & Education Services,Children Looked After,5105663554,15.01.2021,Special Guardianship Order Costs,Support Children,175.78,REDACTED PERSONAL DATA
Revenue,Childrens Services,Children's & Education Services,Children Looked After,5105664055,22.01.2021,In-house Fostering,Boarding Out Allowances,286.47,REDACTED PERSONAL DATA
Revenue,Childrens Services,Children's & Education Services,Children Looked After,5105664055,22.01.2021,In-house Fostering,Boarding Out Allowances,50,REDACTED PERSONAL DATA
Revenue,Childrens Services,Children's & Education Services,Children Looked After,5105662710,08.01.2021,In-house Fostering,Boarding Out Allowances,332.69,REDACTED PERSONAL DATA
Revenue,Childrens Services,Children's & Education Services,Children Looked After,5105664661,29.01.2021,In-house Fostering,Boarding Out Allowances,286.47,REDACTED PERSONAL DATA
Revenue,Childrens Services,Children's & Education Services,Children Looked After,5105664661,29.01.2021,In-house Fostering,Boarding Out Allowances,50,REDACTED PERSONAL DATA
Revenue,Childrens Services,Children's & Education Services,Children Looked After,5105663503,15.01.2021,In-house Fostering,Boarding Out Allowances,47.53,REDACTED PERSONAL DATA
Revenue,Childrens Services,Children's & Education Services,Children Looked After,5105663503,15.01.2021,In-house Fostering,Boarding Out Allowances,368.32,REDACTED PERSONAL DATA
Revenue,Childrens Services,Children's & Education Services,Children Looked After,5105663503,15.01.2021,In-house Fostering,Boarding Out Allowances,50,REDACTED PERSONAL DATA
Revenue,Childrens Services,Children's & Education Services,Children Looked After,5105664062,22.01.2021,In-house Fostering,Boarding Out Allowances,244.47,REDACTED PERSONAL DATA
Revenue,Childrens Services,Children's & Education Services,Children Looked After,5105664062,22.01.2021,In-house Fostering,Boarding Out Allowances,286.47,REDACTED PERSONAL DATA
Revenue,Childrens Services,Children's & Education Services,Children Looked After,5105664668,29.01.2021,In-house Fostering,Boarding Out Allowances,244.47,REDACTED PERSONAL DATA
Revenue,Childrens Services,Children's & Education Services,Children Looked After,5105664668,29.01.2021,In-house Fostering,Boarding Out Allowances,286.47,REDACTED PERSONAL DATA
Revenue,Childrens Services,Children's & Education Services,Children Looked After,5105663510,15.01.2021,In-house Fostering,Boarding Out Allowances,314.32,REDACTED PERSONAL DATA
Revenue,Childrens Services,Children's & Education Services,Children Looked After,5105663510,15.01.2021,In-house Fostering,Boarding Out Allowances,368.32,REDACTED PERSONAL DATA
Revenue,Childrens Services,Children's & Education Services,Children Looked After,5105664051,22.01.2021,In-house Fostering,Boarding Out Allowances,316.19,REDACTED PERSONAL DATA
Revenue,Childrens Services,Children's & Education Services,Children Looked After,5105662706,08.01.2021,In-house Fostering,Boarding Out Allowances,316.19,REDACTED PERSONAL DATA
Revenue,Childrens Services,Children's & Education Services,Children Looked After,5105664657,29.01.2021,In-house Fostering,Boarding Out Allowances,316.19,REDACTED PERSONAL DATA
Revenue,Childrens Services,Children's & Education Services,Children Looked After,5105663499,15.01.2021,In-house Fostering,Boarding Out Allowances,316.19,REDACTED PERSONAL DATA
Revenue,Childrens Services,Children's & Education Services,Children Looked After,5105664083,22.01.2021,Special Guardianship Order Costs,Support Children,200.83,REDACTED PERSONAL DATA
Revenue,Childrens Services,Children's & Education Services,Children Looked After,5105662737,08.01.2021,Special Guardianship Order Costs,Support Children,200.83,REDACTED PERSONAL DATA
Revenue,Childrens Services,Children's & Education Services,Children Looked After,5105664689,29.01.2021,Special Guardianship Order Costs,Support Children,200.83,REDACTED PERSONAL DATA
Revenue,Childrens Services,Children's & Education Services,Children Looked After,5105663532,15.01.2021,Special Guardianship Order Costs,Support Children,200.83,REDACTED PERSONAL DATA
Revenue,Childrens Services,Children's & Education Services,Children Looked After,5105662720,08.01.2021,Adoption Costs,Support Children,168.39,REDACTED PERSONAL DATA
Revenue,Childrens Services,Children's & Education Services,Children Looked After,5105663514,15.01.2021,Adoption Costs,Support Children,168.39,REDACTED PERSONAL DATA
Revenue,Childrens Services,Children's & Education Services,Children Looked After,5105664672,29.01.2021,Adoption Costs,Support Children,168.39,REDACTED PERSONAL DATA
Revenue,Childrens Services,Children's & Education Services,Children Looked After,5105664066,22.01.2021,Adoption Costs,Support Children,168.39,REDACTED PERSONAL DATA
Revenue,Childrens Services,Children's & Education Services,Other Education and Community Budget,5105662435,13.01.2021,Learning & Development Running Costs,Gas,639.4,CALOR GAS LIMITED
Revenue,Childrens Services,Children's & Education Services,Other Education and Community Budget,5105664391,27.01.2021,Learning & Development Running Costs,Gas,859.28,CALOR GAS LIMITED
Revenue,Childrens Services,Children's & Education Services,Children Looked After,5105664557,27.01.2021,NHS Funded Placements,Charges from Independent Providers,443.41,CAMBIAN ASPERGER SYNDROME SERVICES LTD
Revenue,Childrens Services,Children's & Education Services,Children Looked After,5105664556,27.01.2021,NHS Funded Placements,Charges from Independent Providers,43.56,CAMBIAN ASPERGER SYNDROME SERVICES LTD
Revenue,Childrens Services,Children's & Education Services,Children Looked After,5105663047,08.01.2021,NHS Funded Placements,Charges from Independent Providers,475.09,CAMBIAN ASPERGER SYNDROME SERVICES LTD
Revenue,Childrens Services,Children's & Education Services,Children Looked After,5105663052,08.01.2021,NHS Funded Placements,Charges from Independent Providers,46.68,CAMBIAN ASPERGER SYNDROME SERVICES LTD
Revenue,Childrens Services,Children's & Education Services,Children Looked After,5105663055,08.01.2021,NHS Funded Placements,Charges from Independent Providers,48.23,CAMBIAN ASPERGER SYNDROME SERVICES LTD
Revenue,Childrens Services,Children's & Education Services,Children Looked After,5105662117,08.01.2021,NHS Funded Placements,Charges from Independent Providers,490.92,CAMBIAN ASPERGER SYNDROME SERVICES LTD
Revenue,Childrens Services,Children's & Education Services,Management & Support Services,5105664556,27.01.2021,Pre 16 Independ. & Non-Maint. Special Schls & Independ. Specialist Provision,Charges from Independent Providers,301.98,CAMBIAN ASPERGER SYNDROME SERVICES LTD
Revenue,Childrens Services,Children's & Education Services,Management & Support Services,5105664557,27.01.2021,Pre 16 Independ. & Non-Maint. Special Schls & Independ. Specialist Provision,Charges from Independent Providers,"3,073.59",CAMBIAN ASPERGER SYNDROME SERVICES LTD
Revenue,Childrens Services,Children's & Education Services,Management & Support Services,5105663050,08.01.2021,Pre 16 Independ. & Non-Maint. Special Schls & Independ. Specialist Provision,Charges from Independent Providers,"-1,520.40",CAMBIAN ASPERGER SYNDROME SERVICES LTD
Revenue,Childrens Services,Children's & Education Services,Management & Support Services,5105663052,08.01.2021,Pre 16 Independ. & Non-Maint. Special Schls & Independ. Specialist Provision,Charges from Independent Providers,323.54,CAMBIAN ASPERGER SYNDROME SERVICES LTD
Revenue,Childrens Services,Children's & Education Services,Management & Support Services,5105663054,08.01.2021,Pre 16 Independ. & Non-Maint. Special Schls & Independ. Specialist Provision,Charges from Independent Providers,"-1,571.08",CAMBIAN ASPERGER SYNDROME SERVICES LTD
Revenue,Childrens Services,Children's & Education Services,Management & Support Services,5105663055,08.01.2021,Pre 16 Independ. & Non-Maint. Special Schls & Independ. Specialist Provision,Charges from Independent Providers,334.33,CAMBIAN ASPERGER SYNDROME SERVICES LTD
Revenue,Childrens Services,Children's & Education Services,Management & Support Services,5105663047,08.01.2021,Pre 16 Independ. & Non-Maint. Special Schls & Independ. Specialist Provision,Charges from Independent Providers,"3,293.12",CAMBIAN ASPERGER SYNDROME SERVICES LTD
Revenue,Childrens Services,Children's & Education Services,Management & Support Services,5105662117,08.01.2021,Pre 16 Independ. & Non-Maint. Special Schls & Independ. Specialist Provision,Charges from Independent Providers,"3,402.90",CAMBIAN ASPERGER SYNDROME SERVICES LTD
Revenue,Childrens Services,Children's & Education Services,Children Looked After,5105664556,27.01.2021,Purchased Residential,Charges from Independent Providers,"1,073.50",CAMBIAN ASPERGER SYNDROME SERVICES LTD
Revenue,Childrens Services,Children's & Education Services,Children Looked After,5105664557,27.01.2021,Purchased Residential,Charges from Independent Providers,"10,926.52",CAMBIAN ASPERGER SYNDROME SERVICES LTD
Revenue,Childrens Services,Children's & Education Services,Children Looked After,5105663045,08.01.2021,Purchased Residential,Charges from Independent Providers,"-15,475.20",CAMBIAN ASPERGER SYNDROME SERVICES LTD
Revenue,Childrens Services,Children's & Education Services,Children Looked After,5105663047,08.01.2021,Purchased Residential,Charges from Independent Providers,"11,706.99",CAMBIAN ASPERGER SYNDROME SERVICES LTD
Revenue,Childrens Services,Children's & Education Services,Children Looked After,5105663055,08.01.2021,Purchased Residential,Charges from Independent Providers,"1,188.52",CAMBIAN ASPERGER SYNDROME SERVICES LTD
Revenue,Childrens Services,Children's & Education Services,Children Looked After,5105663052,08.01.2021,Purchased Residential,Charges from Independent Providers,"1,150.18",CAMBIAN ASPERGER SYNDROME SERVICES LTD
Revenue,Childrens Services,Children's & Education Services,Children Looked After,5105662117,08.01.2021,Purchased Residential,Charges from Independent Providers,"12,097.22",CAMBIAN ASPERGER SYNDROME SERVICES LTD
Revenue,Childrens Services,Children's & Education Services,Post-16 Provision,5105664215,27.01.2021,Post 16 Independ. & Non-Maint. Special Schls & Independ. Specialist Provision,Charges from Independent Providers,-33.33,CAMBIAN ASPERGER SYNDROME SERVICES LTD
Revenue,Adult Services,Adult Social Care,Mental Health Support - adults (18-64),5105664215,27.01.2021,Mental Health Residential 18-64,Charges from Independent Providers,-33.33,CAMBIAN ASPERGER SYNDROME SERVICES LTD
Revenue,Childrens Services,Children's & Education Services,Children Looked After,5105663473,15.01.2021,Purchased Residential,Charges from Independent Providers,"18,600.00",CAMBIAN CHILDCARE LTD
Revenue,Childrens Services,Children's & Education Services,Children Looked After,5105663124,13.01.2021,Purchased Residential,Charges from Independent Providers,"17,492.99",CAMBIAN CHILDCARE LTD
Revenue,Childrens Services,Children's & Education Services,Children Looked After,5105662868,08.01.2021,Purchased Residential,Charges from Independent Providers,"3,000.00",CAMBIAN CHILDCARE LTD
Revenue,Childrens Services,Children's & Education Services,Children Looked After,5105662869,08.01.2021,Purchased Residential,Charges from Independent Providers,"1,200.00",CAMBIAN CHILDCARE LTD
Revenue,Childrens Services,Children's & Education Services,Children Looked After,5105662870,08.01.2021,Purchased Residential,Charges from Independent Providers,"17,400.00",CAMBIAN CHILDCARE LTD
Revenue,Childrens Services,Children's & Education Services,Management & Support Services,5105663125,13.01.2021,Independent Schools Non-Special Educational Needs,Charges from Independent Providers,"3,542.99",CAMBIAN CHILDCARE LTD
Capital,Place,Capital,Capital,5105661919,06.01.2021,Cowes Floating Brdge,Payment to Contractors - Capital,"9,720.00",CANARK MARINE LTD
Revenue,Childrens Services,Children's & Education Services,Family Support Services,5105664566,27.01.2021,Short Breaks,Charges from Independent Providers,"1,695.00",CARE CONNECT IOW CIC
Revenue,Childrens Services,Children's & Education Services,Family Support Services,5105664567,27.01.2021,Short Breaks,Charges from Independent Providers,438.08,CARE CONNECT IOW CIC
Revenue,Adult Services,Adult Social Care,Social Support - Support for Carer,5105664462,27.01.2021,Westminster House,Grounds Maintenance,36,CARE IN THE GARDEN
Revenue,Adult Services,Adult Social Care,Social Support - Support for Carer,5105664461,27.01.2021,Westminster House,Grounds Maintenance,72,CARE IN THE GARDEN
Revenue,Adult Services,Adult Social Care,Learning Disab Supp (to be reallocated),5105664462,27.01.2021,Plean Dene,Grounds Maintenance,180,CARE IN THE GARDEN
Revenue,Adult Services,Adult Social Care,Learning Disab Supp (to be reallocated),5105664461,27.01.2021,Plean Dene,Grounds Maintenance,81,CARE IN THE GARDEN
Revenue,Adult Services,Adult Social Care,Learning Disab Supp (to be reallocated),5105664461,27.01.2021,Saxonbury,Grounds Maintenance,135,CARE IN THE GARDEN
Revenue,Childrens Services,Children's & Education Services,Special Schools & Alternative Provision,5105663089,15.01.2021,Island Learning Centre,Schools Catering Contract,776.25,CATER LINK LIMITED
Revenue,Adult Services,Adult Social Care,Learning Disab Supp (to be reallocated),5105663105,13.01.2021,Plean Dene,Property Services - Day to day Maintenance,67,CATER WIGHT
Revenue,Adult Services,Adult Social Care,Central Codes (to be reallocated),5105664494,27.01.2021,Adelaide Resource Centre,Operational Equipment,67.35,CATER WIGHT
Capital,Adult Services,Capital,Capital,5105663103,13.01.2021,Adelaide & Gouldings Fixtures & Fittings,"Plant, Equipment & Furniture - Capital",145,CATER WIGHT
Capital,Adult Services,Capital,Capital,5105663103,13.01.2021,Adelaide & Gouldings Fixtures & Fittings,"Plant, Equipment & Furniture - Capital","2,365.00",CATER WIGHT
Capital,Adult Services,Capital,Capital,5105663103,13.01.2021,Adelaide & Gouldings Fixtures & Fittings,"Plant, Equipment & Furniture - Capital",120,CATER WIGHT
Revenue,Resources,Central Services,Support Services,5105664884,29.01.2021,ICT Contracts,Computer Software Licencing,"1,642.95",CENTERPRISE INTERNATIONAL LTD
Capital,Place,Capital,Capital,5400002900,29.01.2021,Fire Capital Projects,"Plant, Equipment & Furniture - Capital",2,CENTERPRISE INTERNATIONAL LTD
Revenue,Neighbourhoods,Cultural and Related Services,Recreation and Sport,5105662439,04.01.2021,The Heights,Gas,"12,276.27",COMBINED POWER LTD
Revenue,Neighbourhoods,Highways and Transport Services,Parking Services,5105663767,20.01.2021,Car Park cash collection,Payment to Private Contractors,287,CHANT LOCK & SECURITY SERVICE
Revenue,Adult Services,Adult Social Care,Learning Disab Supp (to be reallocated),5105663111,08.01.2021,Saxonbury,Property Services - Day to day Maintenance,102,CHANT LOCK & SECURITY SERVICE
Revenue,Childrens Services,Children's & Education Services,Special Schools & Alternative Provision,5105662903,15.01.2021,Island Learning Centre,Delegated Minor Maintenance,58.14,CHANT LOCK & SECURITY SERVICE
Revenue,Regeneration,Housing services,Housing Strategy,5105662494,06.01.2021,Brooklime House Flats 1-12,Minor Works,255.59,CHANT LOCK & SECURITY SERVICE
Revenue,Adult Services,Adult Social Care,Central Codes (to be reallocated),5105662975,08.01.2021,Gouldings Resource Centre,Catering Purchases,45.4,CHAPEL NURSERIES
Revenue,Adult Services,Adult Social Care,Central Codes (to be reallocated),5105664388,22.01.2021,Gouldings Resource Centre,Catering Purchases,60.9,CHAPEL NURSERIES
Revenue,Adult Services,Adult Social Care,Central Codes (to be reallocated),5105664389,22.01.2021,Gouldings Resource Centre,Catering Purchases,60.5,CHAPEL NURSERIES
Revenue,Adult Services,Adult Social Care,Central Codes (to be reallocated),5105663909,20.01.2021,Gouldings Resource Centre,Catering Purchases,-54.7,CHAPEL NURSERIES
Revenue,Adult Services,Adult Social Care,Central Codes (to be reallocated),5105663910,20.01.2021,Gouldings Resource Centre,Catering Purchases,64.7,CHAPEL NURSERIES
Revenue,Adult Services,Adult Social Care,Central Codes (to be reallocated),5105663163,13.01.2021,Gouldings Resource Centre,Catering Purchases,23.5,CHAPEL NURSERIES
Revenue,Adult Services,Adult Social Care,Central Codes (to be reallocated),5105663301,13.01.2021,Gouldings Resource Centre,Catering Purchases,36.2,CHAPEL NURSERIES
Revenue,Adult Services,Adult Social Care,Central Codes (to be reallocated),5105663161,13.01.2021,Gouldings Resource Centre,Catering Purchases,33.7,CHAPEL NURSERIES
Revenue,Adult Services,Adult Social Care,Learning Disab Supp (to be reallocated),5105664400,22.01.2021,Plean Dene,Catering Purchases,52.2,CHAPEL NURSERIES
Revenue,Adult Services,Adult Social Care,Learning Disab Supp (to be reallocated),5105664402,22.01.2021,Plean Dene,Catering Purchases,48.4,CHAPEL NURSERIES
Revenue,Adult Services,Adult Social Care,Learning Disab Supp (to be reallocated),5105664504,27.01.2021,Plean Dene,Catering Purchases,38.6,CHAPEL NURSERIES
Revenue,Adult Services,Adult Social Care,Learning Disab Supp (to be reallocated),5105664505,27.01.2021,Plean Dene,Catering Purchases,39.3,CHAPEL NURSERIES
Revenue,Adult Services,Adult Social Care,Learning Disab Supp (to be reallocated),5105662603,06.01.2021,Plean Dene,Catering Purchases,43.2,CHAPEL NURSERIES
Revenue,Adult Services,Adult Social Care,Learning Disab Supp (to be reallocated),5105664398,22.01.2021,Saxonbury,Catering Purchases,27.6,CHAPEL NURSERIES
Revenue,Adult Services,Adult Social Care,Learning Disab Supp (to be reallocated),5105662604,06.01.2021,Saxonbury,Catering Purchases,36.4,CHAPEL NURSERIES
Revenue,Resources,Central Services,Support Services,5105662984,08.01.2021,Litigation Costs,Legal Fees - Other Parties,400,COLLEGE CHAMBERS BARRISTERS
Revenue,Neighbourhoods,Cultural and Related Services,Culture and Heritage,5105664607,27.01.2021,Archaeology,Advertising & Publicity,100,CHARTERED INSTITUTE FOR ARCHAEOLOGISTS
Revenue,Resources,Central Services,Support Services,5105664359,22.01.2021,Staff Benefits,Payment to Private Contractors,124,CHATTERBOX NURSERY LTD
Revenue,Adult Services,Adult Social Care,Support - Memory /Cognition-older people (65+),5105663884,20.01.2021,Memory & Cognition Residential 65+,Charges from Independent Providers,"3,000.20",CHD CARE LTD
Revenue,Adult Services,Adult Social Care,Support - Memory /Cognition-older people (65+),5105663884,20.01.2021,Memory & Cognition Residential 65+,Charges from Independent Providers,405.16,CHD CARE LTD
Revenue,Resources,Central Services,Support Services,5105664350,22.01.2021,Staff Benefits,Payment to Private Contractors,5,CHEEKY CHIMPS CHILDCARE
Revenue,Neighbourhoods,Highways and Transport Services,"Airports, Harbours & Toll Facilities",5105662658,06.01.2021,Ventnor Haven - General,Payment to Private Contractors,"58,280.00",CHEETAH MARINE LLP
Revenue,Childrens Services,Children's & Education Services,Children Looked After,5105662837,08.01.2021,Special Guardianship Order Costs,Support Children,223.42,REDACTED PERSONAL DATA
Revenue,Childrens Services,Children's & Education Services,Children Looked After,5105664185,22.01.2021,Special Guardianship Order Costs,Support Children,223.42,REDACTED PERSONAL DATA
Revenue,Childrens Services,Children's & Education Services,Children Looked After,5105664789,29.01.2021,Special Guardianship Order Costs,Support Children,223.42,REDACTED PERSONAL DATA
Revenue,Childrens Services,Children's & Education Services,Children Looked After,5105663631,15.01.2021,Special Guardianship Order Costs,Support Children,223.42,REDACTED PERSONAL DATA
Revenue,Adult Services,Central Services,Emergency Planning,5105664353,22.01.2021,NHS C19 Residential,Charges from Independent Providers,"4,860.24",CHERRY TREES I.W. LTD
Revenue,Adult Services,Central Services,Emergency Planning,5105664353,22.01.2021,NHS C19 Residential,Charges from Independent Providers,"3,008.72",CHERRY TREES I.W. LTD
Revenue,Adult Services,Central Services,Emergency Planning,5105663478,15.01.2021,NHS C19 Residential,Charges from Independent Providers,"4,860.24",CHERRY TREES I.W. LTD
Revenue,Adult Services,Adult Social Care,Physical Support - older people (65+),5105664035,22.01.2021,Physical Support Residential 65+,Charges from Independent Providers,"9,900.09",CHERRY TREES I.W. LTD
Revenue,Adult Services,Adult Social Care,Physical Support - older people (65+),5105664353,22.01.2021,Physical Support Residential 65+,Charges from Independent Providers,"2,586.51",CHERRY TREES I.W. LTD
Revenue,Adult Services,Adult Social Care,Physical Support - older people (65+),5105663820,20.01.2021,Physical Support Residential 65+,Charges from Independent Providers,"2,124.08",CHERRY TREES I.W. LTD
Revenue,Adult Services,Adult Social Care,Physical Support - older people (65+),5105663820,20.01.2021,Physical Support Residential 65+,Charges from Independent Providers,"2,028.32",CHERRY TREES I.W. LTD
Revenue,Adult Services,Adult Social Care,Physical Support - older people (65+),5105663820,20.01.2021,Physical Support Residential 65+,Charges from Independent Providers,"2,028.32",CHERRY TREES I.W. LTD
Revenue,Adult Services,Adult Social Care,Physical Support - older people (65+),5105663820,20.01.2021,Physical Support Residential 65+,Charges from Independent Providers,"2,124.08",CHERRY TREES I.W. LTD
Revenue,Adult Services,Adult Social Care,Physical Support - older people (65+),5105663820,20.01.2021,Physical Support Residential 65+,Charges from Independent Providers,"2,028.32",CHERRY TREES I.W. LTD
Revenue,Adult Services,Adult Social Care,Commissioning & Service Delivery,5105663899,20.01.2021,CHC Residential Care,Charges from Independent Providers,"11,537.68",CHOICE CARE (WOODLANDS)
Revenue,Adult Services,Adult Social Care,Learning Disability Suppt-adults (18-64),5105663886,20.01.2021,Learning Disability Residential 18-64,Charges from Independent Providers,"7,076.44",CHOICE LTD
Revenue,Neighbourhoods,Central Services,Central Services to the Public,5105664492,27.01.2021,COVID Compliance & Enforcement,Training,360,CIEH
Revenue,Neighbourhoods,Central Services,Central Services to the Public,5105664887,29.01.2021,COVID Compliance & Enforcement,Training,90,CIEH
Revenue,Neighbourhoods,Environmental & Regulatory Services,Regulatory Services,5105665024,29.01.2021,Environmental Health - Environmental Regulation & Protection,Operational Equipment,145,CIRRUS RESEARCH PLC
Revenue,Adult Services,Adult Social Care,Central Codes (to be reallocated),5105658361,04.01.2021,Adelaide Resource Centre,Fixtures and Fittings,14.6,CITY ELECTRICAL FACTORS LTD
Revenue,Adult Services,Adult Social Care,Central Codes (to be reallocated),5105662480,04.01.2021,Adelaide Resource Centre,Fixtures and Fittings,-14.6,CITY ELECTRICAL FACTORS LTD
Revenue,Adult Services,Adult Social Care,Central Codes (to be reallocated),5105662563,06.01.2021,Adelaide Resource Centre,Fixtures and Fittings,22.5,CITY ELECTRICAL FACTORS LTD
Revenue,Resources,Central Services,Central Services to the Public,5105663090,08.01.2021,Electoral Registration Canvassing,Printing Costs,"1,312.07",ELECTORAL REFORM SERVICES
Revenue,Resources,Central Services,Support Services,5105664558,26.01.2021,Litigation Costs,Legal Fees - Other Parties,30,CLARKE WILLMOTT LLP
Revenue,Resources,Central Services,Support Services,5105664558,26.01.2021,Litigation Costs,Legal Fees - Other Parties,"2,500.00",CLARKE WILLMOTT LLP
Capital,Childrens Services,Capital,Capital,5105663082,13.01.2021,Administration and Inspection Schemes,Payment to Contractors - Capital,700,CLARKES MECHANICAL LTD
Revenue,Childrens Services,Children's & Education Services,Special Schools & Alternative Provision,5400002911,29.01.2021,Island Learning Centre,Delegated Minor Maintenance,188,CLARKES MECHANICAL LTD
Revenue,Adult Services,Adult Social Care,Support - Memory /Cognition-older people (65+),5105663882,20.01.2021,Memory & Cognition Residential 65+,Charges from Independent Providers,"2,833.32",REDACTED PERSONAL DATA
Revenue,Adult Services,Adult Social Care,Support - Memory /Cognition-older people (65+),5105662601,06.01.2021,Memory & Cognition Residential 65+,Charges from Independent Providers,"8,499.96",REDACTED PERSONAL DATA
Revenue,Regeneration,Planning services,Economic Development,5105663730,15.01.2021,Wight Innovation ERDF,Professional Services,862.3,REDACTED PERSONAL DATA
Revenue,Regeneration,Planning services,Economic Development,5105663739,15.01.2021,Wight Innovation ERDF,Professional Services,162.7,REDACTED PERSONAL DATA
Capital,Adult Services,Capital,Capital,5105664898,29.01.2021,S106 Capital Projects,Capital Grants,331.8,COMMUNITY ACTION ISLE OF WIGHT
Revenue,Childrens Services,Children's & Education Services,Family Support Services,5105664999,29.01.2021,Short Breaks,Charges from Independent Providers,408,COMMUNITY ACTION ISLE OF WIGHT
Revenue,Childrens Services,Children's & Education Services,Family Support Services,5105663937,20.01.2021,Short Breaks,Charges from Independent Providers,408,COMMUNITY ACTION ISLE OF WIGHT
Revenue,Childrens Services,Children's & Education Services,Family Support Services,5105662133,08.01.2021,Short Breaks,Charges from Independent Providers,264,COMMUNITY ACTION ISLE OF WIGHT
Revenue,Adult Services,Adult Social Care,Learning Disability Suppt-adults (18-64),5105663904,20.01.2021,Learning Disability Residential 18-64,Charges from Independent Providers,"10,643.36",COMMUNITY HOMES IN INTENSIVE CARE
Revenue,Neighbourhoods,Environmental & Regulatory Services,Coast Protection,5105661643,13.01.2021,Castle Haven Coast Protection Scheme,Payment to Private Contractors,"2,016.30",HARRIER PNEUMATICS LIMITED
Revenue,Childrens Services,Children's & Education Services,Children Looked After,5105663442,15.01.2021,Beaulieu House,Clothing & Laundry,21.9,CONTEGO SAFETY SOLUTIONS LTD
Revenue,Adult Services,Adult Social Care,Central Codes (to be reallocated),5105660782,08.01.2021,Community Reablement,Clothing & Laundry,19,CONTEGO SAFETY SOLUTIONS LTD
Revenue,Adult Services,Adult Social Care,Central Codes (to be reallocated),5105660782,08.01.2021,Community Reablement,Clothing & Laundry,19,CONTEGO SAFETY SOLUTIONS LTD
Revenue,Adult Services,Adult Social Care,Central Codes (to be reallocated),5105660782,08.01.2021,Community Reablement,Clothing & Laundry,9.5,CONTEGO SAFETY SOLUTIONS LTD
Revenue,Adult Services,Adult Social Care,Central Codes (to be reallocated),5105662039,06.01.2021,Community Reablement,Clothing & Laundry,50.7,CONTEGO SAFETY SOLUTIONS LTD
Revenue,Adult Services,Adult Social Care,Central Codes (to be reallocated),5105662039,06.01.2021,Community Reablement,Clothing & Laundry,56.1,CONTEGO SAFETY SOLUTIONS LTD
Revenue,Adult Services,Adult Social Care,Central Codes (to be reallocated),5105662039,06.01.2021,Community Reablement,Clothing & Laundry,50.7,CONTEGO SAFETY SOLUTIONS LTD
Revenue,Adult Services,Adult Social Care,Central Codes (to be reallocated),5105664495,27.01.2021,Community Reablement,Clothing & Laundry,48,CONTEGO SAFETY SOLUTIONS LTD
Revenue,Adult Services,Adult Social Care,Central Codes (to be reallocated),5105664597,29.01.2021,Adelaide Resource Centre,Clothing & Laundry,22.95,CONTEGO SAFETY SOLUTIONS LTD
Revenue,Adult Services,Adult Social Care,Central Codes (to be reallocated),5105662124,08.01.2021,Adelaide Resource Centre,Clothing & Laundry,-9.5,CONTEGO SAFETY SOLUTIONS LTD
Revenue,Adult Services,Adult Social Care,Central Codes (to be reallocated),5105662124,08.01.2021,Adelaide Resource Centre,Clothing & Laundry,-19,CONTEGO SAFETY SOLUTIONS LTD
Revenue,Adult Services,Adult Social Care,Central Codes (to be reallocated),5105662124,08.01.2021,Adelaide Resource Centre,Clothing & Laundry,-19,CONTEGO SAFETY SOLUTIONS LTD
Revenue,Adult Services,Adult Social Care,Central Codes (to be reallocated),5105660879,20.01.2021,Adelaide Resource Centre,Clothing & Laundry,38.06,CONTEGO SAFETY SOLUTIONS LTD
Revenue,Adult Services,Adult Social Care,Central Codes (to be reallocated),5105662124,08.01.2021,Adelaide Resource Centre,Clothing & Laundry,-19,CONTEGO SAFETY SOLUTIONS LTD
Revenue,Adult Services,Adult Social Care,Central Codes (to be reallocated),5105661010,08.01.2021,Adelaide Resource Centre,Clothing & Laundry,19,CONTEGO SAFETY SOLUTIONS LTD
Revenue,Adult Services,Adult Social Care,Central Codes (to be reallocated),5105661605,08.01.2021,Adelaide Resource Centre,Clothing & Laundry,47.9,CONTEGO SAFETY SOLUTIONS LTD
Revenue,Adult Services,Adult Social Care,Central Codes (to be reallocated),5105664597,29.01.2021,Adelaide Resource Centre,Clothing & Laundry,7.65,CONTEGO SAFETY SOLUTIONS LTD
Revenue,Adult Services,Adult Social Care,Central Codes (to be reallocated),5105664028,20.01.2021,Adelaide Resource Centre,Clothing & Laundry,-38.06,CONTEGO SAFETY SOLUTIONS LTD
Revenue,Adult Services,Adult Social Care,Central Codes (to be reallocated),5105660782,08.01.2021,Adelaide Resource Centre,Clothing & Laundry,19,CONTEGO SAFETY SOLUTIONS LTD
Revenue,Adult Services,Adult Social Care,Central Codes (to be reallocated),5105660782,08.01.2021,Adelaide Resource Centre,Clothing & Laundry,9.5,CONTEGO SAFETY SOLUTIONS LTD
Revenue,Adult Services,Adult Social Care,Central Codes (to be reallocated),5105660782,08.01.2021,Adelaide Resource Centre,Clothing & Laundry,19,CONTEGO SAFETY SOLUTIONS LTD
Revenue,Neighbourhoods,Cultural and Related Services,Recreation and Sport,5105662556,13.01.2021,The Heights,Clothing & Laundry,30.8,CONTEGO SAFETY SOLUTIONS LTD
Revenue,Adult Services,Adult Social Care,Mental Health Support-older people (65+),5105663848,20.01.2021,Mental Health Residential 65+,Charges from Independent Providers,"2,028.32",CORNELIA MANOR
Revenue,Adult Services,Central Services,Emergency Planning,5105664644,29.01.2021,NHS C19 Residential,Charges from Independent Providers,"4,860.24",CORNELIA MANOR
Revenue,Adult Services,Adult Social Care,Physical Support - adults (18-64),5105663848,20.01.2021,Physical Support Residential 18-64,Charges from Independent Providers,507.08,CORNELIA MANOR
Revenue,Adult Services,Adult Social Care,Support - Memory /Cognition-older people (65+),5105663848,20.01.2021,Memory & Cognition Residential 65+,Charges from Independent Providers,"2,124.08",CORNELIA MANOR
Revenue,Adult Services,Adult Social Care,Support - Memory /Cognition-older people (65+),5105663848,20.01.2021,Memory & Cognition Residential 65+,Charges from Independent Providers,"2,497.32",CORNELIA MANOR
Revenue,Adult Services,Adult Social Care,Physical Support - older people (65+),5105663848,20.01.2021,Physical Support Residential 65+,Charges from Independent Providers,"2,497.32",CORNELIA MANOR
Revenue,Adult Services,Adult Social Care,Physical Support - older people (65+),5105663848,20.01.2021,Physical Support Residential 65+,Charges from Independent Providers,"2,497.32",CORNELIA MANOR
Revenue,Adult Services,Adult Social Care,Physical Support - older people (65+),5105663848,20.01.2021,Physical Support Residential 65+,Charges from Independent Providers,"2,497.32",CORNELIA MANOR
Revenue,Adult Services,Adult Social Care,Physical Support - older people (65+),5105663848,20.01.2021,Physical Support Residential 65+,Charges from Independent Providers,"2,028.32",CORNELIA MANOR
Revenue,Adult Services,Adult Social Care,Physical Support - older people (65+),5105663848,20.01.2021,Physical Support Residential 65+,Charges from Independent Providers,"2,497.32",CORNELIA MANOR
Revenue,Adult Services,Adult Social Care,Physical Support - older people (65+),5105663848,20.01.2021,Physical Support Residential 65+,Charges from Independent Providers,"2,497.32",CORNELIA MANOR
Revenue,Adult Services,Adult Social Care,Physical Support - older people (65+),5105663848,20.01.2021,Physical Support Residential 65+,Charges from Independent Providers,"2,497.32",CORNELIA MANOR
Revenue,Adult Services,Adult Social Care,Physical Support - older people (65+),5105663848,20.01.2021,Physical Support Residential 65+,Charges from Independent Providers,"2,124.08",CORNELIA MANOR
Revenue,Childrens Services,Children's & Education Services,Children Looked After,5105662478,06.01.2021,Leaving Care Costs,Charges from Independent Providers,"18,683.70",CORNERSTONE ACCOMODATION LTD
Revenue,Childrens Services,Children's & Education Services,Children Looked After,5105664911,29.01.2021,Leaving Care Costs,Charges from Independent Providers,"18,683.70",CORNERSTONE ACCOMODATION LTD
Revenue,Neighbourhoods,Highways and Transport Services,"Airports, Harbours & Toll Facilities",5105663338,13.01.2021,Ferry Operation,Payment to Private Contractors,"8,026.20",COWES HARBOUR COMMISSION
Revenue,Neighbourhoods,Highways and Transport Services,"Airports, Harbours & Toll Facilities",5105663341,13.01.2021,Ferry Operation,Payment to Private Contractors,"8,180.55",COWES HARBOUR COMMISSION
Revenue,Neighbourhoods,Highways and Transport Services,"Airports, Harbours & Toll Facilities",5105663685,27.01.2021,Newport Harbour Account,Payment to Private Contractors,105.49,COWES HARBOUR COMMISSION
Revenue,Neighbourhoods,Highways and Transport Services,"Airports, Harbours & Toll Facilities",5105663206,13.01.2021,Ferry Operation,Payment to Private Contractors,540,FOLLY VENTURES
Revenue,Neighbourhoods,Central Services,Central Services to the Public,5105663204,13.01.2021,NB Covid-19,Payment to Private Contractors,180,FOLLY VENTURES
Revenue,Childrens Services,Children's & Education Services,Special Schools & Alternative Provision,5105665051,29.01.2021,Island Learning Centre,Training,189,CPI EUROPE
Revenue,Neighbourhoods,Highways and Transport Services,"Airports, Harbours & Toll Facilities",5105662593,06.01.2021,Whitegates Pontoons,Rent of Buildings and Rooms,525,CROWN ESTATE COMMISSIONERS
Revenue,Neighbourhoods,Highways and Transport Services,"Airports, Harbours & Toll Facilities",5105662373,04.01.2021,Newport Harbour Account,Rent of Buildings and Rooms,"2,560.00",CROWN ESTATE COMMISSIONERS
Revenue,Adult Services,Adult Social Care,Assistive Equipment & Technology,5105663251,13.01.2021,Community Equipment Store,Operational Equipment,"1,425.00",CURA PRODUCTS LIMITED
Revenue,Adult Services,Adult Social Care,Commissioning & Service Delivery,5105663903,20.01.2021,CHC Residential Care,Charges from Independent Providers,675.64,CYGNET LEARNING DISABILITIES
Revenue,Adult Services,Adult Social Care,Commissioning & Service Delivery,5105663903,20.01.2021,CHC Residential Care,Charges from Independent Providers,"10,677.52",CYGNET LEARNING DISABILITIES
Revenue,Childrens Services,Children's & Education Services,Children Looked After,5105664116,22.01.2021,Children placed with Family&Friends,Boarding Out Allowances,244.47,REDACTED PERSONAL DATA
Revenue,Childrens Services,Children's & Education Services,Children Looked After,5105664116,22.01.2021,Children placed with Family&Friends,Boarding Out Allowances,244.47,REDACTED PERSONAL DATA
Revenue,Childrens Services,Children's & Education Services,Children Looked After,5105664116,22.01.2021,Children placed with Family&Friends,Boarding Out Allowances,286.47,REDACTED PERSONAL DATA
Revenue,Childrens Services,Children's & Education Services,Children Looked After,5105662770,08.01.2021,Children placed with Family&Friends,Boarding Out Allowances,244.47,REDACTED PERSONAL DATA
Revenue,Childrens Services,Children's & Education Services,Children Looked After,5105662770,08.01.2021,Children placed with Family&Friends,Boarding Out Allowances,244.47,REDACTED PERSONAL DATA
Revenue,Childrens Services,Children's & Education Services,Children Looked After,5105662770,08.01.2021,Children placed with Family&Friends,Boarding Out Allowances,286.47,REDACTED PERSONAL DATA
Revenue,Childrens Services,Children's & Education Services,Children Looked After,5105664722,29.01.2021,Children placed with Family&Friends,Boarding Out Allowances,244.47,REDACTED PERSONAL DATA
Revenue,Childrens Services,Children's & Education Services,Children Looked After,5105664722,29.01.2021,Children placed with Family&Friends,Boarding Out Allowances,244.47,REDACTED PERSONAL DATA
Revenue,Childrens Services,Children's & Education Services,Children Looked After,5105664722,29.01.2021,Children placed with Family&Friends,Boarding Out Allowances,286.47,REDACTED PERSONAL DATA
Revenue,Childrens Services,Children's & Education Services,Children Looked After,5105663564,15.01.2021,Children placed with Family&Friends,Boarding Out Allowances,244.47,REDACTED PERSONAL DATA
Revenue,Childrens Services,Children's & Education Services,Children Looked After,5105663564,15.01.2021,Children placed with Family&Friends,Boarding Out Allowances,244.47,REDACTED PERSONAL DATA
Revenue,Childrens Services,Children's & Education Services,Children Looked After,5105663564,15.01.2021,Children placed with Family&Friends,Boarding Out Allowances,286.47,REDACTED PERSONAL DATA
Revenue,Adult Services,Housing Services,Homelessness,5105664318,22.01.2021,Private Rented Sector Leasing Scheme,Accommodation Costs - Leaseholder Payments,859.95,REDACTED PERSONAL DATA
Revenue,Childrens Services,Children's & Education Services,Children Looked After,5105664052,22.01.2021,Adoption Costs,Support Children,207.73,REDACTED PERSONAL DATA
Revenue,Childrens Services,Children's & Education Services,Children Looked After,5105662707,08.01.2021,Adoption Costs,Support Children,207.73,REDACTED PERSONAL DATA
Revenue,Childrens Services,Children's & Education Services,Children Looked After,5105663500,15.01.2021,Adoption Costs,Support Children,207.73,REDACTED PERSONAL DATA
Revenue,Childrens Services,Children's & Education Services,Children Looked After,5105664658,29.01.2021,Adoption Costs,Support Children,207.73,REDACTED PERSONAL DATA
Revenue,Resources,Central Services,Support Services,5105663057,08.01.2021,Litigation Costs,Legal Fees - Other Parties,404.16,12 COLLEGE PLACE BARRISTERS
Revenue,Adult Services,Housing Services,Homelessness,5105664321,22.01.2021,Private Rented Sector Leasing Scheme,Accommodation Costs - Leaseholder Payments,788.67,REDACTED PERSONAL DATA
Revenue,Childrens Services,Children's & Education Services,Children Looked After,5105662696,08.01.2021,Adoption Costs,Support Children,168.39,REDACTED PERSONAL DATA
Revenue,Childrens Services,Children's & Education Services,Children Looked After,5105663489,15.01.2021,Adoption Costs,Support Children,168.39,REDACTED PERSONAL DATA
Revenue,Childrens Services,Children's & Education Services,Children Looked After,5105664647,29.01.2021,Adoption Costs,Support Children,168.39,REDACTED PERSONAL DATA
Revenue,Childrens Services,Children's & Education Services,Children Looked After,5105664041,22.01.2021,Adoption Costs,Support Children,168.39,REDACTED PERSONAL DATA
Revenue,Childrens Services,Children's & Education Services,Children Looked After,5105664041,22.01.2021,Special Guardianship Order Costs,Support Children,228.53,REDACTED PERSONAL DATA
Revenue,Childrens Services,Children's & Education Services,Children Looked After,5105662696,08.01.2021,Special Guardianship Order Costs,Support Children,228.53,REDACTED PERSONAL DATA
Revenue,Childrens Services,Children's & Education Services,Children Looked After,5105664647,29.01.2021,Special Guardianship Order Costs,Support Children,228.53,REDACTED PERSONAL DATA
Revenue,Childrens Services,Children's & Education Services,Children Looked After,5105663489,15.01.2021,Special Guardianship Order Costs,Support Children,228.53,REDACTED PERSONAL DATA
Revenue,Adult Services,Housing Services,Homelessness,5105664338,22.01.2021,Private Rented Sector Leasing Scheme,Accommodation Costs - Leaseholder Payments,678.9,REDACTED PERSONAL DATA
Revenue,Neighbourhoods,Housing Services,Private Sector Housing Renewal,5105663072,08.01.2021,Renewal & Enforcement,Payment to Private Contractors,210,REDACTED PERSONAL DATA
Revenue,Adult Services,Housing Services,Homelessness,5105664320,22.01.2021,Private Rented Sector Leasing Scheme,Accommodation Costs - Leaseholder Payments,814.71,REDACTED PERSONAL DATA
Revenue,Adult Services,Housing Services,Homelessness,5105664320,22.01.2021,Private Rented Sector Leasing Scheme,Accommodation Costs - Leaseholder Payments,888.33,REDACTED PERSONAL DATA
Revenue,Childrens Services,Children's & Education Services,Children Looked After,5105664146,22.01.2021,In-house Fostering,Boarding Out Allowances,244.47,REDACTED PERSONAL DATA
Revenue,Childrens Services,Children's & Education Services,Children Looked After,5105664146,22.01.2021,In-house Fostering,Boarding Out Allowances,244.47,REDACTED PERSONAL DATA
Revenue,Childrens Services,Children's & Education Services,Children Looked After,5105664752,29.01.2021,In-house Fostering,Boarding Out Allowances,244.47,REDACTED PERSONAL DATA
Revenue,Childrens Services,Children's & Education Services,Children Looked After,5105664752,29.01.2021,In-house Fostering,Boarding Out Allowances,244.47,REDACTED PERSONAL DATA
Revenue,Childrens Services,Children's & Education Services,Children Looked After,5105662800,08.01.2021,In-house Fostering,Boarding Out Allowances,244.47,REDACTED PERSONAL DATA
Revenue,Childrens Services,Children's & Education Services,Children Looked After,5105662800,08.01.2021,In-house Fostering,Boarding Out Allowances,244.47,REDACTED PERSONAL DATA
Revenue,Childrens Services,Children's & Education Services,Children Looked After,5105663594,15.01.2021,In-house Fostering,Boarding Out Allowances,244.47,REDACTED PERSONAL DATA
Revenue,Childrens Services,Children's & Education Services,Children Looked After,5105663594,15.01.2021,In-house Fostering,Boarding Out Allowances,244.47,REDACTED PERSONAL DATA
Revenue,Neighbourhoods,Cultural and Related Services,Open Spaces,5105663180,15.01.2021,Ventnor Botanic Garden,Property Services - Planned Maintenance,615,DARES LTD
Revenue,Neighbourhoods,Cultural and Related Services,Open Spaces,5105663963,22.01.2021,Ventnor Botanic Garden,Property Services - Planned Maintenance,75,DARES LTD
Revenue,Neighbourhoods,Cultural and Related Services,Open Spaces,5105663963,22.01.2021,Ventnor Botanic Garden,Property Services - Planned Maintenance,450,DARES LTD
Revenue,Neighbourhoods,Cultural and Related Services,Open Spaces,5105661997,04.01.2021,Ventnor Botanic Garden,Property Services - Planned Maintenance,220,DARES LTD
Revenue,Neighbourhoods,Housing Services,Private Sector Housing Renewal,5105663241,13.01.2021,Renewal & Enforcement,Payment to Private Contractors,460,DARES LTD
Revenue,Neighbourhoods,Cultural and Related Services,Open Spaces,5105663964,20.01.2021,Fort Victoria,Property Services - Day to day Maintenance,60,DARES LTD
Revenue,Neighbourhoods,Cultural and Related Services,Open Spaces,5105663965,22.01.2021,Fort Victoria,Property Services - Day to day Maintenance,"2,180.00",DARES LTD
Revenue,Neighbourhoods,Cultural and Related Services,Culture and Heritage,5105663933,22.01.2021,Cothey Bottom Store RYDE,Property Services - Planned Maintenance,320,DARES LTD
Revenue,Neighbourhoods,Cultural and Related Services,Open Spaces,5105663339,13.01.2021,Client Management Unit - Grounds Maintenance,Vehicle Maintenance Costs,10,DASHWITNESS LTD
Revenue,Neighbourhoods,Cultural and Related Services,Open Spaces,5105663339,13.01.2021,Client Management Unit - Grounds Maintenance,Vehicle Maintenance Costs,10,DASHWITNESS LTD
Revenue,Regeneration,Planning services,Development Control,5105663339,13.01.2021,Development Control,Vehicle Maintenance Costs,10,DASHWITNESS LTD
Revenue,Resources,Highways and Transport Services,Public Transport,5105663339,13.01.2021,Fleet Income,Vehicle Maintenance Costs,10,DASHWITNESS LTD
Revenue,Adult Services,Adult Social Care,Central Codes (to be reallocated),5105663339,13.01.2021,Gouldings Resource Centre,Vehicle Maintenance Costs,10,DASHWITNESS LTD
Revenue,Resources,Central Services,Central Services to the Public,5105663339,13.01.2021,National Non Domestic Rates,Vehicle Maintenance Costs,10,DASHWITNESS LTD
Revenue,Neighbourhoods,Cultural and Related Services,Open Spaces,5105663339,13.01.2021,Rights of Way Operations,Vehicle Maintenance Costs,10,DASHWITNESS LTD
Revenue,Neighbourhoods,Cultural and Related Services,Open Spaces,5105663339,13.01.2021,Rights of Way Operations,Vehicle Maintenance Costs,10,DASHWITNESS LTD
Revenue,Neighbourhoods,Cultural and Related Services,Open Spaces,5105663339,13.01.2021,Rights of Way Operations,Vehicle Maintenance Costs,10,DASHWITNESS LTD
Revenue,Neighbourhoods,Cultural and Related Services,Open Spaces,5105663339,13.01.2021,Rights of Way Operations,Vehicle Maintenance Costs,10,DASHWITNESS LTD
Revenue,Adult Services,Adult Social Care,Social Support - Support for Carer,5105663339,13.01.2021,Westminster House,Vehicle Maintenance Costs,10,DASHWITNESS LTD
Revenue,Adult Services,Adult Social Care,Assistive Equipment & Technology,5105663339,13.01.2021,Community Equipment Store,Vehicle Maintenance Costs,10,DASHWITNESS LTD
Revenue,Adult Services,Adult Social Care,Assistive Equipment & Technology,5105663339,13.01.2021,Community Equipment Store,Vehicle Maintenance Costs,10,DASHWITNESS LTD
Revenue,Adult Services,Adult Social Care,Assistive Equipment & Technology,5105663339,13.01.2021,Community Equipment Store,Vehicle Maintenance Costs,10,DASHWITNESS LTD
Revenue,Adult Services,Adult Social Care,Assistive Equipment & Technology,5105663339,13.01.2021,Community Equipment Store,Vehicle Maintenance Costs,10,DASHWITNESS LTD
Revenue,Adult Services,Adult Social Care,Assistive Equipment & Technology,5105663339,13.01.2021,Community Equipment Store,Vehicle Maintenance Costs,10,DASHWITNESS LTD
Revenue,Adult Services,Adult Social Care,Assistive Equipment & Technology,5105663339,13.01.2021,Community Equipment Store,Vehicle Maintenance Costs,10,DASHWITNESS LTD
Revenue,Resources,Central Services,Support Services,5105663339,13.01.2021,County Hall Central Mail Room,Vehicle Maintenance Costs,10,DASHWITNESS LTD
Revenue,Neighbourhoods,Environmental & Regulatory Services,Service Management and Support Services,5105663339,13.01.2021,Environment officers,Vehicle Maintenance Costs,10,DASHWITNESS LTD
Revenue,Neighbourhoods,Environmental & Regulatory Services,Service Management and Support Services,5105663339,13.01.2021,Environment officers,Vehicle Maintenance Costs,10,DASHWITNESS LTD
Revenue,Neighbourhoods,Environmental & Regulatory Services,Service Management and Support Services,5105663339,13.01.2021,Environment officers,Vehicle Maintenance Costs,10,DASHWITNESS LTD
Revenue,Childrens Services,Children's & Education Services,Children Looked After,5105663339,13.01.2021,Beaulieu House,Vehicle Maintenance Costs,10,DASHWITNESS LTD
Revenue,Childrens Services,Children's & Education Services,Children Looked After,5105663339,13.01.2021,Beaulieu House,Vehicle Maintenance Costs,10,DASHWITNESS LTD
Revenue,Childrens Services,Children's & Education Services,Children Looked After,5105663339,13.01.2021,Beaulieu House,Vehicle Maintenance Costs,10,DASHWITNESS LTD
